Workbook

Sheet Instructions (hidden)
A1: Barter | B1: See owned equipment
A2: Budget Report | B2: Selecting the 'Budget Report' button initiates the calculations to build a budget report. After a few seconds (depending on computer speed), the report appears on screen. It is stored as a new worksheet in the current session. It can be renamed (see renaming worksheets) It can be recalled from the 'Custom Budget' list with the 'Recall Data' command. It can be hidden with Excel commands (Format\Sheet\Hide). Hiding does not remove the report from the 'Custom Budgets' list. It can be permanently deleted. To delete, point to the worksheet tab, right-click and select delete.
A3: Business overhead costs | B3: Use these fields to estimate total overhead costs for the farm and then allocate the portion of the total to the enterprise as a percent. Overhead costs for the enterprise are then divided by planted acres for the budget report. The CBG estimates total operating and ownership costs of the pickup. Therefore, it is important to specify the allocation for the enterprise only as a percent of total use, farm and non-farm. | C3: overhead
A4: Button controls | B4: See help for specific button topics, such as, 'Clear Input'. All button controls are accessible from the Input worksheet.
A5: Clear input | B5: This button clears all previously entered data in the input worksheet in preparation for entering a new set of data. A warning is issued prior to clearing the input. Input data can be retrieved with the 'Recall Data' button only if it has been associated with a budget report via the 'Budget Report' command. TIP: If the objective is to make minor changes in an existing budget of the same crop, do not use 'Clear Input'. Rather, recall the previous budget with 'Recall Data', make the minor data changes in the input worksheet and give the budget a new description in the 'Crop description' field. Press 'Budget Report' to make new calculations and store a new budget based on the revised data.
A6: Combines | B6: See owned equipment
A7: Copy budget | B7: The CBG works like any Excel spreadsheet. To copy a budget report to a new file, select the area to be copied and use the Edit\Copy\Paste or Paste Special commands to place the report in a new worksheet or a new file.
A8: Crop description | B8: The crop description field is critical for identifying budgets to be saved in the CBG and distinguishing between budgets of the same crop. The generator will not allow a budget with the same crop description to be overwritten without warning the user. TIP: Use the crop description as a note pad to identify specific characteristics of the crop. For example, 'High Yield' vs. 'Low Yield', or 'Custom Rates' vs. 'Operator Owned'. | C8: description
A9: Crop identification | B9: Entries in this section determine the input questions that will be presented. The crop description field is critical to building a unique budget report. Begin building a new budget by selecting a crop from the drop down list. This action clears all previous entries and builds an appropriate input list for the specified crop. Alternatively, if you are modifying an existing budget and wish to keep the bulk of the previous input data, do not change the crop selection. Instead, enter a unique description for the new budget in the crop description field. A separate budget worksheet is created for each unique description. For example, you've already created a corn budget with a yield of 140 bushels and want to use most of the same inputs to build a budget for a yield of 160 bushels. Enter the description "High yield" make changes and rerun the budget by clicking on 'Budget Report'. The CBG will warn you before overwriting any input data. Be sure to select appropriate yield units and irrigation, if any.
A10: Crop returns | B10: Enter appropriate price and yield information. The government payments field is optional. A method to budget with uncertain prices is to use the trigger price for counter-cyclical payments as a proxy for the market price. The government payments field can be used to enter only the fixed payment that is independent of yield and price. The planted acres field is used in some of the calculations to estimate fixed costs of machinery. | C10: receipts
A11: Custom budgets | B11: Custom budgets are retrievable with the 'Recall Data" command that
A12: Custom hire | B12: As noted, entries in this section will account for labor value and equipment costs for all custom hired activities. | C12: customhire1 | D12: customhire2
A13: Delete budget | B13: Deleting a budget report (Excel worksheet) permanently erases all input and output with the same crop description except for 'Typical budgets'. You can not delete a 'Typical Budget'. To delete a budget it must have been run and appear as a worksheet tab. Use normal Excel commands to delete the worksheet: Select the worksheet, right-click, click delete. It may be preferable to hide the budget report (Excel worksheet) rather than deleting it.
A14: Drying | B14: Grain drying energy costs per acre depend a great deal on moisture content removed. Be careful with this entry because the costs entered will be applied across all bushels and by extension all farm production, even though the early harvested corn may be the only bushels dried. The generator assumes drying with a combination system of heating and then finishing with air. The engineering parameters used are 0.8 gallons of propane and 7 KWH per 100 bushels to remove one point of moisture. | C14: drying
A15: Export data | B15: The Export data option can be used to transfer budgets between different CBG files. Simply place a checkmark next to the budgets you wish to export and browse for a directory to place the files. When finished, click 'Ok'. The budgets will be stored as text files in a folder called 'CBG Files' in the location you specified. To retrieve the files, use the Import data command (see Import data).
A16: Fertilizer costs | B16: These fields are used to estimate the costs of fertilizer material only. Application costs (custom or operator applied) are entered separately. These conversions may be helpful: -Anhydrous ammonia (NH3) is typically 82 percent nitrogen. -Ammonium nitrate is 33.5 percent nitrogen. -Ammonium sulfate is 20.5 percent nitrogen. -Urea is 45 percent nitrogen. -Nitrogen solutions are typically 20-40 percent nitrogen. -Monoammonium phosphate (MAP) is typically 11-48-0 -Diammonium phosphate (DAP) is typically 18-46-0 -Potassium sulfate is 47 to 52 percent potash (K20) -Potassium chloride is 47 to 61 percent potash (K20) | C16: fertilizer1 | D16: fertilizer2
A17: Hauling | B17: Use the ten wheeler and semi truck cost fields to estimate operating and ownership costs (not custom hire) to haul grain from field to bin and to deliver to a terminal market, if desired. Be sure to allocate the total costs to the enterprise. Note, that grain cart costs are estimated below in the machinery section. | C17: hauling
A18: Herbicide costs | B18: These fields are used to estimate the costs of herbicide material only. Application costs (custom or operator applied) are entered separately. Note that costs can be entered per trip or per unit per acre. The notes field is to record specifics about the weed control program that will appear on the budget report. | C18: herbicide1 | D18: herbicide2
A19: Hiding budgets (worksheets) | B19: Hide a budget (worksheet) as you would any other Excel spreadsheet with the Format/Sheet/Hide command.
A20: Import data | B20: This option allows the user to bring previous budgets into the current Crop Budget Generator. If you wish to retrieve a budget from a previous version of the CBG and that version supports this method, simply enter the location of the CBG into the location box or use the 'Find Budgets' button to located the file. If the user has exported budgets to text files (see Export data), use the 'Find Budgets' button to locate the 'CBG Files' folder. After the directory of the budgets has been specified, place a checkmark next to the budgets that you wish to import. If no budgets are listed to select, then you have not specified a valid path from which to retrieve budgets. Once the budgets are selected, click 'Ok'.
A21: Input sheet | B21: All of the data required to run the CBG is entered on the Input worksheet. Enter data in the white boxes. Move the cursor between data entry fields by using the "Tab" key. Move back a space by pressing "Shift+Tab". Comment boxes (denoted by red markers) provide detailed explanations for certain items. View the contents of the comment box by pointing the cursor at the red triangular marker. The user will have access to only one input sheet. It may be blank or populated with data. See 'Clear Input' and 'Recall Data'. All command buttons are accessed from the input sheet.
A22: Insecticide/fungicide costs | B22: These fields are used to estimate all non-herbicide chemical costs for material only. The notes field is to record specifics about the insecticides or fungicide program and will appear on the budget report. | C22: insecticide1 | D22: insecticide2
A23: Labor costs | B23: The first field in the labor section (labor hours per acre) is used to account for all the hours NOT used in field operations or irrigation. Actual field operation labor is calculated automatically. Examples of non-field labor required include time used for hauling grain, moving equipment, procuring inputs, personnel and business management activities, "pick-up time," etc. The skilled labor rate is used to estimate costs for many machinery operations (planting and harvesting). Tillage operations are costed at the unskilled labor rate. Operator labor for the enterprise for machinery and non-machinery activities is lumped on one line in the budget report. This line may include hired or unpaid family labor, but does not include custom hire. | C23: labor
A24: Land costs | B24: Land costs can be difficult to estimate, but should follow trends in current market values for bare land and attached buildings (grain bin) to operate the enterprise. The land capitalization approach accounts for the risk return on investment (land and buildings). The rule of thumb is to not deviate greatly from cash rental rates. However, land values and rental rates do not necessarily track each other. Real estate taxes are in addition to the risk return. For lease situations (share or cash), enter value and capitalization rate to estimate land costs for the landlord.. | C24: land
A25: Lease arrangement | B25: The generator allows one of three types of land arrangements: owned land, cash rent, or share leased. Choose one from the drop box to open pertinent fields for data entry. If the share lease option is selected, output will be reported for the contributions of the landlord, tenant, and the combined business unit in three columns. Choosing the cash rent option charges the economic costs of land at the rental rate and produces a single column budget report for the business unit. Choosing the owned land option allows the user to estimate the economic costs of land ownership based on land value and a capitalization rate. This option produces a single column budget report for the business unit. | C25: landlord_share
A26: Machinery depreciation | B26: The machinery depreciation calculations assume certain annual hours of use and an economic life of the implement and power unit. Internal adjustments have been made to equate machinery costs to a "typical" farming operation in Missouri. For example, the farm unit underlying the assumptions is about 1700 to 2000 acres. In some cases, used machinery is built into the database which shifts costs into the operating category, but generally has only minor impact on the total costs of production. For example, the two wheel tractor and semi truck are based on used values, increasing repair and maintenance costs, but lowering depreciation costs, relative to new.
A27: Machinery overhead | B27: The machinery overhead calculation estimates the costs of property taxes, insurance, and housing. Taxes and insurance are calculated as a function of purchase value and housing is a function of the implement footprint and a building rental rate per square foot.
A28: Other input costs | B28: Operating interest is the projected cost of capital for the short-term (one year or less). The entry is used to calculate interest on variable costs. Fuel price for farm diesel (net of taxes) is used to calculate fuel costs for tractors, combines, and over-the-road semi (including taxes). Crop insurance premiums can be estimated for each county and crop from the calculator on the USDA-RMA web site. Other direct crop expense is a catch-all category. The other expense line in the budget report is linked only to this field. | C28: otheritems1
A29: Owned equipment | B29: This section is used to estimate all costs, on a per acre basis, for owning or renting equipment. Begin by checking the types of tractors that will be used for all field activities in this enterprise. These are the power units that become available as a drop down list to match tractors to implements. If a tractor selection is overlooked, simply return to tractors and select an additional tractor. Combine-header selection is in the list below with harvest activities. With a few exceptions, four fields are available for each machine operation. The first field allows selection of the implement size from the pick list. To see the pick list, place the cursor in the cell and point to the drop down arrow to the right of the field. The implement selection determines the hours of use per acre (and therefore fuel and labor costs). The second field is used to select the appropriate tractor to match with the implement. Use good judgement. There is nothing in the generator to prevent a mismatch of implement and power unit. The third field is to select the number of passes per acre with the implement. For example, a common usage is to allow two passes with a boom sprayer. The fourth field is used to enter a rental fee per acre to accomplish the operation, e.g., rental of a no-till drill. An entry in this field causes the generator to tally only operating costs of the implement, but still capture all costs of the selected power unit associated with the activity. Another usage of this field might be to estimate the cost of bartering, or sharing equipment and/or labor with a neighbor. In this case enter the value of your contribution on a per acre basis. | C29: power | D29: Passes | E29: rental
A30: Preview | B30: Selecting the 'Preview' bottom pops up a window that summarizes the costs and returns data in real-time. Use the window to see how a change in an input field will impact the overall budget report.
A31: Recall Data | B31: The 'Recall Data' button opens a window with two lists of previously run budget reports as shown on the tabs: 'Custom Budgets' and 'Typical Budgets'. 'Custom budgets' are those previously run by the user. 'Typical budgets' are pre-loaded in the software. Often, the easiest way to begin a new budget is to recall a typical budget and customize it to your situation. To recall, highlight a specific budget from the list and click OK. To delete a customized budget see Delete budget in the help section. Typical budgets can not be deleted. TIP: Rename the budgets (worksheets) for easy identification and recall.
A32: Renaming worksheets | B32: The CBG works like and Excel spreadsheet. To rename a worksheet (budget report), right click on the worksheet tab and select 'Rename' from the list. Worksheet tabs can also be sorted as desired by clicking and dragging.
A33: Rented equipment | B33: See owned equipment
A34: Save budget | B34: The CBG works like any Excel spreadsheet. You must save your work before closing the file. It is advisable to periodically save the file under a new name to retain multiple copies.
A35: Seed costs | B35: Enter seeding rates and prices per unit. The seed notes field is an optional method of further distinguishing this budget from others. One usage is to identify seed technology, such as, Bt vs. non Bt, or Glyphosate Resistant. Notes appear on the budget report. | C35: seed1 | D35: seed2
A36: Share leasing | B36: Enter the landlord's share of production and contribution to costs as a percentage. The last field in this section allows for special cases where the landlord may reimburse the operator for certain operations, based on a custom rate. For example, harvesting, drying, and hauling. Enter the custom rate charged to the landlord on a per bushel basis. | C36: landlord_share
A37: Start | B37: The CBG works like any other Excel spreadsheet except that many steps have been automated. Begin by entering data into a blank 'Input' worksheet, or by retrieving one of the pre-stored input worksheets. Run the generator by selecting the 'Budget Report' button.
A38: Storage | B38: Ownership cost of grain storage is (should be) incorporated in the real estate value, thus only rental fees for storing all or a portion of the crop should be entered here. | C38: storage
A39: Summary | B39: The summary option allows budget summaries to be combined in onen workseet. When 'Show Summary' is clicked on the CBG menu, a list of the user's budgets will show up. Typicals can also be included by clicking 'Yes" under 'Include Typicals?.' You may select between one and twelve budgets to combine. Once they have been combined, click 'Next' and give the summary a description. The order that the budgets will appear can be changed by clicking on the budget then on the up and down arrows on the side. The budgets in the Summary are tied back to the original budget. Updating or deleting the original budget will cause the Summary budget to also be updated or deleted.
A40: Tractors | B40: See owned equipment | C40: power
A41: Troubleshooting | B41: The CBG has been designed and tested for Excel versions 2000 and later. It may not function properly with earlier versions. Macros must be enabled for the spreadsheet to calculate correctly. If your computer is not set to allow macros, got to Tools\Options\Security\Macro Security, and set to the medium level. The generator is best viewed with a screen resolution of 1024 x 768 or higher. If you experience problems with expanding checkboxes or drop down list boxes, to Control Panel\Display and set display to a higher resolution. Worksheets have been protected to avoid inadvertent corruption of formulas.
A42: Typical budgets | B42: The generator comes with a set of pre-entered budgets, based on typical cropping practices in North, Central, and Southwest Missouri for corn, soybeans, grain sorghum, and wheat. Highlight and click OK to retrieve the input for one of these budgets and then click 'Budget Report' to view the output. Once run, the typical budget worksheets can be deleted with the usual Excel commands to delete a worksheet. Doing this will not delete the input from the Typical Budgets list. Editing the input associated with a 'Typical Budget' will not overwrite the stored version.

Sheet Input
A2: CROP BUDGET INPUT | AA2: x | AB2: x | AC2: x | AD2: x | AE2: x | AF2: x | AG2: x | AH2: x
A3: Enter data in white boxes. Use "Tab" key to navigate between boxes. | H3: Version 11.7.16
A4: Crop Identification | AA4: c | AB4: silage | AC4: g | AD4: s | AE4: w | AF4: ws | AG4: i | AH4: Mach#
A5: Crop selection
A6: Primary crop yield units
A7: By-product units
A8: Irrigation
A9: Lease arrangement
A10: Crop description | B10: 2022 Soybeans
A11: Crop Returns
A12: Planted acres this crop | B12: 1000 | D12: acres
A13: Crop yield | B13: 55 | D13: =VLOOKUP(MDB!$C$159,MDB!$K$157:$M$160,3) & "s" -> bushels
A14: Expected market price | B14: 12.05 | D14: ="$ per " & VLOOKUP(MDB!$C$159,MDB!$K$157:$M$160,3) -> $ per bushel
A15: By-product yield | D15: =VLOOKUP(MDB!$C$160,MDB!$K$157:$M$160,3) & "s" -> bushels
A16: By-product market price | D16: ="$ per " & VLOOKUP(MDB!$C$160,MDB!$K$157:$M$160,3) -> $ per bushel
A17: Farm program payments | D17: $ per acre
A18: Other income | D18: $ per acre
A19: Sub-total per acre | B19: =income -> 662.75
A20: Input Costs
A21: Seed | B21: Rate | C21: Rate units | F21: Price | G21: Price units
A22: Corn (80,000 seed per bag) | C22: seeds per acre | G22: $ per bag | AC22: 1 | AD22: 1 | AE22: 1 | AF22: 1
A23: Soybeans (150,000 seed per bag) | B23: 170000 | C23: seeds per acre | F23: 58 | G23: $ per bag | AA23: 1 | AB23: 1 | AC23: 1 | AE23: 1 | AF23: 1
A24: Grain sorghum (750,000 per bag) | C24: seeds per acre | G24: $ per bag | AA24: 1 | AB24: 1 | AD24: 1 | AE24: 1 | AF24: 1
A25: Wheat (50 lb bag) | C25: lbs per acre | G25: $ per bag | AA25: 1 | AB25: 1 | AC25: 1 | AD25: 1
A26: Seed tech fees | G26: $ per bag
A27: Additional seed treatment costs | C27: units per acre | G27: $ per unit
A28: Seed notes
A29: Sub-total per acre | B29: =Output!F15 -> 65.73333333
A31: Fertilizer (not application) | B31: Rate | C31: Rate units | F31: Price | G31: Price units
A32: Nitrogen (anhydrous) | C32: lbs per acre | G32: $ per lb
A33: Nitrogen (dry) | C33: lbs per acre | G33: $ per lb
A34: Nitrogen (liquid) | C34: lbs per acre | G34: $ per lb
A35: Phosphorus, P205 | B35: 46 | C35: lbs per acre | F35: 0.65 | G35: $ per lb
A36: Potassium, K20 | B36: 80 | C36: lbs per acre | F36: 0.58 | G36: $ per lb
A37: Lime | B37: 0.5 | C37: tons per acre | F37: 25 | G37: $ per ton
A38: Other amendment | C38: lbs per acre | G38: $ per lb
A39: Other amendment | C39: lbs per acre | G39: $ per lb
A40: Sub-total per acre | B40: =Output!F16 -> 88.8
A42: Herbicide (not application) | B42: Rate | C42: Rate units | F42: Price | G42: Price units
A43: One-pass program | C43: trips per acre | G43: $ per trip
A44: Burn-down mix | C44: trips per acre | G44: $ per trip
A45: Pre-emergence mix | C45: trips per acre | G45: $ per trip
A46: Post-emergence mix | C46: trips per acre | G46: $ per trip
A47: Other herbicide A, by trip | B47: 2 | C47: trips per acre | F47: 27.5 | G47: $ per trip
A48: Other herbicide B, by trip | C48: trips per acre | G48: $ per trip
A49: Other herbicide C, by unit | C49: units per acre | G49: $ per unit
A50: Other herbicide D, by unit | C50: units per acre | G50: $ per unit
A51: Herbicide notes
A52: Sub-total per acre | B52: =Output!E22 -> 55
A54: Insecticide, fungicide (not application) | B54: Rate | C54: Rate units | F54: Price | G54: Price units
A55: Treatment A, by trip | C55: trips per acre | G55: $ per trip
A56: Treatment B, by trip | C56: trips per acre | G56: $ per trip
A57: Treatment C, by unit | C57: units per acre | G57: $ per unit | AA57: 1 | AB57: 1 | AC57: 1 | AD57: 1 | AE57: 1 | AF57: 1 | AG57: 1
A58: Treatment D, by unit | C58: units per acre | G58: $ per unit | AA58: 1 | AB58: 1 | AC58: 1 | AD58: 1 | AE58: 1 | AF58: 1 | AG58: 1
A59: Insecticide, fungicide notes
A60: Sub-total per acre | B60: =Output!E23 -> 0
A62: Labor input | B62: Value | D62: Rate units
A63: All labor except field hours | B63: 0.5 | D63: hours per acre
A64: Non-field labor, rate | B64: 17.5 | D64: $ per hour
A65: Skilled machinery labor, rate | B65: 23 | D65: $ per hour
A66: Sub-total per acre | B66: =Input!B63*Input!B64 -> 8.75
A68: Irrigation | B68: Value | D68: Units | AG68: 1
A69: Irrigation labor, hours | D69: hours per acre | AG69: 1
A70: Irrigation water applied | D70: acre-inch | AG70: 1
A71: Irrigation energy cost | D71: $ per acre inch | AG71: 1
A72: Sub-total | B72: ='Machinery Cost'!I50 -> 22 | AG72: 1
AG73: 1
A74: Land costs | B74: Value | D74: Units
A75: Market value | B75: 4800 | D75: $ per acre
A76: Capitalization rate | B76: 3.5 | D76: percent
A77: Real estate/levee taxes | D77: $ per acre
A78: Cash rent or equivalent | D78: $ per acre
A79: Landowner liability insurance | D79: $ per acre
A80: Sub-total per acre | B80: =B75*B76*0.01+B77 -> 168
A82: Other input items | B82: Value | D82: Units
A83: Operating interest rate | B83: 4.9 | D83: percent
A84: Fuel price (farm diesel) | B84: 2.91 | D84: $ per gallon
A85: Fuel price (pickup) | B85: 3.08 | D85: $ per gallon
A86: Crop supplies, soil tests, etc. | B86: 3.5 | D86: $ per acre
A87: Crop scouting and consultant fees | D87: $ per acre
A88: Crop insurance premium | B88: 17 | D88: $ per acre
A89: Other direct crop expense | D89: $ per acre
A91: Farm business overhead | B91: Value
A92: Liability/peril insurance, not equipment | D92: $ for farm
A93: Farm utilities, not drying | D93: $ for farm
A94: Other (accounting, dues, office, etc.) | B94: 10000 | D94: $ for farm
A95: Allocate above overhead costs to crop | B95: 40 | D95: percent
A96: Sub-total per acre | B96: =(SUM(B92:B94)*B95/100)/acres -> 4
A98: Light vehicle | B98: Value
A99: Farm pickup mileage, all uses | B99: 15000 | D99: miles per year
A100: Farm pickup cost allocation for this crop | B100: 40 | D100: percent
A101: Sub-total per acre | B101: ='Machinery Cost'!I53 -> 3.760474613
A103: Post Harvest: store, dry, hedge, haul to bin and/or terminal
A104: Share of crop sold at harvest | D104: percent
A105: Rent storage on remainder | D105: months | G105: ="$ per "& VLOOKUP(primyield,MDB!K157:M160,3) &" per mon" -> $ per bushel per mon
A106: Drying: water removed and propane price | D106: % points H20 | G106: propane, $ per gallon | AB106: 1
A107: Hedging, brokerage fees | D107: $ per bushel | AB107: 1
A108: Ten wheeler cost allocation this crop | B108: 15 | D108: percent | F108: 12500 | H108: miles per year
A109: Semi truck-trailer cost allocation this crop | B109: 20 | D109: percent | F109: 12500 | H109: miles per year
A110: Sub-total per acre | B110: =(B105*F105+B107)*yield*(100-B104)/100+MDB!C172+'Machinery Cost'!I51+'Machinery Cost'!I52 -> 5.472021667
A112: Custom Hire Activity: Includes labor and equipment
A113: Hire custom work | B113: Value | D113: Units | F113: Passes
A114: Hire dry fertilizer application | B114: 6 | D114: $ per acre | F114: 1 | H114: trips per acre
A115: Hire herbicide application | D115: $ per acre | H115: trips per acre
A116: Hire insecticide/fungicide application | D116: $ per acre | H116: trips per acre
A117: Hire aerial spraying | D117: $ per acre | H117: trips per acre
A118: Hire silo filling (chop & haul) | D118: ="$ per " & VLOOKUP(MDB!$C$159,MDB!$K$157:$M$160,3) -> $ per bushel | F118: 1 | AA118: 1 | AC118: 1 | AD118: 1 | AE118: 1 | AF118: 1
A119: Hire silage hauling | D119: ="$ per " & VLOOKUP(MDB!$C$159,MDB!$K$157:$M$160,3) -> $ per bushel | F119: 1 | AA119: 1 | AC119: 1 | AD119: 1 | AE119: 1 | AF119: 1
A120: Hire straw hauling | D120: ="$ per " & VLOOKUP(MDB!$C$160,MDB!$K$157:$M$160,3) -> $ per bushel | AA120: 1 | AB120: 1 | AC120: 1 | AD120: 1 | AE120: 1
A121: Hire custom combining, acre | D121: $ per acre | F121: 1 | AB121: 1
A122: ="Hire custom combining, " & VLOOKUP(MDB!C159,MDB!K157:M160,3) -> Hire custom combining, bushel | D122: ="$ per " & VLOOKUP(MDB!$C$159,MDB!$K$157:$M$160,3) -> $ per bushel | F122: 1 | AB122: 1
A123: Hire short distance grain hauling | D123: ="$ per " & VLOOKUP(MDB!$C$159,MDB!$K$157:$M$160,3) -> $ per bushel | H123: percent hauled | AB123: 1
A124: Hire long distance grain hauling, semi | D124: loaded mile/trip | H124: percent hauled | AB124: 1
A125: Other machine hire | D125: $ per acre | H125: trips per acre
A126: Other machine hire | D126: $ per acre | H126: trips per acre
A128: CROP SHARES
A129: Crop share arrangements | B129: Lndlrd share | F129: $ per acre
A130: Production returns | D130: percent | F130: =Output!F8+Output!F9 -> 662.75
A131: Farm program payments | D131: percent | F131: =Output!F10 -> 0
A132: Other income | D132: percent | F132: =Output!F11 -> 0
A133: Seed costs | D133: percent | F133: =Output!F15 -> 65.73333333
A134: Fertilizer costs | D134: percent | F134: =Output!F16 -> 88.8
A135: Herbicide costs | D135: percent | F135: =Output!E22 -> 55
A136: Insecticide/fungicide costs | D136: percent | F136: =Output!E23 -> 0
A137: Custom hire costs | D137: percent | F137: =SUMPRODUCT(Input!B114:B117,Input!F114:F117)+Input!B121+SUMPRODUCT(Input!B125:'Input'!B126,Input!F125:F126)+SUM(Input!B118+Input!B119+Input!B122+Input!B123*Input!F123*0.01)*Input!B13+Input!B124*Input!F124*0.01*MDB!C152 -> 6
A138: Power unit fuel costs | D138: percent | F138: =SUMPRODUCT('Machinery Cost'!H7:H53,'Machinery Cost'!O7:O53) -> 15.05794439
A139: Irrigation energy costs | D139: percent | F139: =B70*B71 -> 0 | AG139: 1
A140: Charge landlord at a custom rate | D140: ="$ per " & VLOOKUP(MDB!$C$159,MDB!$K$157:$M$160,3) -> $ per bushel
A142: Owned and/or Rented Equipment, Operator labor
A143: Tractors:
A148: Tillage equipment | B148: Size | D148: Power | F148: Passes | H148: Rental fee
A149: Chisel plow | B149: 15 ft | E149: 0 | F149: 0 | H149: 0 | AH149: 1
A150: Chisel plow, front disk | B150: 16.3 ft | E150: 0 | F150: 0 | H150: 0 | AH150: 2
A151: Moldboard plow | B151: 6 ft | E151: 0 | F151: 0 | H151: 0 | AH151: 3
A152: Field cultivator | B152: 35 ft | E152: 0 | F152: 0 | H152: 0 | AH152: 4
A153: Tandem disk | B153: 30 ft | D153: 360 4WD | E153: 0 | F153: 1 | H153: 0 | AH153: 5
A154: V-Ripper | B154: 30" O.C., 17 ft | E154: 0 | F154: 0 | H154: 0 | AH154: 6
A155: Combo field cultivator incorporate | B155: 16 ft | E155: 0 | F155: 0 | H155: 0 | AH155: 7
A156: Combo disk and v-ripper | B156: 17.5 ft | E156: 0 | F156: 0 | H156: 0 | AH156: 8
A157: Disk, field cultivator finish | B157: 22 ft | E157: 0 | F157: 0 | H157: 0 | AH157: 9
A158: Roller harrow | B158: 12 ft | E158: 0 | F158: 0 | H158: 0 | AH158: 10
A159: Planting equipment | B159: Size | D159: Power | F159: Passes | H159: Rental fee
A160: Row crop planter | B160: 16 row | D160: 225 MFWD | E160: 0 | F160: 1 | H160: 0 | AE160: 1 | AF160: 1 | AH160: 11
A161: Split row no-till planter | B161: (16/31 row 30/15") | D161: 225 MFWD | E161: 0 | F161: 0 | H161: 0 | AH161: 12
A162: No-till planter | B162: 6 row | E162: 0 | F162: 0 | H162: 0 | AH162: 13
A163: Presswheel drill | B163: 16 ft | E163: 0 | F163: 0 | H163: 0 | AA163: 1 | AB163: 1 | AC163: 1 | AH163: 14
A164: No-till drill | B164: 15 ft | E164: 0 | F164: 0 | H164: 0 | AA164: 1 | AB164: 1 | AH164: 15
A165: Crop maintenance equipment | B165: Size | D165: Power | F165: Passes | H165: Rental fee
A166: Row cultivator | B166: 6 row | E166: 0 | F166: 0 | H166: 0 | AE166: 1 | AF166: 1 | AH166: 17
A167: Row cultivator-high residue | B167: 6 row | E167: 0 | F167: 0 | H167: 0 | AE167: 1 | AF167: 1 | AH167: 18
A168: Rotary hoe | B168: 21 ft | E168: 0 | F168: 0 | H168: 0 | AH168: 19
A169: Rotary mower (ditches) | B169: 15 ft | E169: 0 | F169: 0 | H169: 0 | AH169: 20
A170: Boom sprayer, pull type | B170: 90 ft | D170: 130 MFWD | E170: 0 | F170: 2 | H170: 0 | AH170: 21
A171: Boom sprayer, self propelled | B171: 60 ft | D171: --- | E171: 0 | F171: 0 | H171: 0 | AH171: 22
A172: Anhydrous applicator | B172: 21 ft | E172: 0 | F172: 0 | H172: 0 | AD172: 1 | AE172: 1 | AF172: 1 | AH172: 23
A173: Fertilizer spreader, pull-type | B173: 4 T (40 ft) | E173: 0 | F173: 0 | H173: 0 | AH173: 24
A174: Harvest equipment | B174: Size | D174: Power | F174: Passes | H174: Rental fee
A175: Disc mower | B175: 7 ft swath | E175: 0 | F175: 0 | H175: 0 | AA175: 1 | AB175: 1 | AC175: 1 | AD175: 1 | AE175: 1 | AH175: 25
A176: Disk mower-conditioner | B176: 6 ft | E176: 0 | F176: 0 | H176: 0 | AA176: 1 | AB176: 1 | AC176: 1 | AD176: 1 | AE176: 1 | AH176: 26
A177: Swather (haybine) mower-conditioner | B177: 7 ft swath | E177: 0 | F177: 0 | H177: 0 | AA177: 1 | AB177: 1 | AC177: 1 | AD177: 1 | AE177: 1 | AH177: 27
A178: Hay tedder | B178: --- | E178: 0 | F178: 0 | H178: 0 | AA178: 1 | AB178: 1 | AC178: 1 | AD178: 1 | AE178: 1 | AH178: 28
A179: Wheel rake, V hitch | B179: 10 wheel, 20 ft | E179: 0 | F179: 0 | H179: 0 | AA179: 1 | AB179: 1 | AC179: 1 | AD179: 1 | AE179: 1 | AH179: 29
A180: Roller bar rake (basket) | B180: 9.5 ft | E180: 0 | F180: 0 | H180: 0 | AA180: 1 | AB180: 1 | AC180: 1 | AD180: 1 | AE180: 1 | AH180: 30
A181: Hay windrow merger (inverter) | B181: 20 ft | E181: 0 | F181: 0 | H181: 0 | AA181: 1 | AB181: 1 | AC181: 1 | AD181: 1 | AE181: 1 | AH181: 31
A182: Small square baler | B182: 6 ft pickup | E182: 0 | F182: 0 | H182: 0 | AA182: 1 | AB182: 1 | AC182: 1 | AD182: 1 | AE182: 1 | AH182: 32
A183: Round baler, tie | B183: 1000 lb | E183: 0 | F183: 0 | H183: 0 | AA183: 1 | AB183: 1 | AC183: 1 | AD183: 1 | AE183: 1 | AH183: 33
A184: Round baler, net wrap | B184: 1000 Lb | E184: 0 | F184: 0 | H184: 0 | AA184: 1 | AB184: 1 | AC184: 1 | AD184: 1 | AE184: 1 | AH184: 34
A185: Large rectangular baler | B185: --- | E185: 0 | F185: 0 | H185: 0 | AA185: 1 | AB185: 1 | AC185: 1 | AD185: 1 | AE185: 1 | AF185: 1 | AH185: 35
A186: Silage chopper, pull type, corn head | B186: 2 row | E186: 0 | F186: 0 | H186: 0 | AA186: 1 | AC186: 1 | AD186: 1 | AE186: 1 | AH186: 36
A187: Bale wagon/stacker, pull-type | B187: 3 ton | E187: 0 | F187: 0 | H187: 0 | AA187: 1 | AB187: 1 | AC187: 1 | AD187: 1 | AE187: 1 | AH187: 37
F188: 0
F189: 0
F190: 0
F191: 0
A192: Stalk shredder | B192: 20 ft | E192: 0 | F192: 0 | H192: 0 | AB192: 1 | AD192: 1 | AE192: 1 | AF192: 1 | AH192: 38
A193: Combine, fixed grain head | B193: 15 ft | D193: 275 HP Comb. | E193: 0 | F193: 0 | H193: 0 | AA193: 1 | AB193: 1 | AD193: 1 | AH193: 39
A194: Combine, flexible grain head | B194: 25 ft | D194: 275 HP Comb. | E194: 0 | F194: 1 | H194: 0 | AA194: 1 | AB194: 1 | AC194: 1 | AE194: 1 | AF194: 1 | AH194: 40
A195: Combine, corn head | B195: 8 row | D195: 275 HP Comb. | E195: 0 | F195: 0 | H195: 0 | AB195: 1 | AC195: 1 | AD195: 1 | AE195: 1 | AF195: 1 | AH195: 41
A196: Grain cart | B196: 500 bushel | C196: 0 | D196: 225 MFWD | AB196: 1
A197: Grain auger, 10 inch, 5000 bu/hr | C197: 0 | D197: 130 MFWD | AB197: 1
A199: End of Screen

Sheet Irrigated Corn 2022 (hidden)
A1: Typical | G1: 2021-10-14
A3: Corn, grain | B3: 2022 Irrigated
A4: Irrigated
A5: Owned land
E6: Business
A7: Income per acre | B7: Units | C7: Yield | D7: Price | E7: total
A8: Primary crop | B8: bushels | C8: 215 | D8: 4.6 | E8: 989
A9: By product crop | B9: bushels | C9: 0 | D9: 0 | E9: 0
A10: Net payments (fixed) | E10: 0
A11: Other income | E11: 0
A12: Total income per acre | E12: 989
A14: Operating costs per acre
A15: Seed | E15: 110
A16: Fertilizer | E16: 221.51
A17: Nitrogen | D17: 107.5
A18: Phosphorus | D18: 63.05
A19: Potassium | D19: 35.96
A20: Other soil amendments | D20: 15
A21: Crop protection | E21: 49
A22: Herbicide | D22: 49
A23: Insect-fungicide, none | D23: 0
A24: Crop supplies, storage, and marketing | E24: 4
A25: Crop consulting and insurance | E25: 26
A26: Custom hire and rental | E26: 6
A27: Machinery fuel, drying, and irrigation energy | E27: 90.07303084
A28: Machinery repairs and maintenance | E28: 60.9074716
A29: Operator and hired labor | E29: 28.40505727
A30: Other expense | E30: 0
A31: Operating interest | E31: 14.59944121
A32: Operating costs per acre | E32: 610.4950009
A34: Ownership costs per acre1
A35: Farm business overhead | E35: 3.125
A36: Machinery overhead | E36: 49.98451038
A37: Machinery depreciation | E37: 63.44777463
A38: Real estate charge | E38: 227.5
A39: Ownership costs per acre | E39: 344.057285
A41: Total costs per acre | E41: 954.5522859
A43: Income over operating costs per acre | E43: 378.5049991
A44: Income over total costs per acre | E44: 34.44771408
C46: Operating costs per bushel | E46: 2.839511632
C47: Ownership costs per bushel | E47: 1.600266442
C48: Total costs per bushel | E48: 4.439778074
A51: Detailed Report | B51: Corn, grain | E51: 2022 Irrigated | G51: 2021-10-14
A53: Selected input quantities | B53: per acre | E53: Selected input prices | G53: $ per unit
A54: Yield, bushels | B54: 215 | E54: Farm diesel, per gallon | G54: 2.91
A55: Seeding rate, count | B55: 32000 | E55: Operating interest, % | G55: 4.9
A56: Nitrogen rate, lbs | B56: 215 | E56: Nitrogen, per lb | G56: 0.5
A57: Phosphorus rate, lbs | B57: 97 | E57: Phosphorus, per lb | G57: 0.65
A58: Potassium rate, lbs | B58: 62 | E58: Potassium, per lb | G58: 0.58
A59: Lime rate, tons | B59: 0.6 | E59: Lime, per ton | G59: 25
A60: Sum of allocated labor, hours | B60: 1.518323701 | E60: Skilled labor, per hour | G60: 23
A61: Irrigation, inches | B61: 6 | E61: Land value, per acre | G61: 6500
B65: Labor | C65: Fuel | D65: Operating | E65: Ownership | F65: Total
B66: Hours | C66: Gallons | D66: Costs2 | E66: Costs3 | F66: Costs | G66: Trips
A67: Machine activity (not custom) | B67: per acre | C67: per acre | D67: $ per acre | E67: $ per acre | F67: $ per acre | G67: per acre
A68: Field cultivator (35 ft); 360 4WD | B68: 0.03961584634 | C68: 0.627515006 | D68: 3.630028917 | E68: 4.868227593 | F68: 8.498256509 | G68: 1
A69: V-Ripper 30" O.C., (17 ft); 360 4WD | B69: 0.02854424358 | C69: 0.4521408183 | D69: 2.394595433 | E69: 5.75497431 | F69: 8.149569743 | G69: 0.3
A70: Split row no-till planter (16/31 row 30/15"); 225 MFWD | B70: 0.05357142857 | C70: 0.5303571429 | D70: 5.12825866 | E70: 12.01756956 | F70: 17.14582822 | G70: 1
A71: Boom sprayer (90 ft); 130 MFWD | B71: 0.04339336082 | C71: 0.2482100239 | D71: 2.997799089 | E71: 4.669904535 | F71: 7.667703623 | G71: 2
A72: Anhydrous applicator (21 ft); 225 MFWD | B72: 0.08928571429 | C72: 0.8839285714 | D72: 5.870086411 | E72: 7.230237853 | F72: 13.10032426 | G72: 1
A73: Combine, corn head (8 row); 275 HP Comb. | B73: 0.147275405 | C73: 1.782032401 | D73: 22.66089102 | E73: 17.74136966 | F73: 40.40226068 | G73: 1
A74: Grain cart (500 bushel); 225 MFWD | B74: 0.0736377025 | C74: 0.7290132548 | D74: 5.170865243 | E74: 8.187776141 | F74: 13.35864138
A75: Grain auger 10 in- 5000 bu/hr (70 ft); 130 MFWD | B75: 0.043 | C75: 0.24596 | D75: 1.88176514 | E75: 1.71613 | F75: 3.59789514
A76: Irrigation; | B76: 0.5 | D76: 61.43 | E76: 44 | F76: 105.43 | G76: 1
A77: 10 Wheeler | C77: 1.40625 | D77: 5.1103125 | E77: 1.44848625 | F77: 6.55879875
A78: Semi, tractor and trailer | C78: 1.004464286 | D78: 6.2634375 | E78: 4.200375 | F78: 10.4638125
A79: Pickup truck | C79: 0.2604166667 | D79: 1.334119792 | E79: 1.597234109 | F79: 2.931353901
A80: Total | B80: 1.018323701 | C80: 8.17028817 | D80: 123.8721597 | E80: 113.432285 | F80: 237.3044447 | G80: 7.3
A101: 1 Farm business overhead includes liability insurance, utilities, accounting, etc. Machinery overhead is the sum of opportunity interest,
A102: property taxes, insurance, and housing. Machinery depreciation is a market value decline due to aging and usage. Thus, a portion of
A103: depreciation should be considered an operating costs for some decisions. Real estate charge includes land, improvements, taxes.
A104: Economic costs may differ from rental rates.
A105: 2 Machinery operating cost is the sum of fuel, repairs, maintenance, and the value of labor.
A106: 3 Machinery ownership cost is the sum of machinery overhead and depreciation (see page 1).
A1000: Start
A1001: cropnum-22706 | B1001: 1
A1002: primyieldtype-22706 | B1002: 1
A1003: byyieldtype-22706 | B1003: 1
A1004: irrigation2-22706 | B1004: 1
A1005: leasenum-22706 | B1005: 1
A1006: 40hp-22706 | B1006: 0
A1007: 60hp-22706 | B1007: 0
A1008: 75hp-22706 | B1008: 0
A1009: 105twd-22706 | B1009: 0
A1010: 140twd-22706 | B1010: 0
A1011: 105mfwd-22706 | B1011: 0
A1012: 130mfwd-22706 | B1012: TRUE
A1013: 160mfwd-22706 | B1013: FALSE
A1014: 200mfwd-22706 | B1014: FALSE
A1015: 225mfwd-22706 | B1015: TRUE
A1016: 2604wd-22706 | B1016: 0
A1017: 3104wd-22706 | B1017: FALSE
A1018: 360 4wd-22706 | B1018: TRUE
A1019: 4254wd-22706 | B1019: 0
A1020: 225tt-22706 | B1020: 0
A1021: 425tt-22706 | B1021: 0
A1022: description-1-22706 | B1022: 2022 Irrigated
A1023: acres-1-22706 | B1023: 160
A1024: receipts-1-22706 | B1024: 215
A1025: receipts-2-22706 | B1025: 4.6
A1026: receipts-3-22706 | B1026: 0
A1027: receipts-4-22706 | B1027: 0
A1028: receipts-5-22706 | B1028: 0
A1029: receipts-6-22706 | B1029: 0
A1030: seed1-1-22706 | B1030: 275
A1031: seed1-2-22706 | B1031: 0
A1032: seed1-3-22706 | B1032: 0
A1033: seed1-4-22706 | B1033: 0
A1034: seed1-5-22706 | B1034: 0
A1035: seed1-6-22706 | B1035: 0
A1036: seed2-1-22706 | B1036: 32000
A1037: seed2-2-22706 | B1037: 0
A1038: seed2-3-22706 | B1038: 0
A1039: seed2-4-22706 | B1039: 0
A1040: seed2-5-22706 | B1040: 0
A1041: seed2-6-22706 | B1041: 0
A1042: fertilizer1-1-22706 | B1042: 215
A1043: fertilizer1-2-22706 | B1043: 0
A1044: fertilizer1-3-22706 | B1044: 0
A1045: fertilizer1-4-22706 | B1045: 97
A1046: fertilizer1-5-22706 | B1046: 62
A1047: fertilizer1-6-22706 | B1047: 0.6
A1048: fertilizer1-7-22706 | B1048: 0
A1049: fertilizer1-8-22706 | B1049: 0
A1050: fertilizer2-1-22706 | B1050: 0.5
A1051: fertilizer2-2-22706 | B1051: 0
A1052: fertilizer2-3-22706 | B1052: 0
A1053: fertilizer2-4-22706 | B1053: 0.65
A1054: fertilizer2-5-22706 | B1054: 0.58
A1055: fertilizer2-6-22706 | B1055: 25
A1056: fertilizer2-7-22706 | B1056: 0
A1057: fertilizer2-8-22706 | B1057: 0
A1058: herbicide1-1-22706 | B1058: 0
A1059: herbicide1-2-22706 | B1059: 0
A1060: herbicide1-3-22706 | B1060: 0
A1061: herbicide1-4-22706 | B1061: 0
A1062: herbicide1-5-22706 | B1062: 2
A1063: herbicide1-6-22706 | B1063: 0
A1064: herbicide1-7-22706 | B1064: 0
A1065: herbicide1-8-22706 | B1065: 0
A1066: herbicide2-1-22706 | B1066: 0
A1067: herbicide2-2-22706 | B1067: 0
A1068: herbicide2-3-22706 | B1068: 0
A1069: herbicide2-4-22706 | B1069: 0
A1070: herbicide2-5-22706 | B1070: 24.5
A1071: herbicide2-6-22706 | B1071: 0
A1072: herbicide2-7-22706 | B1072: 0
A1073: herbicide2-8-22706 | B1073: 0
A1074: herbicide2-9-22706 | B1074: 0
A1075: insecticide1-1-22706 | B1075: 0
A1076: insecticide1-2-22706 | B1076: 0
A1077: insecticide1-3-22706 | B1077: 0
A1078: insecticide1-4-22706 | B1078: 0
A1079: insecticide2-1-22706 | B1079: 0
A1080: insecticide2-2-22706 | B1080: 0
A1081: insecticide2-3-22706 | B1081: 0
A1082: insecticide2-4-22706 | B1082: 0
A1083: insecticide2-5-22706 | B1083: none
A1084: labor-1-22706 | B1084: 0.5
A1085: labor-2-22706 | B1085: 17.5
A1086: labor-3-22706 | B1086: 23
A1087: irrigation1-1-22706 | B1087: 0.5
A1088: irrigation1-2-22706 | B1088: 6
A1089: irrigation1-3-22706 | B1089: 3.18
A1090: land-1-22706 | B1090: 6500
A1091: land-2-22706 | B1091: 3.5
A1092: land-3-22706 | B1092: 0
A1093: land-3-9106 | B1093: 0
A1094: land-4-22706 | B1094: 0
A1095: otheritems1-1-22706 | B1095: 4.9
A1096: otheritems1-2-22706 | B1096: 2.91
A1097: otheritems1-3-22706 | B1097: 3.08
A1098: otheritems1-4-22706 | B1098: 4
A1099: otheritems1-5-22706 | B1099: 0
A1100: otheritems1-6-22706 | B1100: 26
A1101: otheritems1-7-22706 | B1101: 0
A1102: postharvest-1-22706 | B1102: 0
A1103: postharvest-2-22706 | B1103: 0
A1104: postharvest-3-22706 | B1104: 3
A1105: postharvest-4-22706 | B1105: 0
A1106: postharvest-5-22706 | B1106: 9
A1107: postharvest-6-22706 | B1107: 9
A1108: postharvest-7-22706 | B1108: 0
A1109: postharvest-8-22706 | B1109: 2.34
A1110: postharvest-9-22706 | B1110: 12500
A1111: postharvest-10-22706 | B1111: 12500
A1112: overhead-1-22706 | B1112: 0
A1113: overhead-2-22706 | B1113: 0
A1114: overhead-3-22706 | B1114: 10000
A1115: overhead-4-22706 | B1115: 5
A1116: overhead-5-22706 | B1116: 15000
A1117: overhead-6-22706 | B1117: 5
A1118: landlord_share-1-22706 | B1118: 0
A1119: landlord_share-2-22706 | B1119: 0
A1120: landlord_share-3-22706 | B1120: 0
A1121: landlord_share-4-22706 | B1121: 0
A1122: landlord_share-5-22706 | B1122: 0
A1123: landlord_share-6-22706 | B1123: 0
A1124: landlord_share-7-22706 | B1124: 0
A1125: landlord_share-8-22706 | B1125: 0
... 170 more rows

Sheet Double crop soybeans 2022 (hidden)
A1: Typical | G1: 2021-10-14
A3: Soybeans, double crop | B3: 2022 Double Crop Beans
A4: Dryland
A5: Owned land
E6: Business
A7: Income per acre | B7: Units | C7: Yield | D7: Price | E7: total
A8: Primary crop | B8: bushels | C8: 35 | D8: 12.05 | E8: 421.75
A9: By product crop | B9: bushels | C9: 0 | D9: 0 | E9: 0
A10: Net payments (fixed) | E10: 0
A11: Other income | E11: 0
A12: Total income per acre | E12: 421.75
A14: Operating costs per acre
A15: Seed | E15: 77.33333333
A16: Fertilizer | E16: 48.43
A17: Nitrogen | D17: 0
A18: Phosphorus | D18: 18.85
A19: Potassium | D19: 29.58
A20: Other soil amendments | D20: 0
A21: Crop protection | E21: 10
A22: Herbicide | D22: 10
A23: Insect-fungicide | D23: 0
A24: Crop supplies, storage, and marketing | E24: 0
A25: Crop consulting and insurance | E25: 0
A26: Custom hire and rental | E26: 0
A27: Machinery fuel, drying, and irrigation energy | E27: 8.782330856
A28: Machinery repairs and maintenance | E28: 15.72015587
A29: Operator and hired labor | E29: 13.18503575
A30: Other expense | E30: 0
A31: Operating interest | E31: 4.249545967
A32: Operating costs per acre | E32: 177.7004018
A34: Ownership costs per acre1
A35: Farm business overhead | E35: 5
A36: Machinery overhead | E36: 12.10589461
A37: Machinery depreciation | E37: 20.15247295
A38: Real estate charge | E38: 0
A39: Ownership costs per acre | E39: 37.25836756
A41: Total costs per acre | E41: 214.9587693
A43: Income over operating costs per acre | E43: 244.0495982
A44: Income over total costs per acre | E44: 206.7912307
C46: Operating costs per bushel | E46: 5.077154337
C47: Ownership costs per bushel | E47: 1.064524787
C48: Total costs per bushel | E48: 6.141679124
A51: Detailed Report | B51: Soybeans, double crop | E51: 2022 Double Crop Beans | G51: 2021-10-14
A53: Selected input quantities | B53: per acre | E53: Selected input prices | G53: $ per unit
A54: Yield, bushels | B54: 35 | E54: Farm diesel, per gallon | G54: 2.91
A55: Seeding rate, count | B55: 200000 | E55: Operating interest, % | G55: 4.9
A56: Nitrogen rate, lbs | B56: 0 | E56: Nitrogen, per lb | G56: 0
A57: Phosphorus rate, lbs | B57: 29 | E57: Phosphorus, per lb | G57: 0.65
A58: Potassium rate, lbs | B58: 51 | E58: Potassium, per lb | G58: 0.58
A59: Lime rate, tons | B59: 0 | E59: Lime, per ton | G59: 0
A60: Sum of allocated labor, hours | B60: 0.6945015545 | E60: Skilled labor, per hour | G60: 23
A61: Irrigation, inches | B61: 0 | E61: Land value, per acre | G61: 4400
B65: Labor | C65: Fuel | D65: Operating | E65: Ownership | F65: Total
B66: Hours | C66: Gallons | D66: Costs2 | E66: Costs3 | F66: Costs | G66: Trips
A67: Machine activity (not custom) | B67: per acre | C67: per acre | D67: $ per acre | E67: $ per acre | F67: $ per acre | G67: per acre
A68: Row crop planter (16 row); 225 MFWD | B68: 0.05357142857 | C68: 0.5303571429 | D68: 5.688590179 | E68: 12.48357143 | F68: 18.17216161 | G68: 1
A69: Boom sprayer (90 ft); 130 MFWD | B69: 0.02169668041 | C69: 0.1241050119 | D69: 1.498899544 | E69: 2.961612063 | F69: 4.460511608 | G69: 1
A70: Combine, flexible grain head (30 ft); 275 HP Comb. | B70: 0.1122334456 | C70: 1.358024691 | D70: 17.04556117 | E70: 12.62937149 | F70: 29.67493266 | G70: 1
A71: Grain auger 10 in- 5000 bu/hr (70 ft); 360 4WD | B71: 0.007 | C71: 0.11088 | D71: 0.54787992 | E71: 0.6251 | F71: 1.17297992
A72: 10 Wheeler | C72: 0.25 | D72: 0.9085 | E72: 0.2572046667 | F72: 1.165704667
A73: Semi, tractor and trailer | C73: 0.1785714286 | D73: 1.1135 | E73: 0.7459333333 | F73: 1.859433333
A74: Pickup truck | C74: 0.4166666667 | D74: 2.134591667 | E74: 2.555574575 | F74: 4.690166242
A75: Total | B75: 0.1945015545 | C75: 2.968604941 | D75: 28.93752248 | E75: 32.25836756 | F75: 61.19589004 | G75: 3
A101: 1 Farm business overhead includes liability insurance, utilities, accounting, etc. Machinery overhead is the sum of opportunity interest,
A102: property taxes, insurance, and housing. Machinery depreciation is a market value decline due to aging and usage. Thus, a portion of
A103: depreciation should be considered an operating costs for some decisions. Real estate charge includes land, improvements, taxes.
A104: Economic costs may differ from rental rates.
A105: 2 Machinery operating cost is the sum of fuel, repairs, maintenance, and the value of labor.
A106: 3 Machinery ownership cost is the sum of machinery overhead and depreciation (see page 1).
A1000: Start
A1001: cropnum-22706 | B1001: 5
A1002: primyieldtype-22706 | B1002: 1
A1003: byyieldtype-22706 | B1003: 1
A1004: irrigation2-22706 | B1004: 2
A1005: leasenum-22706 | B1005: 1
A1006: 40hp-22706 | B1006: 0
A1007: 60hp-22706 | B1007: 0
A1008: 75hp-22706 | B1008: 0
A1009: 105twd-22706 | B1009: 0
A1010: 140twd-22706 | B1010: 0
A1011: 105mfwd-22706 | B1011: 0
A1012: 130mfwd-22706 | B1012: TRUE
A1013: 160mfwd-22706 | B1013: 0
A1014: 200mfwd-22706 | B1014: FALSE
A1015: 225mfwd-22706 | B1015: TRUE
A1016: 2604wd-22706 | B1016: 0
A1017: 3104wd-22706 | B1017: FALSE
A1018: 360 4wd-22706 | B1018: TRUE
A1019: 4254wd-22706 | B1019: 0
A1020: 225tt-22706 | B1020: 0
A1021: 425tt-22706 | B1021: 0
A1022: description-1-22706 | B1022: 2022 Double Crop Beans
A1023: acres-1-22706 | B1023: 100
A1024: receipts-1-22706 | B1024: 35
A1025: receipts-2-22706 | B1025: 12.05
A1026: receipts-3-22706 | B1026: 0
A1027: receipts-4-22706 | B1027: 0
A1028: receipts-5-22706 | B1028: 0
A1029: receipts-6-22706 | B1029: 0
A1030: seed1-1-22706 | B1030: 0
A1031: seed1-2-22706 | B1031: 58
A1032: seed1-3-22706 | B1032: 0
A1033: seed1-4-22706 | B1033: 0
A1034: seed1-5-22706 | B1034: 0
A1035: seed1-6-22706 | B1035: 0
A1036: seed2-1-22706 | B1036: 0
A1037: seed2-2-22706 | B1037: 200000
A1038: seed2-3-22706 | B1038: 0
A1039: seed2-4-22706 | B1039: 0
A1040: seed2-5-22706 | B1040: 0
A1041: seed2-6-22706 | B1041: 0
A1042: fertilizer1-1-22706 | B1042: 0
A1043: fertilizer1-2-22706 | B1043: 0
A1044: fertilizer1-3-22706 | B1044: 0
A1045: fertilizer1-4-22706 | B1045: 29
A1046: fertilizer1-5-22706 | B1046: 51
A1047: fertilizer1-6-22706 | B1047: 0
A1048: fertilizer1-7-22706 | B1048: 0
A1049: fertilizer1-8-22706 | B1049: 0
A1050: fertilizer2-1-22706 | B1050: 0
A1051: fertilizer2-2-22706 | B1051: 0
A1052: fertilizer2-3-22706 | B1052: 0
A1053: fertilizer2-4-22706 | B1053: 0.65
A1054: fertilizer2-5-22706 | B1054: 0.58
A1055: fertilizer2-6-22706 | B1055: 0
A1056: fertilizer2-7-22706 | B1056: 0
A1057: fertilizer2-8-22706 | B1057: 0
A1058: herbicide1-1-22706 | B1058: 0
A1059: herbicide1-2-22706 | B1059: 0
A1060: herbicide1-3-22706 | B1060: 0
A1061: herbicide1-4-22706 | B1061: 1
A1062: herbicide1-5-22706 | B1062: 0
A1063: herbicide1-6-22706 | B1063: 0
A1064: herbicide1-7-22706 | B1064: 0
A1065: herbicide1-8-22706 | B1065: 0
A1066: herbicide2-1-22706 | B1066: 0
A1067: herbicide2-2-22706 | B1067: 0
A1068: herbicide2-3-22706 | B1068: 0
A1069: herbicide2-4-22706 | B1069: 10
A1070: herbicide2-5-22706 | B1070: 0
A1071: herbicide2-6-22706 | B1071: 0
A1072: herbicide2-7-22706 | B1072: 0
A1073: herbicide2-8-22706 | B1073: 0
A1074: herbicide2-9-22706 | B1074: 0
A1075: insecticide1-1-22706 | B1075: 0
A1076: insecticide1-2-22706 | B1076: 0
A1077: insecticide1-3-22706 | B1077: 0
A1078: insecticide1-4-22706 | B1078: 0
A1079: insecticide2-1-22706 | B1079: 0
A1080: insecticide2-2-22706 | B1080: 0
A1081: insecticide2-3-22706 | B1081: 0
A1082: insecticide2-4-22706 | B1082: 0
A1083: insecticide2-5-22706 | B1083: 0
A1084: labor-1-22706 | B1084: 0.5
A1085: labor-2-22706 | B1085: 17.5
A1086: labor-3-22706 | B1086: 23
A1087: irrigation1-1-22706 | B1087: 0
A1088: irrigation1-2-22706 | B1088: 0
A1089: irrigation1-3-22706 | B1089: 0
A1090: land-1-22706 | B1090: 4400
A1091: land-2-22706 | B1091: 0
A1092: land-3-22706 | B1092: 0
A1093: land-3-9106 | B1093: 0
A1094: land-4-22706 | B1094: 0
A1095: otheritems1-1-22706 | B1095: 4.9
A1096: otheritems1-2-22706 | B1096: 2.91
A1097: otheritems1-3-22706 | B1097: 3.08
A1098: otheritems1-4-22706 | B1098: 0
A1099: otheritems1-5-22706 | B1099: 0
A1100: otheritems1-6-22706 | B1100: 0
A1101: otheritems1-7-22706 | B1101: 0
A1102: postharvest-1-22706 | B1102: 0
A1103: postharvest-2-22706 | B1103: 0
A1104: postharvest-3-22706 | B1104: 0
A1105: postharvest-4-22706 | B1105: 0
A1106: postharvest-5-22706 | B1106: 1
A1107: postharvest-6-22706 | B1107: 1
A1108: postharvest-7-22706 | B1108: 0
A1109: postharvest-8-22706 | B1109: 0
A1110: postharvest-9-22706 | B1110: 12500
A1111: postharvest-10-22706 | B1111: 12500
A1112: overhead-1-22706 | B1112: 0
A1113: overhead-2-22706 | B1113: 0
A1114: overhead-3-22706 | B1114: 10000
A1115: overhead-4-22706 | B1115: 5
A1116: overhead-5-22706 | B1116: 15000
A1117: overhead-6-22706 | B1117: 5
A1118: landlord_share-1-22706 | B1118: 0
A1119: landlord_share-2-22706 | B1119: 0
A1120: landlord_share-3-22706 | B1120: 0
A1121: landlord_share-4-22706 | B1121: 0
A1122: landlord_share-5-22706 | B1122: 0
A1123: landlord_share-6-22706 | B1123: 0
A1124: landlord_share-7-22706 | B1124: 0
A1125: landlord_share-8-22706 | B1125: 0
A1126: landlord_share-9-22706 | B1126: 0
A1127: landlord_share-10-22706 | B1127: 0
A1128: landlord_share-11-22706 | B1128: 0
A1129: customhire1-1-22706 | B1129: 0
A1130: customhire1-2-22706 | B1130: 0
... 165 more rows

Sheet Soybeans 2022 (hidden)
A1: Typical | G1: 2021-10-14
A3: Soybeans | B3: 2022 Soybeans
A4: Dryland
A5: Owned land
E6: Business
A7: Income per acre | B7: Units | C7: Yield | D7: Price | E7: total
A8: Primary crop | B8: bushels | C8: 55 | D8: 12.05 | E8: 662.75
A9: By product crop | B9: bushels | C9: 0 | D9: 0 | E9: 0
A10: Net payments (fixed) | E10: 0
A11: Other income | E11: 0
A12: Total income per acre | E12: 662.75
A14: Operating costs per acre
A15: Seed | E15: 65.73333333
A16: Fertilizer | E16: 88.8
A17: Nitrogen | D17: 0
A18: Phosphorus | D18: 29.9
A19: Potassium | D19: 46.4
A20: Other soil amendments | D20: 12.5
A21: Crop protection | E21: 55
A22: Herbicide | D22: 55
A23: Insect-fungicide | D23: 0
A24: Crop supplies, storage, and marketing | E24: 3.5
A25: Crop consulting and insurance | E25: 17
A26: Custom hire and rental | E26: 6
A27: Machinery fuel, drying, and irrigation energy | E27: 15.05794439
A28: Machinery repairs and maintenance | E28: 21.95098514
A29: Operator and hired labor | E29: 16.45427006
A30: Other expense | E30: 0
A31: Operating interest | E31: 7.092665057
A32: Operating costs per acre | E32: 296.589198
A34: Ownership costs per acre1
A35: Farm business overhead | E35: 4
A36: Machinery overhead | E36: 18.34771118
A37: Machinery depreciation | E37: 33.03780694
A38: Real estate charge | E38: 168
A39: Ownership costs per acre | E39: 223.3855181
A41: Total costs per acre | E41: 519.9747161
A43: Income over operating costs per acre | E43: 366.160802
A44: Income over total costs per acre | E44: 142.7752839
C46: Operating costs per bushel | E46: 5.392530872
C47: Ownership costs per bushel | E47: 4.061554875
C48: Total costs per bushel | E48: 9.454085747
A51: Detailed Report | B51: Soybeans | E51: 2022 Soybeans | G51: 2021-10-14
A53: Selected input quantities | B53: per acre | E53: Selected input prices | G53: $ per unit
A54: Yield, bushels | B54: 55 | E54: Farm diesel, per gallon | G54: 2.91
A55: Seeding rate, count | B55: 170000 | E55: Operating interest, % | G55: 4.9
A56: Nitrogen rate, lbs | B56: 0 | E56: Nitrogen, per lb | G56: 0
A57: Phosphorus rate, lbs | B57: 46 | E57: Phosphorus, per lb | G57: 0.65
A58: Potassium rate, lbs | B58: 80 | E58: Potassium, per lb | G58: 0.58
A59: Lime rate, tons | B59: 0.5 | E59: Lime, per ton | G59: 25
A60: Sum of allocated labor, hours | B60: 0.8674127903 | E60: Skilled labor, per hour | G60: 23
A61: Irrigation, inches | B61: 0 | E61: Land value, per acre | G61: 4800
B65: Labor | C65: Fuel | D65: Operating | E65: Ownership | F65: Total
B66: Hours | C66: Gallons | D66: Costs2 | E66: Costs3 | F66: Costs | G66: Trips
A67: Machine activity (not custom) | B67: per acre | C67: per acre | D67: $ per acre | E67: $ per acre | F67: $ per acre | G67: per acre
A68: Tandem disk (30 ft); 360 4WD | B68: 0.05729166667 | C68: 0.9075 | D68: 5.224228255 | E68: 7.885910692 | F68: 13.11013895 | G68: 1
A69: Row crop planter (16 row); 225 MFWD | B69: 0.05357142857 | C69: 0.5303571429 | D69: 5.688590179 | E69: 12.48357143 | F69: 18.17216161 | G69: 1
A70: Boom sprayer (90 ft); 130 MFWD | B70: 0.04339336082 | C70: 0.2482100239 | D70: 2.997799089 | E70: 4.669904535 | F70: 7.667703623 | G70: 2
A71: Combine, flexible grain head (25 ft); 275 HP Comb. | B71: 0.1347708895 | C71: 1.630727763 | D71: 20.29194744 | E71: 14.47946092 | F71: 34.77140836 | G71: 1
A72: Grain cart (500 bushel); 225 MFWD | B72: 0.06738544474 | C72: 0.667115903 | D72: 4.731829515 | E72: 7.492587601 | F72: 12.22441712
A73: Grain auger 10 in- 5000 bu/hr (70 ft); 130 MFWD | B73: 0.011 | C73: 0.06292 | D73: 0.48138178 | E73: 0.43901 | F73: 0.92039178
A74: 10 Wheeler | C74: 0.375 | D74: 1.36275 | E74: 0.386605 | F74: 1.749355
A75: Semi, tractor and trailer | C75: 0.3571428571 | D75: 2.227 | E75: 1.495666667 | F75: 3.722666667
A76: Pickup truck | C76: 0.3333333333 | D76: 1.707673333 | E76: 2.05280128 | F76: 3.760474613
A77: Total | B77: 0.3674127903 | C77: 5.112307023 | D77: 44.71319959 | E77: 51.38551812 | F77: 96.09871771 | G77: 5
A101: 1 Farm business overhead includes liability insurance, utilities, accounting, etc. Machinery overhead is the sum of opportunity interest,
A102: property taxes, insurance, and housing. Machinery depreciation is a market value decline due to aging and usage. Thus, a portion of
A103: depreciation should be considered an operating costs for some decisions. Real estate charge includes land, improvements, taxes.
A104: Economic costs may differ from rental rates.
A105: 2 Machinery operating cost is the sum of fuel, repairs, maintenance, and the value of labor.
A106: 3 Machinery ownership cost is the sum of machinery overhead and depreciation (see page 1).
A1000: Start
A1001: cropnum-22706 | B1001: 4
A1002: primyieldtype-22706 | B1002: 1
A1003: byyieldtype-22706 | B1003: 1
A1004: irrigation2-22706 | B1004: 2
A1005: leasenum-22706 | B1005: 1
A1006: 40hp-22706 | B1006: 0
A1007: 60hp-22706 | B1007: 0
A1008: 75hp-22706 | B1008: 0
A1009: 105twd-22706 | B1009: 0
A1010: 140twd-22706 | B1010: 0
A1011: 105mfwd-22706 | B1011: 0
A1012: 130mfwd-22706 | B1012: TRUE
A1013: 160mfwd-22706 | B1013: FALSE
A1014: 200mfwd-22706 | B1014: FALSE
A1015: 225mfwd-22706 | B1015: TRUE
A1016: 2604wd-22706 | B1016: FALSE
A1017: 3104wd-22706 | B1017: FALSE
A1018: 360 4wd-22706 | B1018: TRUE
A1019: 4254wd-22706 | B1019: 0
A1020: 225tt-22706 | B1020: 0
A1021: 425tt-22706 | B1021: 0
A1022: description-1-22706 | B1022: 2022 Soybeans
A1023: acres-1-22706 | B1023: 1000
A1024: receipts-1-22706 | B1024: 55
A1025: receipts-2-22706 | B1025: 12.05
A1026: receipts-3-22706 | B1026: 0
A1027: receipts-4-22706 | B1027: 0
A1028: receipts-5-22706 | B1028: 0
A1029: receipts-6-22706 | B1029: 0
A1030: seed1-1-22706 | B1030: 0
A1031: seed1-2-22706 | B1031: 58
A1032: seed1-3-22706 | B1032: 0
A1033: seed1-4-22706 | B1033: 0
A1034: seed1-5-22706 | B1034: 0
A1035: seed1-6-22706 | B1035: 0
A1036: seed2-1-22706 | B1036: 0
A1037: seed2-2-22706 | B1037: 170000
A1038: seed2-3-22706 | B1038: 0
A1039: seed2-4-22706 | B1039: 0
A1040: seed2-5-22706 | B1040: 0
A1041: seed2-6-22706 | B1041: 0
A1042: fertilizer1-1-22706 | B1042: 0
A1043: fertilizer1-2-22706 | B1043: 0
A1044: fertilizer1-3-22706 | B1044: 0
A1045: fertilizer1-4-22706 | B1045: 46
A1046: fertilizer1-5-22706 | B1046: 80
A1047: fertilizer1-6-22706 | B1047: 0.5
A1048: fertilizer1-7-22706 | B1048: 0
A1049: fertilizer1-8-22706 | B1049: 0
A1050: fertilizer2-1-22706 | B1050: 0
A1051: fertilizer2-2-22706 | B1051: 0
A1052: fertilizer2-3-22706 | B1052: 0
A1053: fertilizer2-4-22706 | B1053: 0.65
A1054: fertilizer2-5-22706 | B1054: 0.58
A1055: fertilizer2-6-22706 | B1055: 25
A1056: fertilizer2-7-22706 | B1056: 0
A1057: fertilizer2-8-22706 | B1057: 0
A1058: herbicide1-1-22706 | B1058: 0
A1059: herbicide1-2-22706 | B1059: 0
A1060: herbicide1-3-22706 | B1060: 0
A1061: herbicide1-4-22706 | B1061: 0
A1062: herbicide1-5-22706 | B1062: 2
A1063: herbicide1-6-22706 | B1063: 0
A1064: herbicide1-7-22706 | B1064: 0
A1065: herbicide1-8-22706 | B1065: 0
A1066: herbicide2-1-22706 | B1066: 0
A1067: herbicide2-2-22706 | B1067: 0
A1068: herbicide2-3-22706 | B1068: 0
A1069: herbicide2-4-22706 | B1069: 0
A1070: herbicide2-5-22706 | B1070: 27.5
A1071: herbicide2-6-22706 | B1071: 0
A1072: herbicide2-7-22706 | B1072: 0
A1073: herbicide2-8-22706 | B1073: 0
A1074: herbicide2-9-22706 | B1074: 0
A1075: insecticide1-1-22706 | B1075: 0
A1076: insecticide1-2-22706 | B1076: 0
A1077: insecticide1-3-22706 | B1077: 0
A1078: insecticide1-4-22706 | B1078: 0
A1079: insecticide2-1-22706 | B1079: 0
A1080: insecticide2-2-22706 | B1080: 0
A1081: insecticide2-3-22706 | B1081: 0
A1082: insecticide2-4-22706 | B1082: 0
A1083: insecticide2-5-22706 | B1083: 0
A1084: labor-1-22706 | B1084: 0.5
A1085: labor-2-22706 | B1085: 17.5
A1086: labor-3-22706 | B1086: 23
A1087: irrigation1-1-22706 | B1087: 0
A1088: irrigation1-2-22706 | B1088: 0
A1089: irrigation1-3-22706 | B1089: 0
A1090: land-1-22706 | B1090: 4800
A1091: land-2-22706 | B1091: 3.5
A1092: land-3-22706 | B1092: 0
A1093: land-3-9106 | B1093: 0
A1094: land-4-22706 | B1094: 0
A1095: otheritems1-1-22706 | B1095: 4.9
A1096: otheritems1-2-22706 | B1096: 2.91
A1097: otheritems1-3-22706 | B1097: 3.08
A1098: otheritems1-4-22706 | B1098: 3.5
A1099: otheritems1-5-22706 | B1099: 0
A1100: otheritems1-6-22706 | B1100: 17
A1101: otheritems1-7-22706 | B1101: 0
A1102: postharvest-1-22706 | B1102: 0
A1103: postharvest-2-22706 | B1103: 0
A1104: postharvest-3-22706 | B1104: 0
A1105: postharvest-4-22706 | B1105: 0
A1106: postharvest-5-22706 | B1106: 15
A1107: postharvest-6-22706 | B1107: 20
A1108: postharvest-7-22706 | B1108: 0
A1109: postharvest-8-22706 | B1109: 0
A1110: postharvest-9-22706 | B1110: 12500
A1111: postharvest-10-22706 | B1111: 12500
A1112: overhead-1-22706 | B1112: 0
A1113: overhead-2-22706 | B1113: 0
A1114: overhead-3-22706 | B1114: 10000
A1115: overhead-4-22706 | B1115: 40
A1116: overhead-5-22706 | B1116: 15000
A1117: overhead-6-22706 | B1117: 40
A1118: landlord_share-1-22706 | B1118: 0
A1119: landlord_share-2-22706 | B1119: 0
A1120: landlord_share-3-22706 | B1120: 0
A1121: landlord_share-4-22706 | B1121: 0
A1122: landlord_share-5-22706 | B1122: 0
A1123: landlord_share-6-22706 | B1123: 0
A1124: landlord_share-7-22706 | B1124: 0
A1125: landlord_share-8-22706 | B1125: 0
A1126: landlord_share-9-22706 | B1126: 0
A1127: landlord_share-10-22706 | B1127: 0
A1128: landlord_share-11-22706 | B1128: 0
... 167 more rows

Sheet Dryland Corn 2022 (hidden)
A1: Typical | G1: 2021-10-14
A3: Corn, grain | B3: Dryland 2022
A4: Dryland
A5: Owned land
E6: Business
A7: Income per acre | B7: Units | C7: Yield | D7: Price | E7: total
A8: Primary crop | B8: bushels | C8: 170 | D8: 4.6 | E8: 782
A9: By product crop | B9: bushels | C9: 0 | D9: 0 | E9: 0
A10: Net payments (fixed) | E10: 0
A11: Other income | E11: 0
A12: Total income per acre | E12: 782
A14: Operating costs per acre
A15: Seed | E15: 103.125
A16: Fertilizer | E16: 178.47
A17: Nitrogen | D17: 85
A18: Phosphorus | D18: 50.05
A19: Potassium | D19: 28.42
A20: Other soil amendments | D20: 15
A21: Crop protection | E21: 49
A22: Herbicide | D22: 49
A23: Insect-fungicide, None | D23: 0
A24: Crop supplies, storage, and marketing | E24: 2.5
A25: Crop consulting and insurance | E25: 26
A26: Custom hire and rental | E26: 6
A27: Machinery fuel, drying, and irrigation energy | E27: 50.6459387
A28: Machinery repairs and maintenance | E28: 27.08278936
A29: Operator and hired labor | E29: 18.80427996
A30: Other expense | E30: 0
A31: Operating interest | E31: 11.3098862
A32: Operating costs per acre | E32: 472.9378942
A34: Ownership costs per acre1
A35: Farm business overhead | E35: 4
A36: Machinery overhead | E36: 25.50819591
A37: Machinery depreciation | E37: 40.0370593
A38: Real estate charge | E38: 168
A39: Ownership costs per acre | E39: 237.5452552
A41: Total costs per acre | E41: 710.4831494
A43: Income over operating costs per acre | E43: 309.0621058
A44: Income over total costs per acre | E44: 71.51685057
C46: Operating costs per bushel | E46: 2.781987613
C47: Ownership costs per bushel | E47: 1.397325031
C48: Total costs per bushel | E48: 4.179312644
A51: Detailed Report | B51: Corn, grain | E51: Dryland 2022 | G51: 2021-10-14
A53: Selected input quantities | B53: per acre | E53: Selected input prices | G53: $ per unit
A54: Yield, bushels | B54: 170 | E54: Farm diesel, per gallon | G54: 2.91
A55: Seeding rate, count | B55: 30000 | E55: Operating interest, % | G55: 4.9
A56: Nitrogen rate, lbs | B56: 170 | E56: Nitrogen, per lb | G56: 0.5
A57: Phosphorus rate, lbs | B57: 77 | E57: Phosphorus, per lb | G57: 0.65
A58: Potassium rate, lbs | B58: 49 | E58: Potassium, per lb | G58: 0.58
A59: Lime rate, tons | B59: 0.6 | E59: Lime, per ton | G59: 25
A60: Sum of allocated labor, hours | B60: 0.9697078548 | E60: Skilled labor, per hour | G60: 23
A61: Irrigation, inches | B61: 0 | E61: Land value, per acre | G61: 4800
B65: Labor | C65: Fuel | D65: Operating | E65: Ownership | F65: Total
B66: Hours | C66: Gallons | D66: Costs2 | E66: Costs3 | F66: Costs | G66: Trips
A67: Machine activity (not custom) | B67: per acre | C67: per acre | D67: $ per acre | E67: $ per acre | F67: $ per acre | G67: per acre
A68: V-Ripper 30" O.C., (17 ft); 360 4WD | B68: 0.02854424358 | C68: 0.4521408183 | D68: 2.394595433 | E68: 5.75497431 | F68: 8.149569743 | G68: 0.3
A69: Row crop planter (16 row); 225 MFWD | B69: 0.05357142857 | C69: 0.5303571429 | D69: 5.688590179 | E69: 12.48357143 | F69: 18.17216161 | G69: 1
A70: Boom sprayer (90 ft); 130 MFWD | B70: 0.04339336082 | C70: 0.2482100239 | D70: 2.997799089 | E70: 4.669904535 | F70: 7.667703623 | G70: 2
A71: Anhydrous applicator (21 ft); 225 MFWD | B71: 0.08928571429 | C71: 0.8839285714 | D71: 5.870086411 | E71: 7.230237853 | F71: 13.10032426 | G71: 1
A72: Combine, corn head (8 row); 275 HP Comb. | B72: 0.147275405 | C72: 1.782032401 | D72: 22.66089102 | E72: 17.74136966 | F72: 40.40226068 | G72: 1
A73: Grain cart (500 bushel); 225 MFWD | B73: 0.0736377025 | C73: 0.7290132548 | D73: 5.170865243 | E73: 8.187776141 | F73: 13.35864138
A74: Grain auger 10 in- 5000 bu/hr (70 ft); 130 MFWD | B74: 0.034 | C74: 0.19448 | D74: 1.48790732 | E74: 1.35694 | F74: 2.84484732
A75: 10 Wheeler | C75: 1.5 | D75: 5.451 | E75: 1.55668 | F75: 7.00768
A76: Semi, tractor and trailer | C76: 1.071428571 | D76: 6.681 | E76: 4.511 | F76: 11.192
A77: Pickup truck | C77: 0.3333333333 | D77: 1.707673333 | E77: 2.05280128 | F77: 3.760474613
A78: Total | B78: 0.4697078548 | C78: 7.724924117 | D78: 60.11040802 | E78: 65.54525521 | F78: 125.6556632 | G78: 5.3
A101: 1 Farm business overhead includes liability insurance, utilities, accounting, etc. Machinery overhead is the sum of opportunity interest,
A102: property taxes, insurance, and housing. Machinery depreciation is a market value decline due to aging and usage. Thus, a portion of
A103: depreciation should be considered an operating costs for some decisions. Real estate charge includes land, improvements, taxes.
A104: Economic costs may differ from rental rates.
A105: 2 Machinery operating cost is the sum of fuel, repairs, maintenance, and the value of labor.
A106: 3 Machinery ownership cost is the sum of machinery overhead and depreciation (see page 1).
A1000: Start
A1001: cropnum-22706 | B1001: 1
A1002: primyieldtype-22706 | B1002: 1
A1003: byyieldtype-22706 | B1003: 1
A1004: irrigation2-22706 | B1004: 2
A1005: leasenum-22706 | B1005: 1
A1006: 40hp-22706 | B1006: 0
A1007: 60hp-22706 | B1007: 0
A1008: 75hp-22706 | B1008: 0
A1009: 105twd-22706 | B1009: 0
A1010: 140twd-22706 | B1010: 0
A1011: 105mfwd-22706 | B1011: 0
A1012: 130mfwd-22706 | B1012: TRUE
A1013: 160mfwd-22706 | B1013: FALSE
A1014: 200mfwd-22706 | B1014: FALSE
A1015: 225mfwd-22706 | B1015: TRUE
A1016: 2604wd-22706 | B1016: 0
A1017: 3104wd-22706 | B1017: FALSE
A1018: 360 4wd-22706 | B1018: TRUE
A1019: 4254wd-22706 | B1019: 0
A1020: 225tt-22706 | B1020: 0
A1021: 425tt-22706 | B1021: 0
A1022: description-1-22706 | B1022: Dryland 2022
A1023: acres-1-22706 | B1023: 1000
A1024: receipts-1-22706 | B1024: 170
A1025: receipts-2-22706 | B1025: 4.6
A1026: receipts-3-22706 | B1026: 0
A1027: receipts-4-22706 | B1027: 0
A1028: receipts-5-22706 | B1028: 0
A1029: receipts-6-22706 | B1029: 0
A1030: seed1-1-22706 | B1030: 275
A1031: seed1-2-22706 | B1031: 0
A1032: seed1-3-22706 | B1032: 0
A1033: seed1-4-22706 | B1033: 0
A1034: seed1-5-22706 | B1034: 0
A1035: seed1-6-22706 | B1035: 0
A1036: seed2-1-22706 | B1036: 30000
A1037: seed2-2-22706 | B1037: 0
A1038: seed2-3-22706 | B1038: 0
A1039: seed2-4-22706 | B1039: 0
A1040: seed2-5-22706 | B1040: 0
A1041: seed2-6-22706 | B1041: 0
A1042: fertilizer1-1-22706 | B1042: 170
A1043: fertilizer1-2-22706 | B1043: 0
A1044: fertilizer1-3-22706 | B1044: 0
A1045: fertilizer1-4-22706 | B1045: 77
A1046: fertilizer1-5-22706 | B1046: 49
A1047: fertilizer1-6-22706 | B1047: 0.6
A1048: fertilizer1-7-22706 | B1048: 0
A1049: fertilizer1-8-22706 | B1049: 0
A1050: fertilizer2-1-22706 | B1050: 0.5
A1051: fertilizer2-2-22706 | B1051: 0
A1052: fertilizer2-3-22706 | B1052: 0
A1053: fertilizer2-4-22706 | B1053: 0.65
A1054: fertilizer2-5-22706 | B1054: 0.58
A1055: fertilizer2-6-22706 | B1055: 25
A1056: fertilizer2-7-22706 | B1056: 0
A1057: fertilizer2-8-22706 | B1057: 0
A1058: herbicide1-1-22706 | B1058: 0
A1059: herbicide1-2-22706 | B1059: 0
A1060: herbicide1-3-22706 | B1060: 0
A1061: herbicide1-4-22706 | B1061: 0
A1062: herbicide1-5-22706 | B1062: 2
A1063: herbicide1-6-22706 | B1063: 0
A1064: herbicide1-7-22706 | B1064: 0
A1065: herbicide1-8-22706 | B1065: 0
A1066: herbicide2-1-22706 | B1066: 0
A1067: herbicide2-2-22706 | B1067: 0
A1068: herbicide2-3-22706 | B1068: 0
A1069: herbicide2-4-22706 | B1069: 0
A1070: herbicide2-5-22706 | B1070: 24.5
A1071: herbicide2-6-22706 | B1071: 0
A1072: herbicide2-7-22706 | B1072: 0
A1073: herbicide2-8-22706 | B1073: 0
A1074: herbicide2-9-22706 | B1074: 0
A1075: insecticide1-1-22706 | B1075: 0
A1076: insecticide1-2-22706 | B1076: 0
A1077: insecticide1-3-22706 | B1077: 0
A1078: insecticide1-4-22706 | B1078: 0
A1079: insecticide2-1-22706 | B1079: 0
A1080: insecticide2-2-22706 | B1080: 0
A1081: insecticide2-3-22706 | B1081: 0
A1082: insecticide2-4-22706 | B1082: 0
A1083: insecticide2-5-22706 | B1083: None
A1084: labor-1-22706 | B1084: 0.5
A1085: labor-2-22706 | B1085: 17.5
A1086: labor-3-22706 | B1086: 23
A1087: irrigation1-1-22706 | B1087: 0
A1088: irrigation1-2-22706 | B1088: 0
A1089: irrigation1-3-22706 | B1089: 0
A1090: land-1-22706 | B1090: 4800
A1091: land-2-22706 | B1091: 3.5
A1092: land-3-22706 | B1092: 0
A1093: land-3-9106 | B1093: 0
A1094: land-4-22706 | B1094: 0
A1095: otheritems1-1-22706 | B1095: 4.9
A1096: otheritems1-2-22706 | B1096: 2.91
A1097: otheritems1-3-22706 | B1097: 3.08
A1098: otheritems1-4-22706 | B1098: 2.5
A1099: otheritems1-5-22706 | B1099: 0
A1100: otheritems1-6-22706 | B1100: 26
A1101: otheritems1-7-22706 | B1101: 0
A1102: postharvest-1-22706 | B1102: 0
A1103: postharvest-2-22706 | B1103: 0
A1104: postharvest-3-22706 | B1104: 3
A1105: postharvest-4-22706 | B1105: 0
A1106: postharvest-5-22706 | B1106: 60
A1107: postharvest-6-22706 | B1107: 60
A1108: postharvest-7-22706 | B1108: 0
A1109: postharvest-8-22706 | B1109: 2.97
A1110: postharvest-9-22706 | B1110: 12500
A1111: postharvest-10-22706 | B1111: 12500
A1112: overhead-1-22706 | B1112: 0
A1113: overhead-2-22706 | B1113: 0
A1114: overhead-3-22706 | B1114: 10000
A1115: overhead-4-22706 | B1115: 40
A1116: overhead-5-22706 | B1116: 15000
A1117: overhead-6-22706 | B1117: 40
A1118: landlord_share-1-22706 | B1118: 0
A1119: landlord_share-2-22706 | B1119: 0
A1120: landlord_share-3-22706 | B1120: 0
A1121: landlord_share-4-22706 | B1121: 0
A1122: landlord_share-5-22706 | B1122: 0
A1123: landlord_share-6-22706 | B1123: 0
A1124: landlord_share-7-22706 | B1124: 0
A1125: landlord_share-8-22706 | B1125: 0
A1126: landlord_share-9-22706 | B1126: 0
A1127: landlord_share-10-22706 | B1127: 0
... 168 more rows

Sheet Wheat 2022 (hidden)
A1: Typical | G1: 2021-10-14
A3: Wheat | B3: 2022 Winter Wheat
A4: Dryland
A5: Owned land
E6: Business
A7: Income per acre | B7: Units | C7: Yield | D7: Price | E7: total
A8: Primary crop | B8: bushels | C8: 70 | D8: 6.5 | E8: 455
A9: By product crop | B9: bushels | C9: 0 | D9: 0 | E9: 0
A10: Net payments (fixed) | E10: 0
A11: Other income | E11: 0
A12: Total income per acre | E12: 455
A14: Operating costs per acre
A15: Seed | E15: 36
A16: Fertilizer | E16: 118.48
A17: Nitrogen | D17: 66.5
A18: Phosphorus | D18: 27.3
A19: Potassium | D19: 12.18
A20: Other soil amendments | D20: 12.5
A21: Crop protection | E21: 20
A22: Herbicide | D22: 20
A23: Insect-fungicide | D23: 0
A24: Crop supplies, storage, and marketing | E24: 3.5
A25: Crop consulting and insurance | E25: 13
A26: Custom hire and rental | E26: 12
A27: Machinery fuel, drying, and irrigation energy | E27: 18.57315881
A28: Machinery repairs and maintenance | E28: 22.0685738
A29: Operator and hired labor | E29: 16.67172126
A30: Other expense | E30: 0
A31: Operating interest | E31: 6.37718962
A32: Operating costs per acre | E32: 266.6706435
A34: Ownership costs per acre1
A35: Farm business overhead | E35: 5
A36: Machinery overhead | E36: 18.90313546
A37: Machinery depreciation | E37: 32.43137394
A38: Real estate charge | E38: 129.5
A39: Ownership costs per acre | E39: 185.8345094
A41: Total costs per acre | E41: 452.5051529
A43: Income over operating costs per acre | E43: 188.3293565
A44: Income over total costs per acre | E44: 2.494847116
C46: Operating costs per bushel | E46: 3.809580621
C47: Ownership costs per bushel | E47: 2.654778706
C48: Total costs per bushel | E48: 6.464359327
A51: Detailed Report | B51: Wheat | E51: 2022 Winter Wheat | G51: 2021-10-14
A53: Selected input quantities | B53: per acre | E53: Selected input prices | G53: $ per unit
A54: Yield, bushels | B54: 70 | E54: Farm diesel, per gallon | G54: 2.91
A55: Seeding rate, count | B55: 100 | E55: Operating interest, % | G55: 4.9
A56: Nitrogen rate, lbs | B56: 95 | E56: Nitrogen, per lb | G56: 0.7
A57: Phosphorus rate, lbs | B57: 42 | E57: Phosphorus, per lb | G57: 0.65
A58: Potassium rate, lbs | B58: 21 | E58: Potassium, per lb | G58: 0.58
A59: Lime rate, tons | B59: 0.5 | E59: Lime, per ton | G59: 25
A60: Sum of allocated labor, hours | B60: 0.8611897059 | E60: Skilled labor, per hour | G60: 23
A61: Irrigation, inches | B61: 0 | E61: Land value, per acre | G61: 3700
B65: Labor | C65: Fuel | D65: Operating | E65: Ownership | F65: Total
B66: Hours | C66: Gallons | D66: Costs2 | E66: Costs3 | F66: Costs | G66: Trips
A67: Machine activity (not custom) | B67: per acre | C67: per acre | D67: $ per acre | E67: $ per acre | F67: $ per acre | G67: per acre
A68: No-till drill (15 ft); 225 MFWD | B68: 0.1571428571 | C68: 1.555714286 | D68: 13.22119786 | E68: 21.37114286 | F68: 34.59234071 | G68: 1
A69: Boom sprayer (90 ft); 130 MFWD | B69: 0.02169668041 | C69: 0.1241050119 | D69: 1.498899544 | E69: 2.961612063 | F69: 4.460511608 | G69: 1
A70: Combine, fixed grain head (30 ft); 275 HP Comb. | B70: 0.1122334456 | C70: 1.358024691 | D70: 17.04556117 | E70: 12.62937149 | F70: 29.67493266 | G70: 1
A71: Grain cart (500 bushel); 225 MFWD | B71: 0.05611672278 | C71: 0.5555555556 | D71: 3.940535915 | E71: 6.239618406 | F71: 10.18015432
A72: Grain auger 10 in- 5000 bu/hr (70 ft); 130 MFWD | B72: 0.014 | C72: 0.08008 | D72: 0.61266772 | E72: 0.55874 | F72: 1.17140772
A73: 10 Wheeler | C73: 1.25 | D73: 4.5425 | E73: 1.286783333 | F73: 5.829283333
A74: Semi, tractor and trailer | C74: 0.8928571429 | D74: 5.5675 | E74: 3.731666667 | F74: 9.299166667
A75: Pickup truck | C75: 0.4166666667 | D75: 2.134591667 | E75: 2.555574575 | F75: 4.690166242
A76: Total | B76: 0.3611897059 | C76: 6.233003354 | D76: 48.56345387 | E76: 51.33450939 | F76: 99.89796326 | G76: 3
A101: 1 Farm business overhead includes liability insurance, utilities, accounting, etc. Machinery overhead is the sum of opportunity interest,
A102: property taxes, insurance, and housing. Machinery depreciation is a market value decline due to aging and usage. Thus, a portion of
A103: depreciation should be considered an operating costs for some decisions. Real estate charge includes land, improvements, taxes.
A104: Economic costs may differ from rental rates.
A105: 2 Machinery operating cost is the sum of fuel, repairs, maintenance, and the value of labor.
A106: 3 Machinery ownership cost is the sum of machinery overhead and depreciation (see page 1).
A1000: Start
A1001: cropnum-22706 | B1001: 6
A1002: primyieldtype-22706 | B1002: 1
A1003: byyieldtype-22706 | B1003: 1
A1004: irrigation2-22706 | B1004: 2
A1005: leasenum-22706 | B1005: 1
A1006: 40hp-22706 | B1006: 0
A1007: 60hp-22706 | B1007: 0
A1008: 75hp-22706 | B1008: 0
A1009: 105twd-22706 | B1009: 0
A1010: 140twd-22706 | B1010: 0
A1011: 105mfwd-22706 | B1011: 0
A1012: 130mfwd-22706 | B1012: TRUE
A1013: 160mfwd-22706 | B1013: 0
A1014: 200mfwd-22706 | B1014: FALSE
A1015: 225mfwd-22706 | B1015: TRUE
A1016: 2604wd-22706 | B1016: 0
A1017: 3104wd-22706 | B1017: 0
A1018: 360 4wd-22706 | B1018: 0
A1019: 4254wd-22706 | B1019: 0
A1020: 225tt-22706 | B1020: 0
A1021: 425tt-22706 | B1021: 0
A1022: description-1-22706 | B1022: 2022 Winter Wheat
A1023: acres-1-22706 | B1023: 100
A1024: receipts-1-22706 | B1024: 70
A1025: receipts-2-22706 | B1025: 6.5
A1026: receipts-3-22706 | B1026: 0
A1027: receipts-4-22706 | B1027: 0
A1028: receipts-5-22706 | B1028: 0
A1029: receipts-6-22706 | B1029: 0
A1030: seed1-1-22706 | B1030: 0
A1031: seed1-2-22706 | B1031: 0
A1032: seed1-3-22706 | B1032: 0
A1033: seed1-4-22706 | B1033: 18
A1034: seed1-5-22706 | B1034: 0
A1035: seed1-6-22706 | B1035: 0
A1036: seed2-1-22706 | B1036: 0
A1037: seed2-2-22706 | B1037: 0
A1038: seed2-3-22706 | B1038: 0
A1039: seed2-4-22706 | B1039: 100
A1040: seed2-5-22706 | B1040: 0
A1041: seed2-6-22706 | B1041: 0
A1042: fertilizer1-1-22706 | B1042: 0
A1043: fertilizer1-2-22706 | B1043: 95
A1044: fertilizer1-3-22706 | B1044: 0
A1045: fertilizer1-4-22706 | B1045: 42
A1046: fertilizer1-5-22706 | B1046: 21
A1047: fertilizer1-6-22706 | B1047: 0.5
A1048: fertilizer1-7-22706 | B1048: 0
A1049: fertilizer1-8-22706 | B1049: 0
A1050: fertilizer2-1-22706 | B1050: 0
A1051: fertilizer2-2-22706 | B1051: 0.7
A1052: fertilizer2-3-22706 | B1052: 0
A1053: fertilizer2-4-22706 | B1053: 0.65
A1054: fertilizer2-5-22706 | B1054: 0.58
A1055: fertilizer2-6-22706 | B1055: 25
A1056: fertilizer2-7-22706 | B1056: 0
A1057: fertilizer2-8-22706 | B1057: 0
A1058: herbicide1-1-22706 | B1058: 0
A1059: herbicide1-2-22706 | B1059: 0
A1060: herbicide1-3-22706 | B1060: 0
A1061: herbicide1-4-22706 | B1061: 1
A1062: herbicide1-5-22706 | B1062: 0
A1063: herbicide1-6-22706 | B1063: 0
A1064: herbicide1-7-22706 | B1064: 0
A1065: herbicide1-8-22706 | B1065: 0
A1066: herbicide2-1-22706 | B1066: 0
A1067: herbicide2-2-22706 | B1067: 0
A1068: herbicide2-3-22706 | B1068: 0
A1069: herbicide2-4-22706 | B1069: 20
A1070: herbicide2-5-22706 | B1070: 0
A1071: herbicide2-6-22706 | B1071: 0
A1072: herbicide2-7-22706 | B1072: 0
A1073: herbicide2-8-22706 | B1073: 0
A1074: herbicide2-9-22706 | B1074: 0
A1075: insecticide1-1-22706 | B1075: 0
A1076: insecticide1-2-22706 | B1076: 0
A1077: insecticide1-3-22706 | B1077: 0
A1078: insecticide1-4-22706 | B1078: 0
A1079: insecticide2-1-22706 | B1079: 0
A1080: insecticide2-2-22706 | B1080: 0
A1081: insecticide2-3-22706 | B1081: 0
A1082: insecticide2-4-22706 | B1082: 0
A1083: insecticide2-5-22706 | B1083: 0
A1084: labor-1-22706 | B1084: 0.5
A1085: labor-2-22706 | B1085: 17.5
A1086: labor-3-22706 | B1086: 23
A1087: irrigation1-1-22706 | B1087: 0
A1088: irrigation1-2-22706 | B1088: 0
A1089: irrigation1-3-22706 | B1089: 0
A1090: land-1-22706 | B1090: 3700
A1091: land-2-22706 | B1091: 3.5
A1092: land-3-22706 | B1092: 0
A1093: land-3-9106 | B1093: 0
A1094: land-4-22706 | B1094: 0
A1095: otheritems1-1-22706 | B1095: 4.9
A1096: otheritems1-2-22706 | B1096: 2.91
A1097: otheritems1-3-22706 | B1097: 3.08
A1098: otheritems1-4-22706 | B1098: 3.5
A1099: otheritems1-5-22706 | B1099: 0
A1100: otheritems1-6-22706 | B1100: 13
A1101: otheritems1-7-22706 | B1101: 0
A1102: postharvest-1-22706 | B1102: 0
A1103: postharvest-2-22706 | B1103: 0
A1104: postharvest-3-22706 | B1104: 0
A1105: postharvest-4-22706 | B1105: 0
A1106: postharvest-5-22706 | B1106: 5
A1107: postharvest-6-22706 | B1107: 5
A1108: postharvest-7-22706 | B1108: 0
A1109: postharvest-8-22706 | B1109: 0
A1110: postharvest-9-22706 | B1110: 12500
A1111: postharvest-10-22706 | B1111: 12500
A1112: overhead-1-22706 | B1112: 0
A1113: overhead-2-22706 | B1113: 0
A1114: overhead-3-22706 | B1114: 10000
A1115: overhead-4-22706 | B1115: 5
A1116: overhead-5-22706 | B1116: 15000
A1117: overhead-6-22706 | B1117: 5
A1118: landlord_share-1-22706 | B1118: 0
A1119: landlord_share-2-22706 | B1119: 0
A1120: landlord_share-3-22706 | B1120: 0
A1121: landlord_share-4-22706 | B1121: 0
A1122: landlord_share-5-22706 | B1122: 0
A1123: landlord_share-6-22706 | B1123: 0
A1124: landlord_share-7-22706 | B1124: 0
A1125: landlord_share-8-22706 | B1125: 0
A1126: landlord_share-9-22706 | B1126: 0
A1127: landlord_share-10-22706 | B1127: 0
A1128: landlord_share-11-22706 | B1128: 0
A1129: customhire1-1-22706 | B1129: 6
... 166 more rows

Sheet Grain Sorghum 2022 (hidden)
A1: Typical | G1: 2021-10-14
A3: Grain sorghum | B3: Milo 2022
A4: Dryland
A5: Owned land
E6: Business
A7: Income per acre | B7: Units | C7: Yield | D7: Price | E7: total
A8: Primary crop | B8: bushels | C8: 100 | D8: 4.75 | E8: 475
A9: By product crop | B9: bushels | C9: 0 | D9: 0 | E9: 0
A10: Net payments (fixed) | E10: 0
A11: Other income | E11: 0
A12: Total income per acre | E12: 475
A14: Operating costs per acre
A15: Seed | E15: 12.6
A16: Fertilizer | E16: 128.57
A17: Nitrogen | D17: 70
A18: Phosphorus | D18: 29.25
A19: Potassium | D19: 16.82
A20: Other soil amendments | D20: 12.5
A21: Crop protection | E21: 34
A22: Herbicide | D22: 34
A23: Insect-fungicide | D23: 0
A24: Crop supplies, storage, and marketing | E24: 2
A25: Crop consulting and insurance | E25: 17
A26: Custom hire and rental | E26: 12
A27: Machinery fuel, drying, and irrigation energy | E27: 17.36611609
A28: Machinery repairs and maintenance | E28: 21.17767065
A29: Operator and hired labor | E29: 15.39312632
A30: Other expense | E30: 0
A31: Operating interest | E31: 6.37261937
A32: Operating costs per acre | E32: 266.4795324
A34: Ownership costs per acre1
A35: Farm business overhead | E35: 5
A36: Machinery overhead | E36: 20.27528293
A37: Machinery depreciation | E37: 29.87438182
A38: Real estate charge | E38: 129.5
A39: Ownership costs per acre | E39: 184.6496647
A41: Total costs per acre | E41: 451.1291972
A43: Income over operating costs per acre | E43: 208.5204676
A44: Income over total costs per acre | E44: 23.87080283
C46: Operating costs per bushel | E46: 2.664795324
C47: Ownership costs per bushel | E47: 1.846496647
C48: Total costs per bushel | E48: 4.511291972
A51: Detailed Report | B51: Grain sorghum | E51: Milo 2022 | G51: 2021-10-14
A53: Selected input quantities | B53: per acre | E53: Selected input prices | G53: $ per unit
A54: Yield, bushels | B54: 100 | E54: Farm diesel, per gallon | G54: 2.91
A55: Seeding rate, count | B55: 90000 | E55: Operating interest, % | G55: 4.9
A56: Nitrogen rate, lbs | B56: 100 | E56: Nitrogen, per lb | G56: 0.7
A57: Phosphorus rate, lbs | B57: 45 | E57: Phosphorus, per lb | G57: 0.65
A58: Potassium rate, lbs | B58: 29 | E58: Potassium, per lb | G58: 0.58
A59: Lime rate, tons | B59: 0.5 | E59: Lime, per ton | G59: 25
A60: Sum of allocated labor, hours | B60: 0.8138592013 | E60: Skilled labor, per hour | G60: 23
A61: Irrigation, inches | B61: 0 | E61: Land value, per acre | G61: 3700
B65: Labor | C65: Fuel | D65: Operating | E65: Ownership | F65: Total
B66: Hours | C66: Gallons | D66: Costs2 | E66: Costs3 | F66: Costs | G66: Trips
A67: Machine activity (not custom) | B67: per acre | C67: per acre | D67: $ per acre | E67: $ per acre | F67: $ per acre | G67: per acre
A68: V-Ripper 30" O.C., (17 ft); 360 4WD | B68: 0.02854424358 | C68: 0.4521408183 | D68: 2.394595433 | E68: 5.75497431 | F68: 8.149569743 | G68: 0.3
A69: Row crop planter (16 row); 225 MFWD | B69: 0.05357142857 | C69: 0.5303571429 | D69: 5.688590179 | E69: 12.48357143 | F69: 18.17216161 | G69: 1
A70: Boom sprayer (90 ft); 130 MFWD | B70: 0.04339336082 | C70: 0.2482100239 | D70: 2.997799089 | E70: 4.669904535 | F70: 7.667703623 | G70: 2
A71: Combine, fixed grain head (30 ft); 275 HP Comb. | B71: 0.1122334456 | C71: 1.358024691 | D71: 17.04556117 | E71: 12.62937149 | F71: 29.67493266 | G71: 1
A72: Grain cart (500 bushel); 225 MFWD | B72: 0.05611672278 | C72: 0.5555555556 | D72: 3.940535915 | E72: 6.239618406 | F72: 10.18015432
A73: Grain auger 10 in- 5000 bu/hr (70 ft); 130 MFWD | B73: 0.02 | C73: 0.1144 | D73: 0.8752396 | E73: 0.7982 | F73: 1.6734396
A74: 10 Wheeler | C74: 1.25 | D74: 4.5425 | E74: 1.286783333 | F74: 5.829283333
A75: Semi, tractor and trailer | C75: 0.8928571429 | D75: 5.5675 | E75: 3.731666667 | F75: 9.299166667
A76: Pickup truck | C76: 0.4166666667 | D76: 2.134591667 | E76: 2.555574575 | F76: 4.690166242
A77: Total | B77: 0.3138592013 | C77: 5.818212041 | D77: 45.18691305 | E77: 50.14966475 | F77: 95.3365778 | G77: 4.3
A101: 1 Farm business overhead includes liability insurance, utilities, accounting, etc. Machinery overhead is the sum of opportunity interest,
A102: property taxes, insurance, and housing. Machinery depreciation is a market value decline due to aging and usage. Thus, a portion of
A103: depreciation should be considered an operating costs for some decisions. Real estate charge includes land, improvements, taxes.
A104: Economic costs may differ from rental rates.
A105: 2 Machinery operating cost is the sum of fuel, repairs, maintenance, and the value of labor.
A106: 3 Machinery ownership cost is the sum of machinery overhead and depreciation (see page 1).
A1000: Start
A1001: cropnum-22706 | B1001: 3
A1002: primyieldtype-22706 | B1002: 1
A1003: byyieldtype-22706 | B1003: 1
A1004: irrigation2-22706 | B1004: 2
A1005: leasenum-22706 | B1005: 1
A1006: 40hp-22706 | B1006: 0
A1007: 60hp-22706 | B1007: 0
A1008: 75hp-22706 | B1008: 0
A1009: 105twd-22706 | B1009: FALSE
A1010: 140twd-22706 | B1010: 0
A1011: 105mfwd-22706 | B1011: 0
A1012: 130mfwd-22706 | B1012: TRUE
A1013: 160mfwd-22706 | B1013: 0
A1014: 200mfwd-22706 | B1014: FALSE
A1015: 225mfwd-22706 | B1015: TRUE
A1016: 2604wd-22706 | B1016: 0
A1017: 3104wd-22706 | B1017: FALSE
A1018: 360 4wd-22706 | B1018: TRUE
A1019: 4254wd-22706 | B1019: 0
A1020: 225tt-22706 | B1020: 0
A1021: 425tt-22706 | B1021: 0
A1022: description-1-22706 | B1022: Milo 2022
A1023: acres-1-22706 | B1023: 100
A1024: receipts-1-22706 | B1024: 100
A1025: receipts-2-22706 | B1025: 4.75
A1026: receipts-3-22706 | B1026: 0
A1027: receipts-4-22706 | B1027: 0
A1028: receipts-5-22706 | B1028: 0
A1029: receipts-6-22706 | B1029: 0
A1030: seed1-1-22706 | B1030: 0
A1031: seed1-2-22706 | B1031: 0
A1032: seed1-3-22706 | B1032: 105
A1033: seed1-4-22706 | B1033: 0
A1034: seed1-5-22706 | B1034: 0
A1035: seed1-6-22706 | B1035: 0
A1036: seed2-1-22706 | B1036: 0
A1037: seed2-2-22706 | B1037: 0
A1038: seed2-3-22706 | B1038: 90000
A1039: seed2-4-22706 | B1039: 0
A1040: seed2-5-22706 | B1040: 1
A1041: seed2-6-22706 | B1041: 0
A1042: fertilizer1-1-22706 | B1042: 0
A1043: fertilizer1-2-22706 | B1043: 100
A1044: fertilizer1-3-22706 | B1044: 0
A1045: fertilizer1-4-22706 | B1045: 45
A1046: fertilizer1-5-22706 | B1046: 29
A1047: fertilizer1-6-22706 | B1047: 0.5
A1048: fertilizer1-7-22706 | B1048: 0
A1049: fertilizer1-8-22706 | B1049: 0
A1050: fertilizer2-1-22706 | B1050: 0
A1051: fertilizer2-2-22706 | B1051: 0.7
A1052: fertilizer2-3-22706 | B1052: 0
A1053: fertilizer2-4-22706 | B1053: 0.65
A1054: fertilizer2-5-22706 | B1054: 0.58
A1055: fertilizer2-6-22706 | B1055: 25
A1056: fertilizer2-7-22706 | B1056: 0
A1057: fertilizer2-8-22706 | B1057: 0
A1058: herbicide1-1-22706 | B1058: 0
A1059: herbicide1-2-22706 | B1059: 0
A1060: herbicide1-3-22706 | B1060: 0
A1061: herbicide1-4-22706 | B1061: 0
A1062: herbicide1-5-22706 | B1062: 2
A1063: herbicide1-6-22706 | B1063: 0
A1064: herbicide1-7-22706 | B1064: 0
A1065: herbicide1-8-22706 | B1065: 0
A1066: herbicide2-1-22706 | B1066: 0
A1067: herbicide2-2-22706 | B1067: 0
A1068: herbicide2-3-22706 | B1068: 0
A1069: herbicide2-4-22706 | B1069: 0
A1070: herbicide2-5-22706 | B1070: 17
A1071: herbicide2-6-22706 | B1071: 0
A1072: herbicide2-7-22706 | B1072: 0
A1073: herbicide2-8-22706 | B1073: 0
A1074: herbicide2-9-22706 | B1074: 0
A1075: insecticide1-1-22706 | B1075: 0
A1076: insecticide1-2-22706 | B1076: 0
A1077: insecticide1-3-22706 | B1077: 0
A1078: insecticide1-4-22706 | B1078: 0
A1079: insecticide2-1-22706 | B1079: 0
A1080: insecticide2-2-22706 | B1080: 0
A1081: insecticide2-3-22706 | B1081: 0
A1082: insecticide2-4-22706 | B1082: 0
A1083: insecticide2-5-22706 | B1083: 0
A1084: labor-1-22706 | B1084: 0.5
A1085: labor-2-22706 | B1085: 17.5
A1086: labor-3-22706 | B1086: 23
A1087: irrigation1-1-22706 | B1087: 0
A1088: irrigation1-2-22706 | B1088: 0
A1089: irrigation1-3-22706 | B1089: 0
A1090: land-1-22706 | B1090: 3700
A1091: land-2-22706 | B1091: 3.5
A1092: land-3-22706 | B1092: 0
A1093: land-3-9106 | B1093: 0
A1094: land-4-22706 | B1094: 0
A1095: otheritems1-1-22706 | B1095: 4.9
A1096: otheritems1-2-22706 | B1096: 2.91
A1097: otheritems1-3-22706 | B1097: 3.08
A1098: otheritems1-4-22706 | B1098: 2
A1099: otheritems1-5-22706 | B1099: 0
A1100: otheritems1-6-22706 | B1100: 17
A1101: otheritems1-7-22706 | B1101: 0
A1102: postharvest-1-22706 | B1102: 0
A1103: postharvest-2-22706 | B1103: 0
A1104: postharvest-3-22706 | B1104: 0
A1105: postharvest-4-22706 | B1105: 0
A1106: postharvest-5-22706 | B1106: 5
A1107: postharvest-6-22706 | B1107: 5
A1108: postharvest-7-22706 | B1108: 0
A1109: postharvest-8-22706 | B1109: 0
A1110: postharvest-9-22706 | B1110: 12500
A1111: postharvest-10-22706 | B1111: 12500
A1112: overhead-1-22706 | B1112: 0
A1113: overhead-2-22706 | B1113: 0
A1114: overhead-3-22706 | B1114: 10000
A1115: overhead-4-22706 | B1115: 5
A1116: overhead-5-22706 | B1116: 15000
A1117: overhead-6-22706 | B1117: 5
A1118: landlord_share-1-22706 | B1118: 0
A1119: landlord_share-2-22706 | B1119: 0
A1120: landlord_share-3-22706 | B1120: 0
A1121: landlord_share-4-22706 | B1121: 0
A1122: landlord_share-5-22706 | B1122: 0
A1123: landlord_share-6-22706 | B1123: 0
A1124: landlord_share-7-22706 | B1124: 0
A1125: landlord_share-8-22706 | B1125: 0
A1126: landlord_share-9-22706 | B1126: 0
A1127: landlord_share-10-22706 | B1127: 0
A1128: landlord_share-11-22706 | B1128: 0
... 167 more rows

Sheet Output (hidden)
B1: Enterprise Budget | H1: =TODAY() -> 2021-10-25 | K1: Summary | L1: Summary
B3: =VLOOKUP(MDB!C158,MDB!H157:J163,2) -> Soybeans | C3: =Input!B10 -> 2022 Soybeans | K3: Primary crop yield | L3: Primary crop yield
B4: =VLOOKUP(MDB!C161,MDB!F157:G158,2) -> Dryland | K4: Price per unit | L4: Price per unit
B5: =VLOOKUP(leasenum,MDB!F160:G162,2) -> Owned land | G5: =IF(B5="share lease",(100-Input!$B$130)*0.01,"") ->  | H5: =IF(B5="share lease",Input!B130*0.01,"") ->  | K5: Secondary crop yield | L5: Secondary crop yield
F6: Business | G6: Operator | H6: Landlord | K6: Price per unit | L6: Price per unit
B7: Income per acre | C7: Units | D7: Yield | E7: Price | F7: total | G7: share | H7: share
B8: Primary crop | C8: =VLOOKUP(MDB!$C$159,MDB!$K$157:$M$160,3) & "s" -> bushels | D8: =Input!B13 -> 55 | E8: =Input!B14 -> 12.05 | F8: =D8*E8 -> 662.75 | G8: =0.01*(100-Input!$B$130)*$F$8 -> 662.75 | H8: =0.01*(Input!$B$130)*$F$8 -> 0
B9: By product crop | C9: =VLOOKUP(MDB!$C$160,MDB!$K$157:$M$160,3) & "s" -> bushels | D9: =Input!B15 -> 0 | E9: =Input!B16 -> 0 | F9: =D9*E9 -> 0 | G9: =0.01*(100-Input!$B$130)*$F$9 -> 0 | H9: =0.01*(Input!$B$130)*$F$9 -> 0 | K9: Income per acre | L9: Income per acre
B10: Net payments (fixed) | F10: =Input!B17 -> 0 | G10: =0.01*(100-Input!$B$131)*$F$10 -> 0 | H10: =0.01*(Input!$B$131)*$F$10 -> 0 | K10: Primary crop | L10: Primary crop
B11: Other income | F11: =Input!B18 -> 0 | G11: =0.01*(100-Input!$B$132)*$F$11+Input!B140*Input!B130*0.01*yield -> 0 | H11: =0.01*(Input!$B$132)*$F$11+Input!B78 -> 0 | K11: By product crop | L11: By product crop
B12: Total income per acre | F12: =SUM(F8:F11) -> 662.75 | G12: =SUM(G8:G11) -> 662.75 | H12: =SUM(H8:H11) -> 0 | K12: Net payments (fixed) | L12: Net payments (fixed)
K13: Other income | L13: Other income
B14: Operating costs per acre | K14: Total income per acre | L14: Total income per acre
B15: ="Seed"& IF(Input!B28<>"",", ","")&Input!B28 -> Seed | F15: =Input!B22/80000*Input!F22+Input!B23/150000*Input!F23+Input!B24/750000*Input!F24+Input!B25/50*Input!F25+Input!B27*Input!F27+Input!F26*(Input!B22/80000+Input!B23/150000+Input!B24/750000) -> 65.73333333 | G15: =0.01*(100-Input!$B$133)*Output!$F15 -> 65.73333333 | H15: =0.01*(Input!$B$133)*Output!$F15 -> 0
B16: Fertilizer | F16: =SUM(E17:E20) -> 88.8 | G16: =0.01*(100-Input!$B$134)*Output!$F16 -> 88.8 | H16: =0.01*(Input!$B$134)*Output!$F16 -> 0 | K16: Operating costs per acre | L16: Operating costs per acre
B17: Nitrogen | E17: =SUMPRODUCT(Input!B32:B34,Input!F32:F34) -> 0 | K17: Seed | L17: Seed
B18: Phosphorus | E18: =Input!B35*Input!F35 -> 29.9 | K18: Fertilizer | L18: Fertilizer
B19: Potassium | E19: =Input!B36*Input!F36 -> 46.4 | K19: Nitrogen | L19: Nitrogen
B20: Other soil amendments | E20: =SUMPRODUCT(Input!B37:B39,Input!F37:F39) -> 12.5 | K20: Phosphorus, P205 | L20: Phosphorus, P205
B21: Crop protection | F21: =SUM(E22:E23) -> 55 | G21: =0.01*(100-Input!$B$135)*$E22+0.01*(100-Input!$B$136)*Output!$E23 -> 55 | H21: =0.01*(Input!$B$135)*$E22+0.01*(Input!$B$136)*Output!$E23 -> 0 | K21: Potassium, K20 | L21: Potassium, K20
B22: ="Herbicide" &IF(Input!B51<>"",", ","")& Input!B51 -> Herbicide | E22: =SUMPRODUCT(Input!B43:B50,Input!F43:F50) -> 55 | K22: Other soil amendments | L22: Other soil amendments
B23: ="Insect-fungicide" &IF(Input!B59<>"",", ","") &Input!B59 -> Insect-fungicide | E23: =SUMPRODUCT(Input!B55:B58,Input!F55:F58) -> 0 | K23: Crop protection | L23: Crop protection
B24: Crop supplies, storage, and marketing | F24: =Input!B86+(Input!B107+Input!B105*Input!F105)*(100-Input!B104)*0.01*yield -> 3.5 | G24: =F24 -> 3.5 | H24: =F24-G24 -> 0 | K24: Herbicide | L24: Herbicide
B25: Crop consulting and insurance | F25: =Input!B87+Input!B88 -> 17 | G25: =F25 -> 17 | H25: 0 | K25: Insect-fungicide | L25: Insect-fungicide
B26: Custom hire and rental | F26: =SUMPRODUCT(Input!B114:B117,Input!F114:F117)+Input!B120*Input!B15+Input!B121+SUMPRODUCT(Input!B125:'Input'!B126,Input!F125:F126)+SUM(Input!B118+Input!B119+Input!B122+Input!B123*Input!F123*0.01)*Input!B13+Input!B124*Input!F124*0.01*MDB!C152+SUM(Input!H149:H158)+SUM(Input!H160:H164)+SUM(Input!H166:H173)+SUM(Input!H175:H195) -> 6 | G26: =F26-H26+Input!B140*Input!B130*0.01*yield+Input!B78 -> 6 | H26: =0.01*(Input!$B$137)*SUMPRODUCT(SUMPRODUCT(Input!$B$114:$B$117,Input!$F$114:$F$117)+Input!B121+Input!B122*yield+SUMPRODUCT(Input!B125:B126,Input!F125:F126))+Input!B140*Input!B130*0.01*yield -> 0 | K26: Crop supplies, storage, and marketing | L26: Crop supplies, storage, and marketing
B27: Machinery fuel, drying, and irrigation energy | F27: =SUMPRODUCT('Machinery Cost'!H7:H53,'Machinery Cost'!O7:O53)+Input!B70*Input!B71+(yield*MDB!C172) -> 15.05794439 | G27: =F27-H27 -> 15.05794439 | H27: =0.01*(Input!$B$138)*SUMPRODUCT('Machinery Cost'!H7:H53,'Machinery Cost'!O7:O53)+0.01*(Input!B139)*Input!B70*Input!B71 -> 0 | K27: Crop consulting and insurance | L27: Crop consulting and insurance
B28: Machinery repairs and maintenance | F28: =SUMPRODUCT('Machinery Cost'!H7:H53,('Machinery Cost'!S7:S53+'Machinery Cost'!P7:P53)) -> 21.95098514 | G28: =F28-H28 -> 21.95098514 | H28: 0 | K28: Custom hire and rental | L28: Custom hire and rental
B29: Operator and hired labor | F29: =Input!B63*Input!B64+SUMPRODUCT('Machinery Cost'!H7:H53,'Machinery Cost'!N7:N53) -> 16.45427006 | G29: =F29 -> 16.45427006 | H29: 0 | K29: Machinery fuel, drying, and irrigation energy | L29: Machinery fuel, drying, and irrigation energy
B30: Other expense | F30: =Input!B89 -> 0 | G30: =F30 -> 0 | H30: =F30-G30 -> 0 | K30: Machinery repairs and maintenance | L30: Machinery repairs and maintenance
B31: Operating interest | F31: =(SUM(F15:F30))*(Input!$B$83/100)/2 -> 7.092665057 | G31: =(SUM(G15:G30))*(Input!$B$83/100)/2 -> 7.092665057 | H31: =(SUM(H15:H30))*(Input!$B$83/100)/2 -> 0 | K31: Operator and hired labor | L31: Operator and hired labor
B32: Operating costs per acre | F32: =SUM(F14:F31) -> 296.589198 | G32: =SUM(G14:G31) -> 296.589198 | H32: =SUM(H14:H31) -> 0 | K32: Other expense | L32: Other expense
K33: Operating interest | L33: Operating interest
A34: 1 | B34: Ownership costs per acre1 | K34: Operating costs per acre | L34: Operating costs per acre
A35: 2 | B35: Farm business overhead | F35: =(SUM(Input!B92:B94)*(Input!B95*0.01))/acres -> 4 | G35: =F35 -> 4 | H35: =F35-G35 -> 0
A36: 3 | B36: Machinery overhead | F36: =SUMPRODUCT('Machinery Cost'!$G$7:$G$53,('Machinery Cost'!R7:R53+'Machinery Cost'!U7:U53)) -> 18.34771118 | G36: =F36 -> 18.34771118 | H36: 0 | K36: Ownership costs per acre | L36: Ownership costs per acre
A37: 4 | B37: Machinery depreciation | F37: =SUMPRODUCT('Machinery Cost'!H7:H53,('Machinery Cost'!Q7:Q53+'Machinery Cost'!T7:T53)) -> 33.03780694 | G37: =F37 -> 33.03780694 | H37: 0 | K37: Farm business overhead | L37: Farm business overhead
A38: 5 | B38: Real estate charge | F38: =Input!B77+Input!B79+Input!B75*Input!B76*0.01 -> 168 | G38: 0 | H38: =Input!B77+Input!B79+Input!B75*Input!B76*0.01 -> 168 | K38: Machinery overhead | L38: Machinery overhead
B39: Ownership costs per acre | F39: =SUM(F35:F38) -> 223.3855181 | G39: =SUM(G35:G38) -> 55.38551812 | H39: =SUM(H35:H38) -> 168 | K39: Machinery depreciation | L39: Machinery depreciation
K40: Real estate charge | L40: Real estate charge
B41: Total costs per acre | F41: =F32+F39 -> 519.9747161 | G41: =G32+G39 -> 351.9747161 | H41: =H32+H39 -> 168 | K41: Ownership costs per acre | L41: Ownership costs per acre
B43: Income over operating costs per acre | F43: =F12-F32 -> 366.160802 | G43: =G12-G32 -> 366.160802 | H43: =H12-H32 -> 0 | K43: Total costs per acre | L43: Total costs per acre
B44: Income over total costs per acre | F44: =F12-F41 -> 142.7752839 | G44: =G12-G41 -> 310.7752839 | H44: =H12-H41 -> -168
K45: Income over operating costs per acre | L45: Income over operating costs per acre
D46: ="Operating costs per " & VLOOKUP(MDB!$C$159,MDB!$K$157:$M$160,3) -> Operating costs per bushel | F46: =F32/D8 -> 5.392530872 | G46: =G32/($D$8*(100-Input!$B$130)*0.01) -> 5.392530872 | H46: =IF(B5="cash rent",0, H32/($D$8*Input!$B$130*0.01)) ->  | K46: Income over total costs per acre | L46: Income over total costs per acre
D47: ="Ownership costs per " & VLOOKUP(MDB!$C$159,MDB!$K$157:$M$160,3) -> Ownership costs per bushel | F47: =F39/D8 -> 4.061554875 | G47: =G39/($D$8*(100-Input!$B$130)*0.01) -> 1.00700942 | H47: =IF(B5="cash rent",$F$47,H39/($D$8*Input!$B$130*0.01)) -> 
D48: ="Total costs per " & VLOOKUP(MDB!$C$159,MDB!$K$157:$M$160,3) -> Total costs per bushel | F48: =F41/D8 -> 9.454085747 | G48: =G41/($D$8*(100-Input!$B$130)*0.01) -> 6.399540293 | H48: =IF(B5="cash rent", 0,H41/($D$8*Input!$B$130*0.01)) ->  | K48: Operating costs per unit | L48: Operating costs per unit
K49: Ownership costs per unit | L49: Ownership costs per unit
K50: Total costs per unit | L50: Total costs per unit
B51: Detailed Report | C51: =B3 -> Soybeans | F51: =C3 -> 2022 Soybeans | H51: =TODAY() -> 2021-10-25
B53: Selected input quantities | C53: per acre | F53: Selected input prices | H53: $ per unit
B54: =CONCATENATE(D7,", ",C8) -> Yield, bushels | C54: =D8 -> 55 | F54: Farm diesel, per gallon | H54: =Input!B84 -> 2.91
B55: Seeding rate, count | C55: =Input!B22+Input!B23+SUM(Input!B24:B25) -> 170000 | F55: Operating interest, % | H55: =Input!B83 -> 4.9
B56: Nitrogen rate, lbs | C56: =SUM(Input!B32:B34) -> 0 | F56: Nitrogen, per lb | H56: =IF(SUM(Input!F32:F34)=0,0,((Input!B32*Input!F32)+(Input!B33*Input!F33)+(Input!B34*Input!F34))/SUM(Input!B32:B34)) -> 0
B57: Phosphorus rate, lbs | C57: =Input!B35 -> 46 | F57: Phosphorus, per lb | H57: =Input!F35 -> 0.65
B58: Potassium rate, lbs | C58: =Input!B36 -> 80 | F58: Potassium, per lb | H58: =Input!F36 -> 0.58
B59: Lime rate, tons | C59: =Input!B37 -> 0.5 | F59: Lime, per ton | H59: =Input!F37 -> 25
B60: Sum of allocated labor, hours | C60: =SUM(C68:C112)+Input!B63 -> 0.6753502341 | F60: Skilled labor, per hour | H60: =Input!B65 -> 23
B61: Irrigation, inches | C61: =Input!B70 -> 0 | F61: =IF(leasenum=2,"Cash rental rate","Land value") & ", per acre" -> Land value, per acre | H61: =IF(leasenum=2,Input!B78,Input!B75) -> 4800
C65: Labor | D65: Fuel | E65: Operating | F65: Ownership | G65: Total
C66: Hours | D66: Gallons | E66: Costs2 | F66: Costs3 | G66: Costs | H66: Trips
B67: Machine activity (not custom) | C67: per acre | D67: per acre | E67: $ per acre | F67: $ per acre | G67: $ per acre | H67: per acre
A68: 6 | B68: =IF($A68<>0,VLOOKUP($A68,'Machinery Cost'!$D$7:$W$53,20),"") -> V-Ripper 30" O.C., (17 ft); 0 | C68: =IF(AND(A68<>0,A68<>46,A68<>47,A68<>48),1/VLOOKUP($A68,'Machinery Cost'!$D$7:$W$53,9)*VLOOKUP($A68,'Machinery Cost'!$D$7:$W$53,5),"") -> 0 | D68: =IF(AND(A68<>0,A68<>45),VLOOKUP($A68,'Machinery Cost'!$D$7:$W$53,10)*VLOOKUP($A68,'Machinery Cost'!$D$7:$W$53,5),"") -> 0 | E68: =IF(A68<>0,VLOOKUP($A68,'Machinery Cost'!$D$7:$W$53,7)*VLOOKUP($A68,'Machinery Cost'!$D$7:$W$53,5),"") -> 0 | F68: =IF(A68<>0,VLOOKUP($A68,'Machinery Cost'!$D$7:$W$53,8),"") -> 0.9 | G68: =IF(A68<>0,E68+F68,"") -> 0.9 | H68: =IF(AND(A68<>0,A68<>46,A68<>47,A68<>48,A68<>43,A68<>44),VLOOKUP($A68,'Machinery Cost'!$D$7:$W$53,5),"") -> 0
A69: 11 | B69: =IF($A69<>0,VLOOKUP($A69,'Machinery Cost'!$D$7:$W$53,20),"") -> Row crop planter (16 row); 225 MFWD | C69: =IF(AND(A69<>0,A69<>46,A69<>47,A69<>48),1/VLOOKUP($A69,'Machinery Cost'!$D$7:$W$53,9)*VLOOKUP($A69,'Machinery Cost'!$D$7:$W$53,5),"") -> 0.05357142857 | D69: =IF(AND(A69<>0,A69<>45),VLOOKUP($A69,'Machinery Cost'!$D$7:$W$53,10)*VLOOKUP($A69,'Machinery Cost'!$D$7:$W$53,5),"") -> 0.5303571429 | E69: =IF(A69<>0,VLOOKUP($A69,'Machinery Cost'!$D$7:$W$53,7)*VLOOKUP($A69,'Machinery Cost'!$D$7:$W$53,5),"") -> 5.688590179 | F69: =IF(A69<>0,VLOOKUP($A69,'Machinery Cost'!$D$7:$W$53,8),"") -> 12.48357143 | G69: 18.17216161 | H69: =IF(AND(A69<>0,A69<>46,A69<>47,A69<>48,A69<>43,A69<>44),VLOOKUP($A69,'Machinery Cost'!$D$7:$W$53,5),"") -> 1
A70: 21 | B70: =IF($A70<>0,VLOOKUP($A70,'Machinery Cost'!$D$7:$W$53,20),"") -> Boom sprayer (90 ft); 130 MFWD | C70: =IF(AND(A70<>0,A70<>46,A70<>47,A70<>48),1/VLOOKUP($A70,'Machinery Cost'!$D$7:$W$53,9)*VLOOKUP($A70,'Machinery Cost'!$D$7:$W$53,5),"") -> 0.04339336082 | D70: =IF(AND(A70<>0,A70<>45),VLOOKUP($A70,'Machinery Cost'!$D$7:$W$53,10)*VLOOKUP($A70,'Machinery Cost'!$D$7:$W$53,5),"") -> 0.2482100239 | E70: =IF(A70<>0,VLOOKUP($A70,'Machinery Cost'!$D$7:$W$53,7)*VLOOKUP($A70,'Machinery Cost'!$D$7:$W$53,5),"") -> 2.997799089 | F70: =IF(A70<>0,VLOOKUP($A70,'Machinery Cost'!$D$7:$W$53,8),"") -> 4.669904535 | G70: 7.667703623 | H70: =IF(AND(A70<>0,A70<>46,A70<>47,A70<>48,A70<>43,A70<>44),VLOOKUP($A70,'Machinery Cost'!$D$7:$W$53,5),"") -> 2
A71: 23 | B71: =IF($A71<>0,VLOOKUP($A71,'Machinery Cost'!$D$7:$W$53,20),"") -> Anhydrous applicator (21 ft); 0 | C71: =IF(AND(A71<>0,A71<>46,A71<>47,A71<>48),1/VLOOKUP($A71,'Machinery Cost'!$D$7:$W$53,9)*VLOOKUP($A71,'Machinery Cost'!$D$7:$W$53,5),"") -> 0 | D71: =IF(AND(A71<>0,A71<>45),VLOOKUP($A71,'Machinery Cost'!$D$7:$W$53,10)*VLOOKUP($A71,'Machinery Cost'!$D$7:$W$53,5),"") -> 0 | E71: =IF(A71<>0,VLOOKUP($A71,'Machinery Cost'!$D$7:$W$53,7)*VLOOKUP($A71,'Machinery Cost'!$D$7:$W$53,5),"") -> 0 | F71: =IF(A71<>0,VLOOKUP($A71,'Machinery Cost'!$D$7:$W$53,8),"") -> 0.8228687011 | G71: 0.8228687011 | H71: =IF(AND(A71<>0,A71<>46,A71<>47,A71<>48,A71<>43,A71<>44),VLOOKUP($A71,'Machinery Cost'!$D$7:$W$53,5),"") -> 0
A72: 41 | B72: =IF($A72<>0,VLOOKUP($A72,'Machinery Cost'!$D$7:$W$53,20),"") -> Combine, corn head (8 row); 275 HP Comb. | C72: =IF(AND(A72<>0,A72<>46,A72<>47,A72<>48),1/VLOOKUP($A72,'Machinery Cost'!$D$7:$W$53,9)*VLOOKUP($A72,'Machinery Cost'!$D$7:$W$53,5),"") -> 0 | D72: =IF(AND(A72<>0,A72<>45),VLOOKUP($A72,'Machinery Cost'!$D$7:$W$53,10)*VLOOKUP($A72,'Machinery Cost'!$D$7:$W$53,5),"") -> 0 | E72: =IF(A72<>0,VLOOKUP($A72,'Machinery Cost'!$D$7:$W$53,7)*VLOOKUP($A72,'Machinery Cost'!$D$7:$W$53,5),"") -> 0 | F72: =IF(A72<>0,VLOOKUP($A72,'Machinery Cost'!$D$7:$W$53,8),"") -> 5.16916053 | G72: 5.16916053 | H72: =IF(AND(A72<>0,A72<>46,A72<>47,A72<>48,A72<>43,A72<>44),VLOOKUP($A72,'Machinery Cost'!$D$7:$W$53,5),"") -> 0
A73: 43 | B73: =IF($A73<>0,VLOOKUP($A73,'Machinery Cost'!$D$7:$W$53,20),"") -> Grain cart (500 bushel); 225 MFWD | C73: =IF(AND(A73<>0,A73<>46,A73<>47,A73<>48),1/VLOOKUP($A73,'Machinery Cost'!$D$7:$W$53,9)*VLOOKUP($A73,'Machinery Cost'!$D$7:$W$53,5),"") -> 0.06738544474 | D73: =IF(AND(A73<>0,A73<>45),VLOOKUP($A73,'Machinery Cost'!$D$7:$W$53,10)*VLOOKUP($A73,'Machinery Cost'!$D$7:$W$53,5),"") -> 0.667115903 | E73: =IF(A73<>0,VLOOKUP($A73,'Machinery Cost'!$D$7:$W$53,7)*VLOOKUP($A73,'Machinery Cost'!$D$7:$W$53,5),"") -> 4.731829515 | F73: =IF(A73<>0,VLOOKUP($A73,'Machinery Cost'!$D$7:$W$53,8),"") -> 7.492587601 | G73: 12.22441712 | H73: =IF(AND(A73<>0,A73<>46,A73<>47,A73<>48,A73<>43,A73<>44),VLOOKUP($A73,'Machinery Cost'!$D$7:$W$53,5),"") -> 
A74: 44 | B74: =IF($A74<>0,VLOOKUP($A74,'Machinery Cost'!$D$7:$W$53,20),"") -> Grain auger 10 in- 5000 bu/hr (70 ft); 130 MFWD | C74: =IF(AND(A74<>0,A74<>46,A74<>47,A74<>48),1/VLOOKUP($A74,'Machinery Cost'!$D$7:$W$53,9)*VLOOKUP($A74,'Machinery Cost'!$D$7:$W$53,5),"") -> 0.011 | D74: =IF(AND(A74<>0,A74<>45),VLOOKUP($A74,'Machinery Cost'!$D$7:$W$53,10)*VLOOKUP($A74,'Machinery Cost'!$D$7:$W$53,5),"") -> 0.06292 | E74: =IF(A74<>0,VLOOKUP($A74,'Machinery Cost'!$D$7:$W$53,7)*VLOOKUP($A74,'Machinery Cost'!$D$7:$W$53,5),"") -> 0.48138178 | F74: =IF(A74<>0,VLOOKUP($A74,'Machinery Cost'!$D$7:$W$53,8),"") -> 0.43901 | G74: 0.92039178 | H74: =IF(AND(A74<>0,A74<>46,A74<>47,A74<>48,A74<>43,A74<>44),VLOOKUP($A74,'Machinery Cost'!$D$7:$W$53,5),"") -> 
A75: 46 | B75: =IF($A75<>0,VLOOKUP($A75,'Machinery Cost'!$D$7:$W$53,20),"") -> 10 Wheeler | C75: =IF(AND(A75<>0,A75<>46,A75<>47,A75<>48),1/VLOOKUP($A75,'Machinery Cost'!$D$7:$W$53,9)*VLOOKUP($A75,'Machinery Cost'!$D$7:$W$53,5),"") ->  | D75: =IF(AND(A75<>0,A75<>45),VLOOKUP($A75,'Machinery Cost'!$D$7:$W$53,10)*VLOOKUP($A75,'Machinery Cost'!$D$7:$W$53,5),"") -> 0.375 | E75: =IF(A75<>0,VLOOKUP($A75,'Machinery Cost'!$D$7:$W$53,7)*VLOOKUP($A75,'Machinery Cost'!$D$7:$W$53,5),"") -> 1.36275 | F75: =IF(A75<>0,VLOOKUP($A75,'Machinery Cost'!$D$7:$W$53,8),"") -> 0.386605 | G75: 1.749355 | H75: =IF(AND(A75<>0,A75<>46,A75<>47,A75<>48,A75<>43,A75<>44),VLOOKUP($A75,'Machinery Cost'!$D$7:$W$53,5),"") -> 
A76: 47 | B76: =IF($A76<>0,VLOOKUP($A76,'Machinery Cost'!$D$7:$W$53,20),"") -> Semi, tractor and trailer | C76: =IF(AND(A76<>0,A76<>46,A76<>47,A76<>48),1/VLOOKUP($A76,'Machinery Cost'!$D$7:$W$53,9)*VLOOKUP($A76,'Machinery Cost'!$D$7:$W$53,5),"") ->  | D76: =IF(AND(A76<>0,A76<>45),VLOOKUP($A76,'Machinery Cost'!$D$7:$W$53,10)*VLOOKUP($A76,'Machinery Cost'!$D$7:$W$53,5),"") -> 0.3571428571 | E76: =IF(A76<>0,VLOOKUP($A76,'Machinery Cost'!$D$7:$W$53,7)*VLOOKUP($A76,'Machinery Cost'!$D$7:$W$53,5),"") -> 2.227 | F76: =IF(A76<>0,VLOOKUP($A76,'Machinery Cost'!$D$7:$W$53,8),"") -> 1.495666667 | G76: 3.722666667 | H76: =IF(AND(A76<>0,A76<>46,A76<>47,A76<>48,A76<>43,A76<>44),VLOOKUP($A76,'Machinery Cost'!$D$7:$W$53,5),"") -> 
A77: 48 | B77: =IF($A77<>0,VLOOKUP($A77,'Machinery Cost'!$D$7:$W$53,20),"") -> Pickup truck | C77: =IF(AND(A77<>0,A77<>46,A77<>47,A77<>48),1/VLOOKUP($A77,'Machinery Cost'!$D$7:$W$53,9)*VLOOKUP($A77,'Machinery Cost'!$D$7:$W$53,5),"") ->  | D77: =IF(AND(A77<>0,A77<>45),VLOOKUP($A77,'Machinery Cost'!$D$7:$W$53,10)*VLOOKUP($A77,'Machinery Cost'!$D$7:$W$53,5),"") -> 0.3333333333 | E77: =IF(A77<>0,VLOOKUP($A77,'Machinery Cost'!$D$7:$W$53,7)*VLOOKUP($A77,'Machinery Cost'!$D$7:$W$53,5),"") -> 1.707673333 | F77: =IF(A77<>0,VLOOKUP($A77,'Machinery Cost'!$D$7:$W$53,8),"") -> 2.05280128 | G77: 3.760474613 | H77: =IF(AND(A77<>0,A77<>46,A77<>47,A77<>48,A77<>43,A77<>44),VLOOKUP($A77,'Machinery Cost'!$D$7:$W$53,5),"") -> 
A78: 0 | B78: =IF($A78<>0,VLOOKUP($A78,'Machinery Cost'!$D$7:$W$53,20),"") ->  | C78: =IF(AND(A78<>0,A78<>46,A78<>47,A78<>48),1/VLOOKUP($A78,'Machinery Cost'!$D$7:$W$53,9)*VLOOKUP($A78,'Machinery Cost'!$D$7:$W$53,5),"") ->  | D78: =IF(AND(A78<>0,A78<>45),VLOOKUP($A78,'Machinery Cost'!$D$7:$W$53,10)*VLOOKUP($A78,'Machinery Cost'!$D$7:$W$53,5),"") ->  | E78: =IF(A78<>0,VLOOKUP($A78,'Machinery Cost'!$D$7:$W$53,7)*VLOOKUP($A78,'Machinery Cost'!$D$7:$W$53,5),"") ->  | F78: =IF(A78<>0,VLOOKUP($A78,'Machinery Cost'!$D$7:$W$53,8),"") ->  | H78: =IF(AND(A78<>0,A78<>46,A78<>47,A78<>48,A78<>43,A78<>44),VLOOKUP($A78,'Machinery Cost'!$D$7:$W$53,5),"") -> 
A79: 0 | B79: =IF($A79<>0,VLOOKUP($A79,'Machinery Cost'!$D$7:$W$53,20),"") ->  | C79: =IF(AND(A79<>0,A79<>46,A79<>47,A79<>48),1/VLOOKUP($A79,'Machinery Cost'!$D$7:$W$53,9)*VLOOKUP($A79,'Machinery Cost'!$D$7:$W$53,5),"") ->  | D79: =IF(AND(A79<>0,A79<>45),VLOOKUP($A79,'Machinery Cost'!$D$7:$W$53,10)*VLOOKUP($A79,'Machinery Cost'!$D$7:$W$53,5),"") ->  | E79: =IF(A79<>0,VLOOKUP($A79,'Machinery Cost'!$D$7:$W$53,7)*VLOOKUP($A79,'Machinery Cost'!$D$7:$W$53,5),"") ->  | F79: =IF(A79<>0,VLOOKUP($A79,'Machinery Cost'!$D$7:$W$53,8),"") ->  | H79: =IF(AND(A79<>0,A79<>46,A79<>47,A79<>48,A79<>43,A79<>44),VLOOKUP($A79,'Machinery Cost'!$D$7:$W$53,5),"") -> 
A80: 0 | B80: =IF($A80<>0,VLOOKUP($A80,'Machinery Cost'!$D$7:$W$53,20),"") ->  | C80: =IF(AND(A80<>0,A80<>46,A80<>47,A80<>48),1/VLOOKUP($A80,'Machinery Cost'!$D$7:$W$53,9)*VLOOKUP($A80,'Machinery Cost'!$D$7:$W$53,5),"") ->  | D80: =IF(AND(A80<>0,A80<>45),VLOOKUP($A80,'Machinery Cost'!$D$7:$W$53,10)*VLOOKUP($A80,'Machinery Cost'!$D$7:$W$53,5),"") ->  | E80: =IF(A80<>0,VLOOKUP($A80,'Machinery Cost'!$D$7:$W$53,7)*VLOOKUP($A80,'Machinery Cost'!$D$7:$W$53,5),"") ->  | F80: =IF(A80<>0,VLOOKUP($A80,'Machinery Cost'!$D$7:$W$53,8),"") ->  | H80: =IF(AND(A80<>0,A80<>46,A80<>47,A80<>48,A80<>43,A80<>44),VLOOKUP($A80,'Machinery Cost'!$D$7:$W$53,5),"") -> 
A81: 0 | B81: =IF($A81<>0,VLOOKUP($A81,'Machinery Cost'!$D$7:$W$53,20),"") ->  | C81: =IF(AND(A81<>0,A81<>46,A81<>47,A81<>48),1/VLOOKUP($A81,'Machinery Cost'!$D$7:$W$53,9)*VLOOKUP($A81,'Machinery Cost'!$D$7:$W$53,5),"") ->  | D81: =IF(AND(A81<>0,A81<>45),VLOOKUP($A81,'Machinery Cost'!$D$7:$W$53,10)*VLOOKUP($A81,'Machinery Cost'!$D$7:$W$53,5),"") ->  | E81: =IF(A81<>0,VLOOKUP($A81,'Machinery Cost'!$D$7:$W$53,7)*VLOOKUP($A81,'Machinery Cost'!$D$7:$W$53,5),"") ->  | F81: =IF(A81<>0,VLOOKUP($A81,'Machinery Cost'!$D$7:$W$53,8),"") ->  | H81: =IF(AND(A81<>0,A81<>46,A81<>47,A81<>48,A81<>43,A81<>44),VLOOKUP($A81,'Machinery Cost'!$D$7:$W$53,5),"") -> 
A82: 0 | B82: =IF($A82<>0,VLOOKUP($A82,'Machinery Cost'!$D$7:$W$53,20),"") ->  | C82: =IF(AND(A82<>0,A82<>46,A82<>47,A82<>48),1/VLOOKUP($A82,'Machinery Cost'!$D$7:$W$53,9)*VLOOKUP($A82,'Machinery Cost'!$D$7:$W$53,5),"") ->  | D82: =IF(AND(A82<>0,A82<>45),VLOOKUP($A82,'Machinery Cost'!$D$7:$W$53,10)*VLOOKUP($A82,'Machinery Cost'!$D$7:$W$53,5),"") ->  | E82: =IF(A82<>0,VLOOKUP($A82,'Machinery Cost'!$D$7:$W$53,7)*VLOOKUP($A82,'Machinery Cost'!$D$7:$W$53,5),"") ->  | F82: =IF(A82<>0,VLOOKUP($A82,'Machinery Cost'!$D$7:$W$53,8),"") ->  | H82: =IF(AND(A82<>0,A82<>46,A82<>47,A82<>48,A82<>43,A82<>44),VLOOKUP($A82,'Machinery Cost'!$D$7:$W$53,5),"") -> 
A83: 0 | B83: =IF($A83<>0,VLOOKUP($A83,'Machinery Cost'!$D$7:$W$53,20),"") ->  | C83: =IF(AND(A83<>0,A83<>46,A83<>47,A83<>48),1/VLOOKUP($A83,'Machinery Cost'!$D$7:$W$53,9)*VLOOKUP($A83,'Machinery Cost'!$D$7:$W$53,5),"") ->  | D83: =IF(AND(A83<>0,A83<>45),VLOOKUP($A83,'Machinery Cost'!$D$7:$W$53,10)*VLOOKUP($A83,'Machinery Cost'!$D$7:$W$53,5),"") ->  | E83: =IF(A83<>0,VLOOKUP($A83,'Machinery Cost'!$D$7:$W$53,7)*VLOOKUP($A83,'Machinery Cost'!$D$7:$W$53,5),"") ->  | F83: =IF(A83<>0,VLOOKUP($A83,'Machinery Cost'!$D$7:$W$53,8),"") ->  | H83: =IF(AND(A83<>0,A83<>46,A83<>47,A83<>48,A83<>43,A83<>44),VLOOKUP($A83,'Machinery Cost'!$D$7:$W$53,5),"") -> 
A84: 0 | B84: =IF($A84<>0,VLOOKUP($A84,'Machinery Cost'!$D$7:$W$53,20),"") ->  | C84: =IF(AND(A84<>0,A84<>46,A84<>47,A84<>48),1/VLOOKUP($A84,'Machinery Cost'!$D$7:$W$53,9)*VLOOKUP($A84,'Machinery Cost'!$D$7:$W$53,5),"") ->  | D84: =IF(AND(A84<>0,A84<>45),VLOOKUP($A84,'Machinery Cost'!$D$7:$W$53,10)*VLOOKUP($A84,'Machinery Cost'!$D$7:$W$53,5),"") ->  | E84: =IF(A84<>0,VLOOKUP($A84,'Machinery Cost'!$D$7:$W$53,7)*VLOOKUP($A84,'Machinery Cost'!$D$7:$W$53,5),"") ->  | F84: =IF(A84<>0,VLOOKUP($A84,'Machinery Cost'!$D$7:$W$53,8),"") ->  | H84: =IF(AND(A84<>0,A84<>46,A84<>47,A84<>48,A84<>43,A84<>44),VLOOKUP($A84,'Machinery Cost'!$D$7:$W$53,5),"") -> 
A85: 0 | B85: =IF($A85<>0,VLOOKUP($A85,'Machinery Cost'!$D$7:$W$53,20),"") ->  | C85: =IF(AND(A85<>0,A85<>46,A85<>47,A85<>48),1/VLOOKUP($A85,'Machinery Cost'!$D$7:$W$53,9)*VLOOKUP($A85,'Machinery Cost'!$D$7:$W$53,5),"") ->  | D85: =IF(AND(A85<>0,A85<>45),VLOOKUP($A85,'Machinery Cost'!$D$7:$W$53,10)*VLOOKUP($A85,'Machinery Cost'!$D$7:$W$53,5),"") ->  | E85: =IF(A85<>0,VLOOKUP($A85,'Machinery Cost'!$D$7:$W$53,7)*VLOOKUP($A85,'Machinery Cost'!$D$7:$W$53,5),"") ->  | F85: =IF(A85<>0,VLOOKUP($A85,'Machinery Cost'!$D$7:$W$53,8),"") ->  | H85: =IF(AND(A85<>0,A85<>46,A85<>47,A85<>48,A85<>43,A85<>44),VLOOKUP($A85,'Machinery Cost'!$D$7:$W$53,5),"") -> 
A86: 0 | B86: =IF($A86<>0,VLOOKUP($A86,'Machinery Cost'!$D$7:$W$53,20),"") ->  | C86: =IF(AND(A86<>0,A86<>46,A86<>47,A86<>48),1/VLOOKUP($A86,'Machinery Cost'!$D$7:$W$53,9)*VLOOKUP($A86,'Machinery Cost'!$D$7:$W$53,5),"") ->  | D86: =IF(AND(A86<>0,A86<>45),VLOOKUP($A86,'Machinery Cost'!$D$7:$W$53,10)*VLOOKUP($A86,'Machinery Cost'!$D$7:$W$53,5),"") ->  | E86: =IF(A86<>0,VLOOKUP($A86,'Machinery Cost'!$D$7:$W$53,7)*VLOOKUP($A86,'Machinery Cost'!$D$7:$W$53,5),"") ->  | F86: =IF(A86<>0,VLOOKUP($A86,'Machinery Cost'!$D$7:$W$53,8),"") ->  | H86: =IF(AND(A86<>0,A86<>46,A86<>47,A86<>48,A86<>43,A86<>44),VLOOKUP($A86,'Machinery Cost'!$D$7:$W$53,5),"") -> 
A87: 0 | B87: =IF($A87<>0,VLOOKUP($A87,'Machinery Cost'!$D$7:$W$53,20),"") ->  | C87: =IF(AND(A87<>0,A87<>46,A87<>47,A87<>48),1/VLOOKUP($A87,'Machinery Cost'!$D$7:$W$53,9)*VLOOKUP($A87,'Machinery Cost'!$D$7:$W$53,5),"") ->  | D87: =IF(AND(A87<>0,A87<>45),VLOOKUP($A87,'Machinery Cost'!$D$7:$W$53,10)*VLOOKUP($A87,'Machinery Cost'!$D$7:$W$53,5),"") ->  | E87: =IF(A87<>0,VLOOKUP($A87,'Machinery Cost'!$D$7:$W$53,7)*VLOOKUP($A87,'Machinery Cost'!$D$7:$W$53,5),"") ->  | F87: =IF(A87<>0,VLOOKUP($A87,'Machinery Cost'!$D$7:$W$53,8),"") ->  | H87: =IF(AND(A87<>0,A87<>46,A87<>47,A87<>48,A87<>43,A87<>44),VLOOKUP($A87,'Machinery Cost'!$D$7:$W$53,5),"") -> 
A88: 0 | B88: =IF($A88<>0,VLOOKUP($A88,'Machinery Cost'!$D$7:$W$53,20),"") ->  | C88: =IF(AND(A88<>0,A88<>46,A88<>47,A88<>48),1/VLOOKUP($A88,'Machinery Cost'!$D$7:$W$53,9)*VLOOKUP($A88,'Machinery Cost'!$D$7:$W$53,5),"") ->  | D88: =IF(AND(A88<>0,A88<>45),VLOOKUP($A88,'Machinery Cost'!$D$7:$W$53,10)*VLOOKUP($A88,'Machinery Cost'!$D$7:$W$53,5),"") ->  | E88: =IF(A88<>0,VLOOKUP($A88,'Machinery Cost'!$D$7:$W$53,7)*VLOOKUP($A88,'Machinery Cost'!$D$7:$W$53,5),"") ->  | F88: =IF(A88<>0,VLOOKUP($A88,'Machinery Cost'!$D$7:$W$53,8),"") ->  | H88: =IF(AND(A88<>0,A88<>46,A88<>47,A88<>48,A88<>43,A88<>44),VLOOKUP($A88,'Machinery Cost'!$D$7:$W$53,5),"") -> 
A89: 0 | B89: =IF($A89<>0,VLOOKUP($A89,'Machinery Cost'!$D$7:$W$53,20),"") ->  | C89: =IF(AND(A89<>0,A89<>46,A89<>47,A89<>48),1/VLOOKUP($A89,'Machinery Cost'!$D$7:$W$53,9)*VLOOKUP($A89,'Machinery Cost'!$D$7:$W$53,5),"") ->  | D89: =IF(AND(A89<>0,A89<>45),VLOOKUP($A89,'Machinery Cost'!$D$7:$W$53,10)*VLOOKUP($A89,'Machinery Cost'!$D$7:$W$53,5),"") ->  | E89: =IF(A89<>0,VLOOKUP($A89,'Machinery Cost'!$D$7:$W$53,7)*VLOOKUP($A89,'Machinery Cost'!$D$7:$W$53,5),"") ->  | F89: =IF(A89<>0,VLOOKUP($A89,'Machinery Cost'!$D$7:$W$53,8),"") ->  | H89: =IF(AND(A89<>0,A89<>46,A89<>47,A89<>48,A89<>43,A89<>44),VLOOKUP($A89,'Machinery Cost'!$D$7:$W$53,5),"") -> 
A90: 0 | B90: =IF($A90<>0,VLOOKUP($A90,'Machinery Cost'!$D$7:$W$53,20),"") ->  | C90: =IF(AND(A90<>0,A90<>46,A90<>47,A90<>48),1/VLOOKUP($A90,'Machinery Cost'!$D$7:$W$53,9)*VLOOKUP($A90,'Machinery Cost'!$D$7:$W$53,5),"") ->  | D90: =IF(AND(A90<>0,A90<>45),VLOOKUP($A90,'Machinery Cost'!$D$7:$W$53,10)*VLOOKUP($A90,'Machinery Cost'!$D$7:$W$53,5),"") ->  | E90: =IF(A90<>0,VLOOKUP($A90,'Machinery Cost'!$D$7:$W$53,7)*VLOOKUP($A90,'Machinery Cost'!$D$7:$W$53,5),"") ->  | F90: =IF(A90<>0,VLOOKUP($A90,'Machinery Cost'!$D$7:$W$53,8),"") ->  | H90: =IF(AND(A90<>0,A90<>46,A90<>47,A90<>48,A90<>43,A90<>44),VLOOKUP($A90,'Machinery Cost'!$D$7:$W$53,5),"") -> 
A91: 0 | B91: =IF($A91<>0,VLOOKUP($A91,'Machinery Cost'!$D$7:$W$53,20),"") ->  | C91: =IF(AND(A91<>0,A91<>46,A91<>47,A91<>48),1/VLOOKUP($A91,'Machinery Cost'!$D$7:$W$53,9)*VLOOKUP($A91,'Machinery Cost'!$D$7:$W$53,5),"") ->  | D91: =IF(AND(A91<>0,A91<>45),VLOOKUP($A91,'Machinery Cost'!$D$7:$W$53,10)*VLOOKUP($A91,'Machinery Cost'!$D$7:$W$53,5),"") ->  | E91: =IF(A91<>0,VLOOKUP($A91,'Machinery Cost'!$D$7:$W$53,7)*VLOOKUP($A91,'Machinery Cost'!$D$7:$W$53,5),"") ->  | F91: =IF(A91<>0,VLOOKUP($A91,'Machinery Cost'!$D$7:$W$53,8),"") ->  | H91: =IF(AND(A91<>0,A91<>46,A91<>47,A91<>48,A91<>43,A91<>44),VLOOKUP($A91,'Machinery Cost'!$D$7:$W$53,5),"") -> 
A92: 0 | B92: =IF($A92<>0,VLOOKUP($A92,'Machinery Cost'!$D$7:$W$53,20),"") ->  | C92: =IF(AND(A92<>0,A92<>46,A92<>47,A92<>48),1/VLOOKUP($A92,'Machinery Cost'!$D$7:$W$53,9)*VLOOKUP($A92,'Machinery Cost'!$D$7:$W$53,5),"") ->  | D92: =IF(AND(A92<>0,A92<>45),VLOOKUP($A92,'Machinery Cost'!$D$7:$W$53,10)*VLOOKUP($A92,'Machinery Cost'!$D$7:$W$53,5),"") ->  | E92: =IF(A92<>0,VLOOKUP($A92,'Machinery Cost'!$D$7:$W$53,7)*VLOOKUP($A92,'Machinery Cost'!$D$7:$W$53,5),"") ->  | F92: =IF(A92<>0,VLOOKUP($A92,'Machinery Cost'!$D$7:$W$53,8),"") ->  | H92: =IF(AND(A92<>0,A92<>46,A92<>47,A92<>48,A92<>43,A92<>44),VLOOKUP($A92,'Machinery Cost'!$D$7:$W$53,5),"") -> 
A93: 0 | B93: =IF($A93<>0,VLOOKUP($A93,'Machinery Cost'!$D$7:$W$53,20),"") ->  | C93: =IF(AND(A93<>0,A93<>46,A93<>47,A93<>48),1/VLOOKUP($A93,'Machinery Cost'!$D$7:$W$53,9)*VLOOKUP($A93,'Machinery Cost'!$D$7:$W$53,5),"") ->  | D93: =IF(AND(A93<>0,A93<>45),VLOOKUP($A93,'Machinery Cost'!$D$7:$W$53,10)*VLOOKUP($A93,'Machinery Cost'!$D$7:$W$53,5),"") ->  | E93: =IF(A93<>0,VLOOKUP($A93,'Machinery Cost'!$D$7:$W$53,7)*VLOOKUP($A93,'Machinery Cost'!$D$7:$W$53,5),"") ->  | F93: =IF(A93<>0,VLOOKUP($A93,'Machinery Cost'!$D$7:$W$53,8),"") ->  | H93: =IF(AND(A93<>0,A93<>46,A93<>47,A93<>48,A93<>43,A93<>44),VLOOKUP($A93,'Machinery Cost'!$D$7:$W$53,5),"") -> 
A94: 0 | B94: =IF($A94<>0,VLOOKUP($A94,'Machinery Cost'!$D$7:$W$53,20),"") ->  | C94: =IF(AND(A94<>0,A94<>46,A94<>47,A94<>48),1/VLOOKUP($A94,'Machinery Cost'!$D$7:$W$53,9)*VLOOKUP($A94,'Machinery Cost'!$D$7:$W$53,5),"") ->  | D94: =IF(AND(A94<>0,A94<>45),VLOOKUP($A94,'Machinery Cost'!$D$7:$W$53,10)*VLOOKUP($A94,'Machinery Cost'!$D$7:$W$53,5),"") ->  | E94: =IF(A94<>0,VLOOKUP($A94,'Machinery Cost'!$D$7:$W$53,7)*VLOOKUP($A94,'Machinery Cost'!$D$7:$W$53,5),"") ->  | F94: =IF(A94<>0,VLOOKUP($A94,'Machinery Cost'!$D$7:$W$53,8),"") ->  | H94: =IF(AND(A94<>0,A94<>46,A94<>47,A94<>48,A94<>43,A94<>44),VLOOKUP($A94,'Machinery Cost'!$D$7:$W$53,5),"") -> 
A95: 0 | B95: =IF($A95<>0,VLOOKUP($A95,'Machinery Cost'!$D$7:$W$53,20),"") ->  | C95: =IF(AND(A95<>0,A95<>46,A95<>47,A95<>48),1/VLOOKUP($A95,'Machinery Cost'!$D$7:$W$53,9)*VLOOKUP($A95,'Machinery Cost'!$D$7:$W$53,5),"") ->  | D95: =IF(AND(A95<>0,A95<>45),VLOOKUP($A95,'Machinery Cost'!$D$7:$W$53,10)*VLOOKUP($A95,'Machinery Cost'!$D$7:$W$53,5),"") ->  | E95: =IF(A95<>0,VLOOKUP($A95,'Machinery Cost'!$D$7:$W$53,7)*VLOOKUP($A95,'Machinery Cost'!$D$7:$W$53,5),"") ->  | F95: =IF(A95<>0,VLOOKUP($A95,'Machinery Cost'!$D$7:$W$53,8),"") ->  | H95: =IF(AND(A95<>0,A95<>46,A95<>47,A95<>48,A95<>43,A95<>44),VLOOKUP($A95,'Machinery Cost'!$D$7:$W$53,5),"") -> 
A96: 0 | B96: =IF($A96<>0,VLOOKUP($A96,'Machinery Cost'!$D$7:$W$53,20),"") ->  | C96: =IF(AND(A96<>0,A96<>46,A96<>47,A96<>48),1/VLOOKUP($A96,'Machinery Cost'!$D$7:$W$53,9)*VLOOKUP($A96,'Machinery Cost'!$D$7:$W$53,5),"") ->  | D96: =IF(AND(A96<>0,A96<>45),VLOOKUP($A96,'Machinery Cost'!$D$7:$W$53,10)*VLOOKUP($A96,'Machinery Cost'!$D$7:$W$53,5),"") ->  | E96: =IF(A96<>0,VLOOKUP($A96,'Machinery Cost'!$D$7:$W$53,7)*VLOOKUP($A96,'Machinery Cost'!$D$7:$W$53,5),"") ->  | F96: =IF(A96<>0,VLOOKUP($A96,'Machinery Cost'!$D$7:$W$53,8),"") ->  | H96: =IF(AND(A96<>0,A96<>46,A96<>47,A96<>48,A96<>43,A96<>44),VLOOKUP($A96,'Machinery Cost'!$D$7:$W$53,5),"") -> 
A97: 0 | B97: =IF($A97<>0,VLOOKUP($A97,'Machinery Cost'!$D$7:$W$53,20),"") ->  | C97: =IF(AND(A97<>0,A97<>46,A97<>47,A97<>48),1/VLOOKUP($A97,'Machinery Cost'!$D$7:$W$53,9)*VLOOKUP($A97,'Machinery Cost'!$D$7:$W$53,5),"") ->  | D97: =IF(AND(A97<>0,A97<>45),VLOOKUP($A97,'Machinery Cost'!$D$7:$W$53,10)*VLOOKUP($A97,'Machinery Cost'!$D$7:$W$53,5),"") ->  | E97: =IF(A97<>0,VLOOKUP($A97,'Machinery Cost'!$D$7:$W$53,7)*VLOOKUP($A97,'Machinery Cost'!$D$7:$W$53,5),"") ->  | F97: =IF(A97<>0,VLOOKUP($A97,'Machinery Cost'!$D$7:$W$53,8),"") ->  | H97: =IF(AND(A97<>0,A97<>46,A97<>47,A97<>48,A97<>43,A97<>44),VLOOKUP($A97,'Machinery Cost'!$D$7:$W$53,5),"") -> 
A98: 0 | B98: =IF($A98<>0,VLOOKUP($A98,'Machinery Cost'!$D$7:$W$53,20),"") ->  | C98: =IF(AND(A98<>0,A98<>46,A98<>47,A98<>48),1/VLOOKUP($A98,'Machinery Cost'!$D$7:$W$53,9)*VLOOKUP($A98,'Machinery Cost'!$D$7:$W$53,5),"") ->  | D98: =IF(AND(A98<>0,A98<>45),VLOOKUP($A98,'Machinery Cost'!$D$7:$W$53,10)*VLOOKUP($A98,'Machinery Cost'!$D$7:$W$53,5),"") ->  | E98: =IF(A98<>0,VLOOKUP($A98,'Machinery Cost'!$D$7:$W$53,7)*VLOOKUP($A98,'Machinery Cost'!$D$7:$W$53,5),"") ->  | F98: =IF(A98<>0,VLOOKUP($A98,'Machinery Cost'!$D$7:$W$53,8),"") ->  | H98: =IF(AND(A98<>0,A98<>46,A98<>47,A98<>48,A98<>43,A98<>44),VLOOKUP($A98,'Machinery Cost'!$D$7:$W$53,5),"") -> 
A99: 0
A100: 0
A101: 0 | B101: 1 Farm business overhead includes liability insurance, utilities, accounting, etc. Machinery overhead is the sum of opportunity interest,
A102: 0 | B102: property taxes, insurance, and housing. Machinery depreciation is a market value decline due to aging and usage. Thus, a portion of
A103: 0 | B103: depreciation should be considered an operating costs for some decisions. Real estate charge includes land, improvements, taxes.
A104: 0 | B104: Economic costs may differ from rental rates.
A105: 0 | B105: 2 Machinery operating cost is the sum of fuel, repairs, maintenance, and the value of labor.
A106: 0 | B106: 3 Machinery ownership cost is the sum of machinery overhead and depreciation (see page 1).
A107: 0
A108: 0
A109: 0
A110: 0 | B110: Commented range (minus 1 column) | C110: Range of Comment (minus 1 column)
A111: 0 | B111: A34 | C111: A101
A112: 0 | B112: D66 | C112: A105
A113: 0 | B113: E66 | C113: A106
A114: 0
A115: 0

Sheet Machinery Cost (hidden)
B1: Skilled Labor, $/hr | C1: =Input!B65 -> 23
B2: Unskilled Labor, $/hr | C2: =Input!B64 -> 17.5
B3: Power Unit Fuel, $/gal | C3: =Input!B84 -> 2.91
B4: Pickup fuel, $/gal | C4: =Input!B85 -> 3.08 | I4: Activity Costs | L4: Labor and Fuel, Quantity and Costs | P4: Machine Costs | S4: Power Costs
H5: Passes | I5: Total | J5: Operating | K5: Ownership | L5: Acres per | M5: Fuel | N5: Labor | O5: Fuel | P5: Rep & Main | Q5: Depreciation | R5: Overhead | S5: Rep and Main | T5: Depreciation | U5: Overhead
A6: Name | B6: Implement | C6: Power | D6: ID | E6: Implement | F6: Power Source | G6: Use | H6: Trips/Acre | I6: $/Acre | J6: $/Acre | K6: $/Acre | L6: Labor Hour | M6: Gal/Acre | N6: $/Acre | O6: $/Acre | P6: $/Acre | Q6: $/Acre | R6: $/Acre | S6: $/Acre | T6: $/Acre | U6: $/Acre | V6: Rented | W6: Label
A7: Chisel_Plow | B7: =Input!B149 -> 15 ft | C7: =Input!D149 -> 0 | D7: 1 | E7: =VLOOKUP($B7,OFFSET(INDIRECT(A7),0,0,,MDB!$H$38),2,FALSE) -> Chisel plow (15 ft) | F7: =VLOOKUP(C7,OFFSET(Power_Size,0,0,,MDB!$P$4),1,FALSE) ->  | G7: =IF(H7>0,1,0) -> 0 | H7: =Input!F149 -> 0 | I7: =J7+K7 -> 4.176116636 | J7: =N7+O7+P7+S7+V7 -> 2.674568963 | K7: =Q7*H7+R7+T7*H7+U7 -> 1.501547673 | L7: =VLOOKUP($B7,OFFSET(INDIRECT(A7),0,0,,MDB!$H$38),3,FALSE) -> 8.5 | M7: =VLOOKUP(C7,OFFSET(Power_Size,0,0,ROWS(Power_Size)+1,MDB!$P$4),5,FALSE)/L7 -> 0 | N7: =C$2*(1/L7) -> 2.058823529 | O7: =M7*C$3 -> 0 | P7: =IF(V7=0,VLOOKUP($B7,OFFSET(INDIRECT(A7),0,0,,MDB!$H$38),4,FALSE),0) -> 0.6157454336 | Q7: =IF(V7=0,VLOOKUP($B7,OFFSET(INDIRECT(A7),0,0,,MDB!$H$38),5,FALSE),0) -> 1.658686384 | R7: =IF(V7=0,VLOOKUP($B7,OFFSET(INDIRECT(A7),0,0,,MDB!$H$38),6,FALSE),0) -> 1.501547673 | S7: =(VLOOKUP(C7,OFFSET(Power_Size,0,0,ROWS(Power_Size)+1,MDB!$P$4),2,FALSE)/L7)+(0.15*O7) -> 0 | T7: =VLOOKUP(C7,OFFSET(Power_Size,0,0,ROWS(Power_Size)+1,MDB!$P$4),3,FALSE)/L7 -> 0 | U7: =VLOOKUP(C7,OFFSET(Power_Size,0,0,ROWS(Power_Size)+1,MDB!$P$4),4,FALSE)/L7 -> 0 | V7: =Input!H149 -> 0 | W7: =CONCATENATE(IF(V7<>0,"Rent, ",""),E7,"; ",C7) -> Chisel plow (15 ft); 0
A8: Chisel_Plow_FD | B8: =Input!B150 -> 16.3 ft | C8: =Input!D150 -> 0 | D8: 2 | E8: =VLOOKUP($B8,OFFSET(INDIRECT(A8),0,0,,MDB!$H$38),2,FALSE) -> Chisel plow, front dsk (16.3 ft) | F8: =VLOOKUP(C8,OFFSET(Power_Size,0,0,,MDB!$P$4),1,FALSE) ->  | G8: =IF(H8>0,1,0) -> 0 | H8: =Input!F150 -> 0 | I8: =J8+K8 -> 3.899163117 | J8: =N8+O8+P8+S8+V8 -> 2.318382941 | K8: =Q8*H8+R8+T8*H8+U8 -> 1.580780175 | L8: =VLOOKUP($B8,OFFSET(INDIRECT(A8),0,0,,MDB!$H$38),3,FALSE) -> 9.208333333 | M8: =VLOOKUP(C8,OFFSET(Power_Size,0,0,ROWS(Power_Size)+1,MDB!$P$4),5,FALSE)/L8 -> 0 | N8: =C$2*(1/L8) -> 1.900452489 | O8: 0 | P8: =IF(V8=0,VLOOKUP($B8,OFFSET(INDIRECT(A8),0,0,,MDB!$H$38),4,FALSE),0) -> 0.4179304524 | Q8: =IF(V8=0,VLOOKUP($B8,OFFSET(INDIRECT(A8),0,0,,MDB!$H$38),5,FALSE),0) -> 1.772846985 | R8: =IF(V8=0,VLOOKUP($B8,OFFSET(INDIRECT(A8),0,0,,MDB!$H$38),6,FALSE),0) -> 1.580780175 | S8: =(VLOOKUP(C8,OFFSET(Power_Size,0,0,ROWS(Power_Size)+1,MDB!$P$4),2,FALSE)/L8)+(0.15*O8) -> 0 | T8: =VLOOKUP(C8,OFFSET(Power_Size,0,0,ROWS(Power_Size)+1,MDB!$P$4),3,FALSE)/L8 -> 0 | U8: =VLOOKUP(C8,OFFSET(Power_Size,0,0,ROWS(Power_Size)+1,MDB!$P$4),4,FALSE)/L8 -> 0 | V8: =Input!H150 -> 0 | W8: =CONCATENATE(IF(V8<>0,"Rent, ",""),E8,"; ",C8) -> Chisel plow, front dsk (16.3 ft); 0
A9: Moldboard_Plow | B9: =Input!B151 -> 6 ft | C9: =Input!D151 -> 0 | D9: 3 | E9: =VLOOKUP($B9,OFFSET(INDIRECT(A9),0,0,,MDB!$H$38),2,FALSE) -> Moldboard plow 4 bottom-18 (6 ft) | F9: =VLOOKUP(C9,OFFSET(Power_Size,0,0,,MDB!$P$4),1,FALSE) ->  | G9: 0 | H9: =Input!F151 -> 0 | I9: =J9+K9 -> 11.30176771 | J9: 8.708201338 | K9: 2.593566376 | L9: =VLOOKUP($B9,OFFSET(INDIRECT(A9),0,0,,MDB!$H$38),3,FALSE) -> 2.781818182 | M9: =VLOOKUP(C9,OFFSET(Power_Size,0,0,ROWS(Power_Size)+1,MDB!$P$4),5,FALSE)/L9 -> 0 | N9: =C$2*(1/L9) -> 6.290849673 | O9: 0 | P9: =IF(V9=0,VLOOKUP($B9,OFFSET(INDIRECT(A9),0,0,,MDB!$H$38),4,FALSE),0) -> 2.417351665 | Q9: =IF(V9=0,VLOOKUP($B9,OFFSET(INDIRECT(A9),0,0,,MDB!$H$38),5,FALSE),0) -> 3.080279942 | R9: =IF(V9=0,VLOOKUP($B9,OFFSET(INDIRECT(A9),0,0,,MDB!$H$38),6,FALSE),0) -> 2.593566376 | S9: =(VLOOKUP(C9,OFFSET(Power_Size,0,0,ROWS(Power_Size)+1,MDB!$P$4),2,FALSE)/L9)+(0.15*O9) -> 0 | T9: =VLOOKUP(C9,OFFSET(Power_Size,0,0,ROWS(Power_Size)+1,MDB!$P$4),3,FALSE)/L9 -> 0 | U9: =VLOOKUP(C9,OFFSET(Power_Size,0,0,ROWS(Power_Size)+1,MDB!$P$4),4,FALSE)/L9 -> 0 | V9: =Input!H151 -> 0 | W9: Moldboard plow 4 bottom-18 (6 ft); 0
A10: Field_Cultivator | B10: =Input!B152 -> 35 ft | C10: =Input!D152 -> 0 | D10: 4 | E10: =VLOOKUP($B10,OFFSET(INDIRECT(A10),0,0,,MDB!$H$38),2,FALSE) -> Field cultivator (35 ft) | F10: =VLOOKUP(C10,OFFSET(Power_Size,0,0,,MDB!$P$4),1,FALSE) ->  | G10: 0 | H10: =Input!F152 -> 0 | I10: 2.051471768 | J10: 1.295524139 | K10: 0.7559476291 | L10: =VLOOKUP($B10,OFFSET(INDIRECT(A10),0,0,,MDB!$H$38),3,FALSE) -> 25.24242424 | M10: =VLOOKUP(C10,OFFSET(Power_Size,0,0,ROWS(Power_Size)+1,MDB!$P$4),5,FALSE)/L10 -> 0 | N10: =(1/L10)*C$2 -> 0.6932773109 | O10: 0 | P10: =IF(V10=0,VLOOKUP($B10,OFFSET(INDIRECT(A10),0,0,,MDB!$H$38),4,FALSE),0) -> 0.6022468277 | Q10: =IF(V10=0,VLOOKUP($B10,OFFSET(INDIRECT(A10),0,0,,MDB!$H$38),5,FALSE),0) -> 0.8198069744 | R10: =IF(V10=0,VLOOKUP($B10,OFFSET(INDIRECT(A10),0,0,,MDB!$H$38),6,FALSE),0) -> 0.7559476291 | S10: =(VLOOKUP(C10,OFFSET(Power_Size,0,0,ROWS(Power_Size)+1,MDB!$P$4),2,FALSE)/L10)+(0.15*O10) -> 0 | T10: =VLOOKUP(C10,OFFSET(Power_Size,0,0,ROWS(Power_Size)+1,MDB!$P$4),3,FALSE)/L10 -> 0 | U10: =VLOOKUP(C10,OFFSET(Power_Size,0,0,ROWS(Power_Size)+1,MDB!$P$4),4,FALSE)/L10 -> 0 | V10: =Input!H152 -> 0 | W10: Field cultivator (35 ft); 0
A11: Tandem_Disk | B11: =Input!B153 -> 30 ft | C11: =Input!D153 -> 360 4WD | D11: 5 | E11: =VLOOKUP($B11,OFFSET(INDIRECT(A11),0,0,,MDB!$H$38),2,FALSE) -> Tandem disk (30 ft) | F11: =VLOOKUP(C11,OFFSET(Power_Size,0,0,,MDB!$P$4),1,FALSE) -> 360 4WD | G11: 1 | H11: =Input!F153 -> 1 | I11: 13.11013895 | J11: 5.224228255 | K11: =Q11*H11+R11+T11*H11+U11 -> 7.885910692 | L11: =VLOOKUP($B11,OFFSET(INDIRECT(A11),0,0,,MDB!$H$38),3,FALSE) -> 17.45454545 | M11: =VLOOKUP(C11,OFFSET(Power_Size,0,0,ROWS(Power_Size)+1,MDB!$P$4),5,FALSE)/L11 -> 0.9075 | N11: =C$2*(1/L11) -> 1.002604167 | O11: 2.640825 | P11: =IF(V11=0,VLOOKUP($B11,OFFSET(INDIRECT(A11),0,0,,MDB!$H$38),4,FALSE),0) -> 0.8455086719 | Q11: =IF(V11=0,VLOOKUP($B11,OFFSET(INDIRECT(A11),0,0,,MDB!$H$38),5,FALSE),0) -> 1.724388611 | R11: =IF(V11=0,VLOOKUP($B11,OFFSET(INDIRECT(A11),0,0,,MDB!$H$38),6,FALSE),0) -> 1.400011664 | S11: =(VLOOKUP(C11,OFFSET(Power_Size,0,0,ROWS(Power_Size)+1,MDB!$P$4),2,FALSE)/L11)+(0.15*O11) -> 0.7352904167 | T11: =VLOOKUP(C11,OFFSET(Power_Size,0,0,ROWS(Power_Size)+1,MDB!$P$4),3,FALSE)/L11 -> 2.95109375 | U11: =VLOOKUP(C11,OFFSET(Power_Size,0,0,ROWS(Power_Size)+1,MDB!$P$4),4,FALSE)/L11 -> 1.810416667 | V11: =Input!H153 -> 0 | W11: Tandem disk (30 ft); 360 4WD
A12: VRipper | B12: =Input!B154 -> 30" O.C., 17 ft | C12: =Input!D154 -> 0 | D12: 6 | E12: =VLOOKUP($B12,OFFSET(INDIRECT(A12),0,0,,MDB!$H$38),2,FALSE) -> V-Ripper 30" O.C., (17 ft) | F12: =VLOOKUP(C12,OFFSET(Power_Size,0,0,,MDB!$P$4),1,FALSE) ->  | G12: 0 | H12: =Input!F154 -> 0 | I12: 3.275080875 | J12: 2.375080875 | K12: 0.9 | L12: =VLOOKUP($B12,OFFSET(INDIRECT(A12),0,0,,MDB!$H$38),3,FALSE) -> 10.51 | M12: =VLOOKUP(C12,OFFSET(Power_Size,0,0,ROWS(Power_Size)+1,MDB!$P$4),5,FALSE)/L12 -> 0 | N12: =(1/L12)*C$2 -> 1.665080875 | O12: 0 | P12: =IF(V12=0,VLOOKUP($B12,OFFSET(INDIRECT(A12),0,0,,MDB!$H$38),4,FALSE),0) -> 0.71 | Q12: =IF(V12=0,VLOOKUP($B12,OFFSET(INDIRECT(A12),0,0,,MDB!$H$38),5,FALSE),0) -> 1.26 | R12: =IF(V12=0,VLOOKUP($B12,OFFSET(INDIRECT(A12),0,0,,MDB!$H$38),6,FALSE),0) -> 0.9 | S12: =(VLOOKUP(C12,OFFSET(Power_Size,0,0,ROWS(Power_Size)+1,MDB!$P$4),2,FALSE)/L12)+(0.15*O12) -> 0 | T12: =VLOOKUP(C12,OFFSET(Power_Size,0,0,ROWS(Power_Size)+1,MDB!$P$4),3,FALSE)/L12 -> 0 | U12: =VLOOKUP(C12,OFFSET(Power_Size,0,0,ROWS(Power_Size)+1,MDB!$P$4),4,FALSE)/L12 -> 0 | V12: =Input!H154 -> 0 | W12: V-Ripper 30" O.C., (17 ft); 0
A13: Comb_Fld_Cult_Incorp | B13: =Input!B155 -> 16 ft | C13: =Input!D155 -> 0 | D13: 7 | E13: =VLOOKUP($B13,OFFSET(INDIRECT(A13),0,0,,MDB!$H$38),2,FALSE) -> Comb fld cult incorp (16 ft) | F13: =VLOOKUP(C13,OFFSET(Power_Size,0,0,,MDB!$P$4),1,FALSE) ->  | G13: 0 | H13: =Input!F155 -> 0 | I13: 3.231613358 | J13: 2.131852386 | K13: 1.099760972 | L13: =VLOOKUP($B13,OFFSET(INDIRECT(A13),0,0,,MDB!$H$38),3,FALSE) -> 11.53939394 | M13: =VLOOKUP(C13,OFFSET(Power_Size,0,0,ROWS(Power_Size)+1,MDB!$P$4),5,FALSE)/L13 -> 0 | N13: =(1/L13)*C$2 -> 1.516544118 | O13: 0 | P13: =IF(V13=0,VLOOKUP($B13,OFFSET(INDIRECT(A13),0,0,,MDB!$H$38),4,FALSE),0) -> 0.6153082686 | Q13: =IF(V13=0,VLOOKUP($B13,OFFSET(INDIRECT(A13),0,0,,MDB!$H$38),5,FALSE),0) -> 1.257697159 | R13: =IF(V13=0,VLOOKUP($B13,OFFSET(INDIRECT(A13),0,0,,MDB!$H$38),6,FALSE),0) -> 1.099760972 | S13: =(VLOOKUP(C13,OFFSET(Power_Size,0,0,ROWS(Power_Size)+1,MDB!$P$4),2,FALSE)/L13)+(0.15*O13) -> 0 | T13: =VLOOKUP(C13,OFFSET(Power_Size,0,0,ROWS(Power_Size)+1,MDB!$P$4),3,FALSE)/L13 -> 0 | U13: =VLOOKUP(C13,OFFSET(Power_Size,0,0,ROWS(Power_Size)+1,MDB!$P$4),4,FALSE)/L13 -> 0 | V13: =Input!H155 -> 0 | W13: Comb fld cult incorp (16 ft); 0
A14: Comb_Disk_VRipper | B14: =Input!B156 -> 17.5 ft | C14: =Input!D156 -> 0 | D14: 8 | E14: =VLOOKUP($B14,OFFSET(INDIRECT(A14),0,0,,MDB!$H$38),2,FALSE) -> Comb disk & v-ripper (17.5 ft) | F14: =VLOOKUP(C14,OFFSET(Power_Size,0,0,,MDB!$P$4),1,FALSE) ->  | G14: 0 | H14: =Input!F156 -> 0 | I14: 5.078724984 | J14: 2.848550487 | K14: 2.230174497 | L14: =VLOOKUP($B14,OFFSET(INDIRECT(A14),0,0,,MDB!$H$38),3,FALSE) -> 9.015151515 | M14: =VLOOKUP(C14,OFFSET(Power_Size,0,0,ROWS(Power_Size)+1,MDB!$P$4),5,FALSE)/L14 -> 0 | N14: =(1/L14)*C$2 -> 1.941176471 | O14: 0 | P14: =IF(V14=0,VLOOKUP($B14,OFFSET(INDIRECT(A14),0,0,,MDB!$H$38),4,FALSE),0) -> 0.9073740161 | Q14: =IF(V14=0,VLOOKUP($B14,OFFSET(INDIRECT(A14),0,0,,MDB!$H$38),5,FALSE),0) -> 2.725427104 | R14: =IF(V14=0,VLOOKUP($B14,OFFSET(INDIRECT(A14),0,0,,MDB!$H$38),6,FALSE),0) -> 2.230174497 | S14: =(VLOOKUP(C14,OFFSET(Power_Size,0,0,ROWS(Power_Size)+1,MDB!$P$4),2,FALSE)/L14)+(0.15*O14) -> 0 | T14: =VLOOKUP(C14,OFFSET(Power_Size,0,0,ROWS(Power_Size)+1,MDB!$P$4),3,FALSE)/L14 -> 0 | U14: =VLOOKUP(C14,OFFSET(Power_Size,0,0,ROWS(Power_Size)+1,MDB!$P$4),4,FALSE)/L14 -> 0 | V14: =Input!H156 -> 0 | W14: Comb disk & v-ripper (17.5 ft); 0
A15: Disk | B15: =Input!B157 -> 22 ft | C15: =Input!D157 -> 0 | D15: 9 | E15: =VLOOKUP($B15,OFFSET(INDIRECT(A15),0,0,,MDB!$H$38),2,FALSE) -> Disk, fld cult finish (22 ft) | F15: =VLOOKUP(C15,OFFSET(Power_Size,0,0,,MDB!$P$4),1,FALSE) ->  | G15: 0 | H15: =Input!F157 -> 0 | I15: 4.079002135 | J15: 2.258522246 | K15: 1.82047989 | L15: =VLOOKUP($B15,OFFSET(INDIRECT(A15),0,0,,MDB!$H$38),3,FALSE) -> 11.33333333 | M15: =VLOOKUP(C15,OFFSET(Power_Size,0,0,ROWS(Power_Size)+1,MDB!$P$4),5,FALSE)/L15 -> 0 | N15: =(1/L15)*C$2 -> 1.544117647 | O15: 0 | P15: =IF(V15=0,VLOOKUP($B15,OFFSET(INDIRECT(A15),0,0,,MDB!$H$38),4,FALSE),0) -> 0.7144045988 | Q15: =IF(V15=0,VLOOKUP($B15,OFFSET(INDIRECT(A15),0,0,,MDB!$H$38),5,FALSE),0) -> 2.07378847 | R15: =IF(V15=0,VLOOKUP($B15,OFFSET(INDIRECT(A15),0,0,,MDB!$H$38),6,FALSE),0) -> 1.82047989 | S15: =(VLOOKUP(C15,OFFSET(Power_Size,0,0,ROWS(Power_Size)+1,MDB!$P$4),2,FALSE)/L15)+(0.15*O15) -> 0 | T15: =VLOOKUP(C15,OFFSET(Power_Size,0,0,ROWS(Power_Size)+1,MDB!$P$4),3,FALSE)/L15 -> 0 | U15: =VLOOKUP(C15,OFFSET(Power_Size,0,0,ROWS(Power_Size)+1,MDB!$P$4),4,FALSE)/L15 -> 0 | V15: =Input!H157 -> 0 | W15: Disk, fld cult finish (22 ft); 0
A16: Harrow | B16: =Input!B158 -> 12 ft | C16: =Input!D158 -> 0 | D16: 10 | E16: =VLOOKUP($B16,OFFSET(INDIRECT(A16),0,0,,MDB!$H$38),2,FALSE) -> Roller harrow (12 ft) | F16: =VLOOKUP(C16,OFFSET(Power_Size,0,0,,MDB!$P$4),1,FALSE) ->  | G16: 0 | H16: =Input!F158 -> 0 | I16: 3.832846461 | J16: 2.764952143 | K16: 1.067894318 | L16: =VLOOKUP($B16,OFFSET(INDIRECT(A16),0,0,,MDB!$H$38),3,FALSE) -> 7.418181818 | M16: =VLOOKUP(C16,OFFSET(Power_Size,0,0,ROWS(Power_Size)+1,MDB!$P$4),5,FALSE)/L16 -> 0 | N16: =(1/L16)*C2 -> 2.359068627 | O16: 0 | P16: =IF(V16=0,VLOOKUP($B16,OFFSET(INDIRECT(A16),0,0,,MDB!$H$38),4,FALSE),0) -> 0.4058835156 | Q16: =IF(V16=0,VLOOKUP($B16,OFFSET(INDIRECT(A16),0,0,,MDB!$H$38),5,FALSE),0) -> 1.219128953 | R16: =IF(V16=0,VLOOKUP($B16,OFFSET(INDIRECT(A16),0,0,,MDB!$H$38),6,FALSE),0) -> 1.067894318 | S16: =(VLOOKUP(C16,OFFSET(Power_Size,0,0,ROWS(Power_Size)+1,MDB!$P$4),2,FALSE)/L16)+(0.15*O16) -> 0 | T16: =VLOOKUP(C16,OFFSET(Power_Size,0,0,ROWS(Power_Size)+1,MDB!$P$4),3,FALSE)/L16 -> 0 | U16: =VLOOKUP(C16,OFFSET(Power_Size,0,0,ROWS(Power_Size)+1,MDB!$P$4),4,FALSE)/L16 -> 0 | V16: =Input!H158 -> 0 | W16: Roller harrow (12 ft); 0
A17: Planter | B17: =Input!B160 -> 16 row | C17: =Input!D160 -> 225 MFWD | D17: 11 | E17: =VLOOKUP($B17,OFFSET(INDIRECT(A17),0,0,,MDB!$H$38),2,FALSE) -> Row crop planter (16 row) | F17: =VLOOKUP(C17,OFFSET(Power_Size,0,0,,MDB!$P$4),1,FALSE) -> 225 MFWD | G17: 1 | H17: =Input!F160 -> 1 | I17: 18.17216161 | J17: 5.688590179 | K17: 12.48357143 | L17: =VLOOKUP($B17,OFFSET(INDIRECT(A17),0,0,,MDB!$H$38),3,FALSE) -> 18.66666667 | M17: =VLOOKUP(C17,OFFSET(Power_Size,0,0,ROWS(Power_Size)+1,MDB!$P$4),5,FALSE)/L17 -> 0.5303571429 | N17: =(1/L17)*C1 -> 1.232142857 | O17: 1.543339286 | P17: =IF(V17=0,VLOOKUP($B17,OFFSET(INDIRECT(A17),0,0,,MDB!$H$38),4,FALSE),0) -> 2.32 | Q17: =IF(V17=0,VLOOKUP($B17,OFFSET(INDIRECT(A17),0,0,,MDB!$H$38),5,FALSE),0) -> 5.46 | R17: =IF(V17=0,VLOOKUP($B17,OFFSET(INDIRECT(A17),0,0,,MDB!$H$38),6,FALSE),0) -> 3.73 | S17: =(VLOOKUP(C17,OFFSET(Power_Size,0,0,ROWS(Power_Size)+1,MDB!$P$4),2,FALSE)/L17)+(0.15*O17) -> 0.5931080357 | T17: =VLOOKUP(C17,OFFSET(Power_Size,0,0,ROWS(Power_Size)+1,MDB!$P$4),3,FALSE)/L17 -> 2.215178571 | U17: =VLOOKUP(C17,OFFSET(Power_Size,0,0,ROWS(Power_Size)+1,MDB!$P$4),4,FALSE)/L17 -> 1.078392857 | V17: =Input!H160 -> 0 | W17: Row crop planter (16 row); 225 MFWD
A18: SplitRow_Planter | B18: =Input!B161 -> (16/31 row 30/15") | C18: =Input!D161 -> 225 MFWD | D18: 12 | E18: =VLOOKUP($B18,OFFSET(INDIRECT(A18),0,0,,MDB!$H$38),2,FALSE) -> Split row no-till planter (16/31 row 30/15") | F18: =VLOOKUP(C18,OFFSET(Power_Size,0,0,,MDB!$P$4),1,FALSE) -> 225 MFWD | G18: 0 | H18: =Input!F161 -> 0 | I18: 10.78268979 | J18: 5.12825866 | K18: 5.654431131 | L18: =VLOOKUP($B18,OFFSET(INDIRECT(A18),0,0,,MDB!$H$38),3,FALSE) -> 18.66666667 | M18: =VLOOKUP(C18,OFFSET(Power_Size,0,0,ROWS(Power_Size)+1,MDB!$P$4),5,FALSE)/L18 -> 0.5303571429 | N18: =C1*(1/L18) -> 1.232142857 | O18: 1.543339286 | P18: =IF(V18=0,VLOOKUP($B18,OFFSET(INDIRECT(A18),0,0,,MDB!$H$38),4,FALSE),0) -> 1.759668481 | Q18: =IF(V18=0,VLOOKUP($B18,OFFSET(INDIRECT(A18),0,0,,MDB!$H$38),5,FALSE),0) -> 4.147959854 | R18: =IF(V18=0,VLOOKUP($B18,OFFSET(INDIRECT(A18),0,0,,MDB!$H$38),6,FALSE),0) -> 4.576038274 | S18: =(VLOOKUP(C18,OFFSET(Power_Size,0,0,ROWS(Power_Size)+1,MDB!$P$4),2,FALSE)/L18)+(0.15*O18) -> 0.5931080357 | T18: =VLOOKUP(C18,OFFSET(Power_Size,0,0,ROWS(Power_Size)+1,MDB!$P$4),3,FALSE)/L18 -> 2.215178571 | U18: =VLOOKUP(C18,OFFSET(Power_Size,0,0,ROWS(Power_Size)+1,MDB!$P$4),4,FALSE)/L18 -> 1.078392857 | V18: =Input!H161 -> 0 | W18: Split row no-till planter (16/31 row 30/15"); 225 MFWD
A19: NoTill_Planter | B19: =Input!B162 -> 6 row | C19: =Input!D162 -> 0 | D19: 13 | E19: =VLOOKUP($B19,OFFSET(INDIRECT(A19),0,0,,MDB!$H$38),2,FALSE) -> No-till planter (6 row) | F19: =VLOOKUP(C19,OFFSET(Power_Size,0,0,,MDB!$P$4),1,FALSE) ->  | G19: 0 | H19: =Input!F162 -> 0 | I19: 8.360448514 | J19: 5.104692 | K19: 3.255756513 | L19: =VLOOKUP($B19,OFFSET(INDIRECT(A19),0,0,,MDB!$H$38),3,FALSE) -> 6.363636364 | M19: =VLOOKUP(C19,OFFSET(Power_Size,0,0,ROWS(Power_Size)+1,MDB!$P$4),5,FALSE)/L19 -> 0 | N19: =C1*(1/L19) -> 3.614285714 | O19: 0 | P19: =IF(V19=0,VLOOKUP($B19,OFFSET(INDIRECT(A19),0,0,,MDB!$H$38),4,FALSE),0) -> 1.490406286 | Q19: =IF(V19=0,VLOOKUP($B19,OFFSET(INDIRECT(A19),0,0,,MDB!$H$38),5,FALSE),0) -> 3.16158932 | R19: =IF(V19=0,VLOOKUP($B19,OFFSET(INDIRECT(A19),0,0,,MDB!$H$38),6,FALSE),0) -> 3.255756513 | S19: =(VLOOKUP(C19,OFFSET(Power_Size,0,0,ROWS(Power_Size)+1,MDB!$P$4),2,FALSE)/L19)+(0.15*O19) -> 0 | T19: =VLOOKUP(C19,OFFSET(Power_Size,0,0,ROWS(Power_Size)+1,MDB!$P$4),3,FALSE)/L19 -> 0 | U19: =VLOOKUP(C19,OFFSET(Power_Size,0,0,ROWS(Power_Size)+1,MDB!$P$4),4,FALSE)/L19 -> 0 | V19: =Input!H162 -> 0 | W19: No-till planter (6 row); 0
A20: Presswheel_Drill | B20: =Input!B163 -> 16 ft | C20: =Input!D163 -> 0 | D20: 14 | E20: =VLOOKUP($B20,OFFSET(INDIRECT(A20),0,0,,MDB!$H$38),2,FALSE) -> Presswheel drill (16 ft) | F20: =VLOOKUP(C20,OFFSET(Power_Size,0,0,,MDB!$P$4),1,FALSE) ->  | G20: 0 | H20: =Input!F163 -> 0 | I20: 6.157912339 | J20: 4.186086739 | K20: 1.9718256 | L20: =VLOOKUP($B20,OFFSET(INDIRECT(A20),0,0,,MDB!$H$38),3,FALSE) -> 6.787878788 | M20: =VLOOKUP(C20,OFFSET(Power_Size,0,0,ROWS(Power_Size)+1,MDB!$P$4),5,FALSE)/L20 -> 0 | N20: =(1/L20)*C1 -> 3.388392857 | O20: 0 | P20: =IF(V20=0,VLOOKUP($B20,OFFSET(INDIRECT(A20),0,0,,MDB!$H$38),4,FALSE),0) -> 0.797693882 | Q20: =IF(V20=0,VLOOKUP($B20,OFFSET(INDIRECT(A20),0,0,,MDB!$H$38),5,FALSE),0) -> 2.113488494 | R20: =IF(V20=0,VLOOKUP($B20,OFFSET(INDIRECT(A20),0,0,,MDB!$H$38),6,FALSE),0) -> 1.9718256 | S20: =(VLOOKUP(C20,OFFSET(Power_Size,0,0,ROWS(Power_Size)+1,MDB!$P$4),2,FALSE)/L20)+(0.15*O20) -> 0 | T20: =VLOOKUP(C20,OFFSET(Power_Size,0,0,ROWS(Power_Size)+1,MDB!$P$4),3,FALSE)/L20 -> 0 | U20: =VLOOKUP(C20,OFFSET(Power_Size,0,0,ROWS(Power_Size)+1,MDB!$P$4),4,FALSE)/L20 -> 0 | V20: =Input!H163 -> 0 | W20: Presswheel drill (16 ft); 0
A21: NoTill_Drill | B21: =Input!B164 -> 15 ft | C21: =Input!D164 -> 0 | D21: 15 | E21: =VLOOKUP($B21,OFFSET(INDIRECT(A21),0,0,,MDB!$H$38),2,FALSE) -> No-till drill (15 ft) | F21: =VLOOKUP(C21,OFFSET(Power_Size,0,0,,MDB!$P$4),1,FALSE) ->  | G21: 0 | H21: =Input!F164 -> 0 | I21: 11.23428571 | J21: 6.954285714 | K21: 4.28 | L21: =VLOOKUP($B21,OFFSET(INDIRECT(A21),0,0,,MDB!$H$38),3,FALSE) -> 6.363636364 | M21: =VLOOKUP(C21,OFFSET(Power_Size,0,0,ROWS(Power_Size)+1,MDB!$P$4),5,FALSE)/L21 -> 0 | N21: =(1/L21)*C1 -> 3.614285714 | O21: 0 | P21: =IF(V21=0,VLOOKUP($B21,OFFSET(INDIRECT(A21),0,0,,MDB!$H$38),4,FALSE),0) -> 3.34 | Q21: =IF(V21=0,VLOOKUP($B21,OFFSET(INDIRECT(A21),0,0,,MDB!$H$38),5,FALSE),0) -> 7.43 | R21: =IF(V21=0,VLOOKUP($B21,OFFSET(INDIRECT(A21),0,0,,MDB!$H$38),6,FALSE),0) -> 4.28 | S21: =(VLOOKUP(C21,OFFSET(Power_Size,0,0,ROWS(Power_Size)+1,MDB!$P$4),2,FALSE)/L21)+(0.15*O21) -> 0 | T21: =VLOOKUP(C21,OFFSET(Power_Size,0,0,ROWS(Power_Size)+1,MDB!$P$4),3,FALSE)/L21 -> 0 | U21: =VLOOKUP(C21,OFFSET(Power_Size,0,0,ROWS(Power_Size)+1,MDB!$P$4),4,FALSE)/L21 -> 0 | V21: =Input!H164 -> 0 | W21: No-till drill (15 ft); 0
A22: Cultivator | B22: =Input!B166 -> 6 row | C22: =Input!D166 -> 0 | D22: 17 | E22: =VLOOKUP($B22,OFFSET(INDIRECT(A22),0,0,,MDB!$H$38),2,FALSE) -> Row cultivator (6 row) | F22: =VLOOKUP(C22,OFFSET(Power_Size,0,0,,MDB!$P$4),1,FALSE) ->  | G22: 0 | H22: =Input!F166 -> 0 | I22: 2.909220234 | J22: 2.442555128 | K22: 0.4666651058 | L22: =VLOOKUP($B22,OFFSET(INDIRECT(A22),0,0,,MDB!$H$38),3,FALSE) -> 7.727272727 | M22: =VLOOKUP(C22,OFFSET(Power_Size,0,0,ROWS(Power_Size)+1,MDB!$P$4),5,FALSE)/L22 -> 0 | N22: =(1/L22)*C$2 -> 2.264705882 | O22: 0 | P22: =IF(V22=0,VLOOKUP($B22,OFFSET(INDIRECT(A22),0,0,,MDB!$H$38),4,FALSE),0) -> 0.1778492458 | Q22: =IF(V22=0,VLOOKUP($B22,OFFSET(INDIRECT(A22),0,0,,MDB!$H$38),5,FALSE),0) -> 0.4990053506 | R22: =IF(V22=0,VLOOKUP($B22,OFFSET(INDIRECT(A22),0,0,,MDB!$H$38),6,FALSE),0) -> 0.4666651058 | S22: =(VLOOKUP(C22,OFFSET(Power_Size,0,0,ROWS(Power_Size)+1,MDB!$P$4),2,FALSE)/L22)+(0.15*O22) -> 0 | T22: =VLOOKUP(C22,OFFSET(Power_Size,0,0,ROWS(Power_Size)+1,MDB!$P$4),3,FALSE)/L22 -> 0 | U22: =VLOOKUP(C22,OFFSET(Power_Size,0,0,ROWS(Power_Size)+1,MDB!$P$4),4,FALSE)/L22 -> 0 | V22: =Input!H166 -> 0 | W22: Row cultivator (6 row); 0
A23: Cultivator_HR | B23: =Input!B167 -> 6 row | C23: =Input!D167 -> 0 | D23: 18 | E23: =VLOOKUP($B23,OFFSET(INDIRECT(A23),0,0,,MDB!$H$38),2,FALSE) -> Row cultivator- High residue (6 row) | F23: =VLOOKUP(C23,OFFSET(Power_Size,0,0,,MDB!$P$4),1,FALSE) ->  | G23: 0 | H23: =Input!F167 -> 0 | I23: 3.787215916 | J23: 2.7118697 | K23: 1.075346216 | L23: =VLOOKUP($B23,OFFSET(INDIRECT(A23),0,0,,MDB!$H$38),3,FALSE) -> 7.727272727 | M23: =VLOOKUP(C23,OFFSET(Power_Size,0,0,ROWS(Power_Size)+1,MDB!$P$4),5,FALSE)/L23 -> 0 | N23: =(1/L23)*C$2 -> 2.264705882 | O23: 0 | P23: =IF(V23=0,VLOOKUP($B23,OFFSET(INDIRECT(A23),0,0,,MDB!$H$38),4,FALSE),0) -> 0.4471638179 | Q23: =IF(V23=0,VLOOKUP($B23,OFFSET(INDIRECT(A23),0,0,,MDB!$H$38),5,FALSE),0) -> 1.254642024 | R23: =IF(V23=0,VLOOKUP($B23,OFFSET(INDIRECT(A23),0,0,,MDB!$H$38),6,FALSE),0) -> 1.075346216 | S23: =(VLOOKUP(C23,OFFSET(Power_Size,0,0,ROWS(Power_Size)+1,MDB!$P$4),2,FALSE)/L23)+(0.15*O23) -> 0 | T23: =VLOOKUP(C23,OFFSET(Power_Size,0,0,ROWS(Power_Size)+1,MDB!$P$4),3,FALSE)/L23 -> 0 | U23: =VLOOKUP(C23,OFFSET(Power_Size,0,0,ROWS(Power_Size)+1,MDB!$P$4),4,FALSE)/L23 -> 0 | V23: =Input!H167 -> 0 | W23: Row cultivator- High residue (6 row); 0
A24: Rotary_Hoe | B24: =Input!B168 -> 21 ft | C24: =Input!D168 -> 0 | D24: 19 | E24: =VLOOKUP($B24,OFFSET(INDIRECT(A24),0,0,,MDB!$H$38),2,FALSE) -> Rotary hoe (21 ft) | F24: =VLOOKUP(C24,OFFSET(Power_Size,0,0,,MDB!$P$4),1,FALSE) ->  | G24: 0 | H24: =Input!F168 -> 0 | I24: 1.062175832 | J24: 0.7978930394 | K24: 0.2642827926 | L24: =VLOOKUP($B24,OFFSET(INDIRECT(A24),0,0,,MDB!$H$38),3,FALSE) -> 25.96363636 | M24: =VLOOKUP(C24,OFFSET(Power_Size,0,0,ROWS(Power_Size)+1,MDB!$P$4),5,FALSE)/L24 -> 0 | N24: =(1/L24)*C$2 -> 0.6740196078 | O24: 0 | P24: =IF(V24=0,VLOOKUP($B24,OFFSET(INDIRECT(A24),0,0,,MDB!$H$38),4,FALSE),0) -> 0.1238734316 | Q24: =IF(V24=0,VLOOKUP($B24,OFFSET(INDIRECT(A24),0,0,,MDB!$H$38),5,FALSE),0) -> 0.307556878 | R24: =IF(V24=0,VLOOKUP($B24,OFFSET(INDIRECT(A24),0,0,,MDB!$H$38),6,FALSE),0) -> 0.2642827926 | S24: =(VLOOKUP(C24,OFFSET(Power_Size,0,0,ROWS(Power_Size)+1,MDB!$P$4),2,FALSE)/L24)+(0.15*O24) -> 0 | T24: =VLOOKUP(C24,OFFSET(Power_Size,0,0,ROWS(Power_Size)+1,MDB!$P$4),3,FALSE)/L24 -> 0 | U24: =VLOOKUP(C24,OFFSET(Power_Size,0,0,ROWS(Power_Size)+1,MDB!$P$4),4,FALSE)/L24 -> 0 | V24: =Input!H168 -> 0 | W24: Rotary hoe (21 ft); 0
A25: Rotary_Mower | B25: =Input!B169 -> 15 ft | C25: =Input!D169 -> 0 | D25: 20 | E25: =VLOOKUP($B25,OFFSET(INDIRECT(A25),0,0,,MDB!$H$38),2,FALSE) -> Rotary mower (15 ft) | F25: =VLOOKUP(C25,OFFSET(Power_Size,0,0,,MDB!$P$4),1,FALSE) ->  | G25: 0 | H25: =Input!F169 -> 0 | I25: 4.575682705 | J25: 2.675682705 | K25: 1.9 | L25: =VLOOKUP($B25,OFFSET(INDIRECT(A25),0,0,,MDB!$H$38),3,FALSE) -> 7.69 | M25: =VLOOKUP(C25,OFFSET(Power_Size,0,0,ROWS(Power_Size)+1,MDB!$P$4),5,FALSE)/L25 -> 0 | N25: =(1/L25)*C$2 -> 2.275682705 | O25: 0 | P25: =IF(V25=0,VLOOKUP($B25,OFFSET(INDIRECT(A25),0,0,,MDB!$H$38),4,FALSE),0) -> 0.4 | Q25: =IF(V25=0,VLOOKUP($B25,OFFSET(INDIRECT(A25),0,0,,MDB!$H$38),5,FALSE),0) -> 1 | R25: =IF(V25=0,VLOOKUP($B25,OFFSET(INDIRECT(A25),0,0,,MDB!$H$38),6,FALSE),0) -> 1.9 | S25: =(VLOOKUP(C25,OFFSET(Power_Size,0,0,ROWS(Power_Size)+1,MDB!$P$4),2,FALSE)/L25)+(0.15*O25) -> 0 | T25: =VLOOKUP(C25,OFFSET(Power_Size,0,0,ROWS(Power_Size)+1,MDB!$P$4),3,FALSE)/L25 -> 0 | U25: =VLOOKUP(C25,OFFSET(Power_Size,0,0,ROWS(Power_Size)+1,MDB!$P$4),4,FALSE)/L25 -> 0 | V25: =Input!H169 -> 0 | W25: Rotary mower (15 ft); 0
A26: Boom_Sprayer | B26: =Input!B170 -> 90 ft | C26: =Input!D170 -> 130 MFWD | D26: 21 | E26: =VLOOKUP($B26,OFFSET(INDIRECT(A26),0,0,,MDB!$H$38),2,FALSE) -> Boom sprayer (90 ft) | F26: =VLOOKUP(C26,OFFSET(Power_Size,0,0,,MDB!$P$4),1,FALSE) -> 130 MFWD | G26: 1 | H26: =Input!F170 -> 2 | I26: 6.168804079 | J26: 1.498899544 | K26: 4.669904535 | L26: =VLOOKUP($B26,OFFSET(INDIRECT(A26),0,0,,MDB!$H$38),3,FALSE) -> 46.09 | M26: =VLOOKUP(C26,OFFSET(Power_Size,0,0,ROWS(Power_Size)+1,MDB!$P$4),5,FALSE)/L26 -> 0.1241050119 | N26: =(1/L26)*C$1 -> 0.4990236494 | O26: 0.3611455847 | P26: =IF(V26=0,VLOOKUP($B26,OFFSET(INDIRECT(A26),0,0,,MDB!$H$38),4,FALSE),0) -> 0.47 | Q26: =IF(V26=0,VLOOKUP($B26,OFFSET(INDIRECT(A26),0,0,,MDB!$H$38),5,FALSE),0) -> 1.28 | R26: =IF(V26=0,VLOOKUP($B26,OFFSET(INDIRECT(A26),0,0,,MDB!$H$38),6,FALSE),0) -> 0.95 | S26: =(VLOOKUP(C26,OFFSET(Power_Size,0,0,ROWS(Power_Size)+1,MDB!$P$4),2,FALSE)/L26)+(0.15*O26) -> 0.1687303103 | T26: =VLOOKUP(C26,OFFSET(Power_Size,0,0,ROWS(Power_Size)+1,MDB!$P$4),3,FALSE)/L26 -> 0.4282924713 | U26: =VLOOKUP(C26,OFFSET(Power_Size,0,0,ROWS(Power_Size)+1,MDB!$P$4),4,FALSE)/L26 -> 0.3033195921 | V26: =Input!H170 -> 0 | W26: Boom sprayer (90 ft); 130 MFWD
A27: Boom_Sprayer_SP | B27: =Input!B171 -> 60 ft | D27: 22 | E27: =VLOOKUP($B27,OFFSET(INDIRECT(A27),0,0,,MDB!$H$38),2,FALSE) -> Boom sprayer, self propelled (60 ft) | F27: N/A | G27: 0 | H27: =Input!F171 -> 0 | I27: 3.825662058 | J27: 2.168464468 | K27: 1.657197589 | L27: =VLOOKUP($B27,OFFSET(INDIRECT(A27),0,0,,MDB!$H$38),3,FALSE) -> 33.09090909 | M27: =VLOOKUP(B27,OFFSET(Boom_Sprayer_SP,0,0,,7),7,FALSE) -> 0 | N27: =(1/L27)*C$1 -> 0.6950549451 | O27: 0 | P27: =IF(V27=0,VLOOKUP($B27,OFFSET(INDIRECT(A27),0,0,,MDB!$H$38),4,FALSE),0) -> 1.473409523 | Q27: =IF(V27=0,VLOOKUP($B27,OFFSET(INDIRECT(A27),0,0,,MDB!$H$38),5,FALSE),0) -> 2.019783562 | R27: =IF(V27=0,VLOOKUP($B27,OFFSET(INDIRECT(A27),0,0,,MDB!$H$38),6,FALSE),0) -> 1.657197589 | S27: 0 | T27: 0 | U27: 0 | V27: =Input!H171 -> 0 | W27: Boom sprayer, self propelled (60 ft);
A28: Anhydrous_Applicator | B28: =Input!B172 -> 21 ft | C28: =Input!D172 -> 0 | D28: 23 | E28: =VLOOKUP($B28,OFFSET(INDIRECT(A28),0,0,,MDB!$H$38),2,FALSE) -> Anhydrous applicator (21 ft) | F28: =VLOOKUP(C28,OFFSET(Power_Size,0,0,,MDB!$P$4),1,FALSE) ->  | G28: 0 | H28: =Input!F172 -> 0 | I28: 3.132209577 | J28: 2.309340876 | K28: 0.8228687011 | L28: =VLOOKUP($B28,OFFSET(INDIRECT(A28),0,0,,MDB!$H$38),3,FALSE) -> 11.2 | M28: =VLOOKUP(C28,OFFSET(Power_Size,0,0,ROWS(Power_Size)+1,MDB!$P$4),5,FALSE)/L28 -> 0 | N28: =(1/L28)*C$1 -> 2.053571429 | O28: 0 | P28: =IF(V28=0,VLOOKUP($B28,OFFSET(INDIRECT(A28),0,0,,MDB!$H$38),4,FALSE),0) -> 0.255769447 | Q28: =IF(V28=0,VLOOKUP($B28,OFFSET(INDIRECT(A28),0,0,,MDB!$H$38),5,FALSE),0) -> 0.9180834372 | R28: =IF(V28=0,VLOOKUP($B28,OFFSET(INDIRECT(A28),0,0,,MDB!$H$38),6,FALSE),0) -> 0.8228687011 | S28: =(VLOOKUP(C28,OFFSET(Power_Size,0,0,ROWS(Power_Size)+1,MDB!$P$4),2,FALSE)/L28)+(0.15*O28) -> 0 | T28: =VLOOKUP(C28,OFFSET(Power_Size,0,0,ROWS(Power_Size)+1,MDB!$P$4),3,FALSE)/L28 -> 0 | U28: =VLOOKUP(C28,OFFSET(Power_Size,0,0,ROWS(Power_Size)+1,MDB!$P$4),4,FALSE)/L28 -> 0 | V28: =Input!H172 -> 0 | W28: Anhydrous applicator (21 ft); 0
A29: Fertilizer_Spreader | B29: =Input!B173 -> 4 T (40 ft) | C29: =Input!D173 -> 0 | D29: 24 | E29: =VLOOKUP($B29,OFFSET(INDIRECT(A29),0,0,,MDB!$H$38),2,FALSE) -> Fertilizer spreader 4 T (40 ft) | F29: =VLOOKUP(C29,OFFSET(Power_Size,0,0,,MDB!$P$4),1,FALSE) ->  | G29: 0 | H29: =Input!F173 -> 0 | I29: 1.908013468 | J29: 1.198013468 | K29: 0.71 | L29: =VLOOKUP($B29,OFFSET(INDIRECT(A29),0,0,,MDB!$H$38),3,FALSE) -> 23.76 | M29: =VLOOKUP(C29,OFFSET(Power_Size,0,0,ROWS(Power_Size)+1,MDB!$P$4),5,FALSE)/L29 -> 0 | N29: =(1/L29)*C$1 -> 0.968013468 | O29: 0 | P29: =IF(V29=0,VLOOKUP($B29,OFFSET(INDIRECT(A29),0,0,,MDB!$H$38),4,FALSE),0) -> 0.23 | Q29: =IF(V29=0,VLOOKUP($B29,OFFSET(INDIRECT(A29),0,0,,MDB!$H$38),5,FALSE),0) -> 0.77 | R29: =IF(V29=0,VLOOKUP($B29,OFFSET(INDIRECT(A29),0,0,,MDB!$H$38),6,FALSE),0) -> 0.71 | S29: =(VLOOKUP(C29,OFFSET(Power_Size,0,0,ROWS(Power_Size)+1,MDB!$P$4),2,FALSE)/L29)+(0.15*O29) -> 0 | T29: =VLOOKUP(C29,OFFSET(Power_Size,0,0,ROWS(Power_Size)+1,MDB!$P$4),3,FALSE)/L29 -> 0 | U29: =VLOOKUP(C29,OFFSET(Power_Size,0,0,ROWS(Power_Size)+1,MDB!$P$4),4,FALSE)/L29 -> 0 | V29: =Input!H173 -> 0 | W29: Fertilizer spreader 4 T (40 ft); 0
A30: Disc_Mower | B30: =Input!B175 -> 7 ft swath | C30: =Input!D175 -> 0 | D30: 25 | E30: =VLOOKUP($B30,OFFSET(INDIRECT(A30),0,0,,MDB!$H$38),2,FALSE) -> Disc mower, 7 ft swath | F30: =VLOOKUP(C30,OFFSET(Power_Size,0,0,,MDB!$P$4),1,FALSE) ->  | G30: 0 | H30: =Input!F175 -> 0 | I30: 5.51892985 | J30: 4.689628366 | K30: 0.8293014834 | L30: =VLOOKUP($B30,OFFSET(INDIRECT(A30),0,0,,MDB!$H$38),3,FALSE) -> 4.412121212 | M30: =VLOOKUP(C30,OFFSET(Power_Size,0,0,ROWS(Power_Size)+1,MDB!$P$4),5,FALSE)/L30 -> 0 | N30: =(1/L30)*C$2 -> 3.966346154 | O30: 0 | P30: =IF(V30=0,VLOOKUP($B30,OFFSET(INDIRECT(A30),0,0,,MDB!$H$38),4,FALSE),0) -> 0.7232822123 | Q30: =IF(V30=0,VLOOKUP($B30,OFFSET(INDIRECT(A30),0,0,,MDB!$H$38),5,FALSE),0) -> 0.7828387108 | R30: =IF(V30=0,VLOOKUP($B30,OFFSET(INDIRECT(A30),0,0,,MDB!$H$38),6,FALSE),0) -> 0.8293014834 | S30: =(VLOOKUP(C30,OFFSET(Power_Size,0,0,ROWS(Power_Size)+1,MDB!$P$4),2,FALSE)/L30)+(0.15*O30) -> 0 | T30: =VLOOKUP(C30,OFFSET(Power_Size,0,0,ROWS(Power_Size)+1,MDB!$P$4),3,FALSE)/L30 -> 0 | U30: =VLOOKUP(C30,OFFSET(Power_Size,0,0,ROWS(Power_Size)+1,MDB!$P$4),4,FALSE)/L30 -> 0 | V30: =Input!H175 -> 0 | W30: Disc mower, 7 ft swath; 0
A31: Disk_Mower | B31: =Input!B176 -> 6 ft | C31: =Input!D176 -> 0 | D31: 26 | E31: =VLOOKUP($B31,OFFSET(INDIRECT(A31),0,0,,MDB!$H$38),2,FALSE) -> Disk mower-conditioner (6 ft) | F31: =VLOOKUP(C31,OFFSET(Power_Size,0,0,,MDB!$P$4),1,FALSE) ->  | G31: 0 | H31: =Input!F176 -> 0 | I31: 6.859369654 | J31: 5.343380178 | K31: 1.515989476 | L31: =VLOOKUP($B31,OFFSET(INDIRECT(A31),0,0,,MDB!$H$38),3,FALSE) -> 3.781818182 | M31: =VLOOKUP(C31,OFFSET(Power_Size,0,0,ROWS(Power_Size)+1,MDB!$P$4),5,FALSE)/L31 -> 0 | N31: 4.627403846 | O31: 0 | P31: =IF(V31=0,VLOOKUP($B31,OFFSET(INDIRECT(A31),0,0,,MDB!$H$38),4,FALSE),0) -> 0.7159763314 | Q31: =IF(V31=0,VLOOKUP($B31,OFFSET(INDIRECT(A31),0,0,,MDB!$H$38),5,FALSE),0) -> 1.729220291 | R31: =IF(V31=0,VLOOKUP($B31,OFFSET(INDIRECT(A31),0,0,,MDB!$H$38),6,FALSE),0) -> 1.515989476 | S31: =(VLOOKUP(C31,OFFSET(Power_Size,0,0,ROWS(Power_Size)+1,MDB!$P$4),2,FALSE)/L31)+(0.15*O31) -> 0 | T31: =VLOOKUP(C31,OFFSET(Power_Size,0,0,ROWS(Power_Size)+1,MDB!$P$4),3,FALSE)/L31 -> 0 | U31: =VLOOKUP(C31,OFFSET(Power_Size,0,0,ROWS(Power_Size)+1,MDB!$P$4),4,FALSE)/L31 -> 0 | V31: =Input!H176 -> 0 | W31: Disk mower-conditioner (6 ft); 0
A32: Swather_Mower_Conditioner | B32: =Input!B177 -> 7 ft swath | C32: =Input!D177 -> 0 | D32: 27 | E32: =VLOOKUP($B32,OFFSET(INDIRECT(A32),0,0,,MDB!$H$38),2,FALSE) -> Swather mower-conditioner, 7 ft swath | F32: =VLOOKUP(C32,OFFSET(Power_Size,0,0,,MDB!$P$4),1,FALSE) ->  | G32: 0 | H32: =Input!F177 -> 0 | I32: 6.121106638 | J32: 4.838823741 | K32: 1.282282897 | L32: =VLOOKUP($B32,OFFSET(INDIRECT(A32),0,0,,MDB!$H$38),3,FALSE) -> 4.072727273 | M32: =VLOOKUP(C32,OFFSET(Power_Size,0,0,ROWS(Power_Size)+1,MDB!$P$4),5,FALSE)/L32 -> 0 | N32: 4.296875 | O32: 0 | P32: =IF(V32=0,VLOOKUP($B32,OFFSET(INDIRECT(A32),0,0,,MDB!$H$38),4,FALSE),0) -> 0.5419487413 | Q32: =IF(V32=0,VLOOKUP($B32,OFFSET(INDIRECT(A32),0,0,,MDB!$H$38),5,FALSE),0) -> 1.441016909 | R32: =IF(V32=0,VLOOKUP($B32,OFFSET(INDIRECT(A32),0,0,,MDB!$H$38),6,FALSE),0) -> 1.282282897 | S32: =(VLOOKUP(C32,OFFSET(Power_Size,0,0,ROWS(Power_Size)+1,MDB!$P$4),2,FALSE)/L32)+(0.15*O32) -> 0 | T32: =VLOOKUP(C32,OFFSET(Power_Size,0,0,ROWS(Power_Size)+1,MDB!$P$4),3,FALSE)/L32 -> 0 | U32: =VLOOKUP(C32,OFFSET(Power_Size,0,0,ROWS(Power_Size)+1,MDB!$P$4),4,FALSE)/L32 -> 0 | V32: =Input!H177 -> 0 | W32: Swather mower-conditioner, 7 ft swath; 0
A33: Hay_Tedder | B33: 1 | C33: =Input!D178 -> 0 | D33: 28 | E33: =VLOOKUP($B33,OFFSET(INDIRECT(A33),0,0,,MDB!$H$38),2,FALSE) -> Hay tedder | F33: =VLOOKUP(C33,OFFSET(Power_Size,0,0,,MDB!$P$4),1,FALSE) ->  | G33: 0 | H33: =Input!F178 -> 0 | I33: 2.367380725 | J33: 1.857305902 | K33: 0.5100748227 | L33: =VLOOKUP($B33,OFFSET(INDIRECT(A33),0,0,,MDB!$H$38),3,FALSE) -> 9.633333333 | M33: =VLOOKUP(C33,OFFSET(Power_Size,0,0,ROWS(Power_Size)+1,MDB!$P$4),5,FALSE)/L33 -> 0 | N33: 1.816608997 | O33: 0 | P33: =IF(V33=0,VLOOKUP($B33,OFFSET(INDIRECT(A33),0,0,,MDB!$H$38),4,FALSE),0) -> 0.04069690526 | Q33: =IF(V33=0,VLOOKUP($B33,OFFSET(INDIRECT(A33),0,0,,MDB!$H$38),5,FALSE),0) -> 0.4855403969 | R33: =IF(V33=0,VLOOKUP($B33,OFFSET(INDIRECT(A33),0,0,,MDB!$H$38),6,FALSE),0) -> 0.5100748227 | S33: =(VLOOKUP(C33,OFFSET(Power_Size,0,0,ROWS(Power_Size)+1,MDB!$P$4),2,FALSE)/L33)+(0.15*O33) -> 0 | T33: =VLOOKUP(C33,OFFSET(Power_Size,0,0,ROWS(Power_Size)+1,MDB!$P$4),3,FALSE)/L33 -> 0 | U33: =VLOOKUP(C33,OFFSET(Power_Size,0,0,ROWS(Power_Size)+1,MDB!$P$4),4,FALSE)/L33 -> 0 | V33: =Input!H178 -> 0 | W33: Hay tedder; 0
A34: Wheel_Rake | B34: =Input!B179 -> 10 wheel, 20 ft | C34: =Input!D179 -> 0 | D34: 29 | E34: =VLOOKUP($B34,OFFSET(INDIRECT(A34),0,0,,MDB!$H$38),2,FALSE) -> Wheel rake, 10 wheel | F34: =VLOOKUP(C34,OFFSET(Power_Size,0,0,,MDB!$P$4),1,FALSE) ->  | G34: 0 | H34: =Input!F179 -> 0 | I34: 1.35085841 | J34: 0.8184125986 | K34: 0.5324458113 | L34: =VLOOKUP($B34,OFFSET(INDIRECT(A34),0,0,,MDB!$H$38),3,FALSE) -> 22.66666667 | M34: =VLOOKUP(C34,OFFSET(Power_Size,0,0,ROWS(Power_Size)+1,MDB!$P$4),5,FALSE)/L34 -> 0 | N34: 0.7720588235 | O34: 0 | P34: =IF(V34=0,VLOOKUP($B34,OFFSET(INDIRECT(A34),0,0,,MDB!$H$38),4,FALSE),0) -> 0.0463537751 | Q34: =IF(V34=0,VLOOKUP($B34,OFFSET(INDIRECT(A34),0,0,,MDB!$H$38),5,FALSE),0) -> 0.5530305121 | R34: =IF(V34=0,VLOOKUP($B34,OFFSET(INDIRECT(A34),0,0,,MDB!$H$38),6,FALSE),0) -> 0.5324458113 | S34: =(VLOOKUP(C34,OFFSET(Power_Size,0,0,ROWS(Power_Size)+1,MDB!$P$4),2,FALSE)/L34)+(0.15*O34) -> 0 | T34: =VLOOKUP(C34,OFFSET(Power_Size,0,0,ROWS(Power_Size)+1,MDB!$P$4),3,FALSE)/L34 -> 0 | U34: =VLOOKUP(C34,OFFSET(Power_Size,0,0,ROWS(Power_Size)+1,MDB!$P$4),4,FALSE)/L34 -> 0 | V34: =Input!H179 -> 0 | W34: Wheel rake, 10 wheel; 0
A35: Roller_Bar_Rake | B35: =Input!B180 -> 9.5 ft | C35: =Input!D180 -> 0 | D35: 30 | E35: =VLOOKUP($B35,OFFSET(INDIRECT(A35),0,0,,MDB!$H$38),2,FALSE) -> Roller bar rake (basket), 9.5 ft | F35: =VLOOKUP(C35,OFFSET(Power_Size,0,0,,MDB!$P$4),1,FALSE) ->  | G35: 0 | H35: =Input!F180 -> 0 | I35: 3.269455434 | J35: 2.859679724 | K35: 0.4097757103 | L35: =VLOOKUP($B35,OFFSET(INDIRECT(A35),0,0,,MDB!$H$38),3,FALSE) -> 6.362121212 | M35: =VLOOKUP(C35,OFFSET(Power_Size,0,0,ROWS(Power_Size)+1,MDB!$P$4),5,FALSE)/L35 -> 0 | N35: 2.750654918 | O35: 0 | P35: =IF(V35=0,VLOOKUP($B35,OFFSET(INDIRECT(A35),0,0,,MDB!$H$38),4,FALSE),0) -> 0.1090248062 | Q35: =IF(V35=0,VLOOKUP($B35,OFFSET(INDIRECT(A35),0,0,,MDB!$H$38),5,FALSE),0) -> 0.441002482 | R35: =IF(V35=0,VLOOKUP($B35,OFFSET(INDIRECT(A35),0,0,,MDB!$H$38),6,FALSE),0) -> 0.4097757103 | S35: =(VLOOKUP(C35,OFFSET(Power_Size,0,0,ROWS(Power_Size)+1,MDB!$P$4),2,FALSE)/L35)+(0.15*O35) -> 0 | T35: =VLOOKUP(C35,OFFSET(Power_Size,0,0,ROWS(Power_Size)+1,MDB!$P$4),3,FALSE)/L35 -> 0 | U35: =VLOOKUP(C35,OFFSET(Power_Size,0,0,ROWS(Power_Size)+1,MDB!$P$4),4,FALSE)/L35 -> 0 | V35: =Input!H180 -> 0 | W35: Roller bar rake (basket), 9.5 ft; 0
A36: Hay_Merger | B36: =Input!B181 -> 20 ft | C36: =Input!D181 -> 0 | D36: 31 | E36: =VLOOKUP($B36,OFFSET(INDIRECT(A36),0,0,,MDB!$H$38),2,FALSE) -> Hay merger (20 ft both swaths) | F36: =VLOOKUP(C36,OFFSET(Power_Size,0,0,,MDB!$P$4),1,FALSE) ->  | G36: 0 | H36: =Input!F181 -> 0 | I36: 7.230397533 | J36: 3.312386692 | K36: 3.918010841 | L36: =VLOOKUP($B36,OFFSET(INDIRECT(A36),0,0,,MDB!$H$38),3,FALSE) -> 6.109090909 | M36: =VLOOKUP(C36,OFFSET(Power_Size,0,0,ROWS(Power_Size)+1,MDB!$P$4),5,FALSE)/L36 -> 0 | N36: 2.864583333 | O36: 0 | P36: =IF(V36=0,VLOOKUP($B36,OFFSET(INDIRECT(A36),0,0,,MDB!$H$38),4,FALSE),0) -> 0.4478033585 | Q36: =IF(V36=0,VLOOKUP($B36,OFFSET(INDIRECT(A36),0,0,,MDB!$H$38),5,FALSE),0) -> 4.841608228 | R36: =IF(V36=0,VLOOKUP($B36,OFFSET(INDIRECT(A36),0,0,,MDB!$H$38),6,FALSE),0) -> 3.918010841 | S36: =(VLOOKUP(C36,OFFSET(Power_Size,0,0,ROWS(Power_Size)+1,MDB!$P$4),2,FALSE)/L36)+(0.15*O36) -> 0 | T36: =VLOOKUP(C36,OFFSET(Power_Size,0,0,ROWS(Power_Size)+1,MDB!$P$4),3,FALSE)/L36 -> 0 | U36: =VLOOKUP(C36,OFFSET(Power_Size,0,0,ROWS(Power_Size)+1,MDB!$P$4),4,FALSE)/L36 -> 0 | V36: =Input!H181 -> 0 | W36: Hay merger (20 ft both swaths); 0
A37: Hay_Baler_Twine | B37: =Input!B182 -> 6 ft pickup | C37: =Input!D182 -> 0 | D37: 32 | E37: =VLOOKUP($B37,OFFSET(INDIRECT(A37),0,0,,MDB!$H$38),2,FALSE) -> Small square baler | F37: =VLOOKUP(C37,OFFSET(Power_Size,0,0,,MDB!$P$4),1,FALSE) ->  | G37: 0 | H37: =Input!F182 -> 0 | I37: 6.103776999 | J37: 4.620266903 | K37: 1.483510097 | L37: =VLOOKUP($B37,OFFSET(INDIRECT(A37),0,0,,MDB!$H$38),3,FALSE) -> 4.909090909 | M37: =VLOOKUP(C37,OFFSET(Power_Size,0,0,ROWS(Power_Size)+1,MDB!$P$4),5,FALSE)/L37 -> 0 | N37: =(1/L37)*C2 -> 3.564814815 | O37: 0 | P37: =IF(V37=0,VLOOKUP($B37,OFFSET(INDIRECT(A37),0,0,,MDB!$H$38),4,FALSE),0) -> 1.055452088 | Q37: =IF(V37=0,VLOOKUP($B37,OFFSET(INDIRECT(A37),0,0,,MDB!$H$38),5,FALSE),0) -> 1.685808157 | R37: =IF(V37=0,VLOOKUP($B37,OFFSET(INDIRECT(A37),0,0,,MDB!$H$38),6,FALSE),0) -> 1.483510097 | S37: =(VLOOKUP(C37,OFFSET(Power_Size,0,0,ROWS(Power_Size)+1,MDB!$P$4),2,FALSE)/L37)+(0.15*O37) -> 0 | T37: =VLOOKUP(C37,OFFSET(Power_Size,0,0,ROWS(Power_Size)+1,MDB!$P$4),3,FALSE)/L37 -> 0 | U37: =VLOOKUP(C37,OFFSET(Power_Size,0,0,ROWS(Power_Size)+1,MDB!$P$4),4,FALSE)/L37 -> 0 | V37: =Input!H182 -> 0 | W37: Small square baler; 0
A38: Round_Baler_Tie | B38: =Input!B183 -> 1000 lb | C38: =Input!D183 -> 0 | D38: 33 | E38: =VLOOKUP($B38,OFFSET(INDIRECT(A38),0,0,,MDB!$H$38),2,FALSE) -> Round baler (tie), 1000 lb | F38: =VLOOKUP(C38,OFFSET(Power_Size,0,0,,MDB!$P$4),1,FALSE) ->  | G38: 0 | H38: =Input!F183 -> 0 | I38: 10.45144131 | J38: 9.298656475 | K38: 1.152784835 | L38: =VLOOKUP($B38,OFFSET(INDIRECT(A38),0,0,,MDB!$H$38),3,FALSE) -> 3.013636364 | M38: =VLOOKUP(C38,OFFSET(Power_Size,0,0,ROWS(Power_Size)+1,MDB!$P$4),5,FALSE)/L38 -> 0 | N38: =C2*(1/L38) -> 5.80693816 | O38: 0 | P38: =IF(V38=0,VLOOKUP($B38,OFFSET(INDIRECT(A38),0,0,,MDB!$H$38),4,FALSE),0) -> 3.491718315 | Q38: =IF(V38=0,VLOOKUP($B38,OFFSET(INDIRECT(A38),0,0,,MDB!$H$38),5,FALSE),0) -> 1.365820987 | R38: =IF(V38=0,VLOOKUP($B38,OFFSET(INDIRECT(A38),0,0,,MDB!$H$38),6,FALSE),0) -> 1.152784835 | S38: =(VLOOKUP(C38,OFFSET(Power_Size,0,0,ROWS(Power_Size)+1,MDB!$P$4),2,FALSE)/L38)+(0.15*O38) -> 0 | T38: =VLOOKUP(C38,OFFSET(Power_Size,0,0,ROWS(Power_Size)+1,MDB!$P$4),3,FALSE)/L38 -> 0 | U38: =VLOOKUP(C38,OFFSET(Power_Size,0,0,ROWS(Power_Size)+1,MDB!$P$4),4,FALSE)/L38 -> 0 | V38: =Input!H183 -> 0 | W38: Round baler (tie), 1000 lb; 0
A39: Hay_Baler_Wrap | B39: =Input!B184 -> 1000 Lb | C39: =Input!D184 -> 0 | D39: 34 | E39: =VLOOKUP($B39,OFFSET(INDIRECT(A39),0,0,,MDB!$H$38),2,FALSE) -> Round baler/wrap 1000 lb | F39: =VLOOKUP(C39,OFFSET(Power_Size,0,0,,MDB!$P$4),1,FALSE) ->  | G39: 0 | H39: =Input!F184 -> 0 | I39: 19.15984901 | J39: 15.96466417 | K39: 3.195184842 | L39: =VLOOKUP($B39,OFFSET(INDIRECT(A39),0,0,,MDB!$H$38),3,FALSE) -> 3.013636364 | M39: =VLOOKUP(C39,OFFSET(Power_Size,0,0,ROWS(Power_Size)+1,MDB!$P$4),5,FALSE)/L39 -> 0 | N39: =C2*(1/L39) -> 5.80693816 | O39: 0 | P39: =IF(V39=0,VLOOKUP($B39,OFFSET(INDIRECT(A39),0,0,,MDB!$H$38),4,FALSE),0) -> 10.15772601 | Q39: =IF(V39=0,VLOOKUP($B39,OFFSET(INDIRECT(A39),0,0,,MDB!$H$38),5,FALSE),0) -> 3.973297416 | R39: =IF(V39=0,VLOOKUP($B39,OFFSET(INDIRECT(A39),0,0,,MDB!$H$38),6,FALSE),0) -> 3.195184842 | S39: =(VLOOKUP(C39,OFFSET(Power_Size,0,0,ROWS(Power_Size)+1,MDB!$P$4),2,FALSE)/L39)+(0.15*O39) -> 0 | T39: =VLOOKUP(C39,OFFSET(Power_Size,0,0,ROWS(Power_Size)+1,MDB!$P$4),3,FALSE)/L39 -> 0 | U39: =VLOOKUP(C39,OFFSET(Power_Size,0,0,ROWS(Power_Size)+1,MDB!$P$4),4,FALSE)/L39 -> 0 | V39: =Input!H184 -> 0 | W39: Round baler/wrap 1000 lb; 0
A40: Large_Rectangular_Baler | B40: 1 | C40: =Input!D185 -> 0 | D40: 35 | E40: =VLOOKUP($B40,OFFSET(INDIRECT(A40),0,0,,MDB!$H$38),2,FALSE) -> Large rectangular baler | F40: =VLOOKUP(C40,OFFSET(Power_Size,0,0,,MDB!$P$4),1,FALSE) ->  | G40: 0 | H40: =Input!F185 -> 0 | I40: 4.531318518 | J40: 1.733261351 | K40: 2.798057167 | L40: =VLOOKUP($B40,OFFSET(INDIRECT(A40),0,0,,MDB!$H$38),3,FALSE) -> 16.29090909 | M40: =VLOOKUP(C40,OFFSET(Power_Size,0,0,ROWS(Power_Size)+1,MDB!$P$4),5,FALSE)/L40 -> 0 | N40: =C2*(1/L40) -> 1.07421875 | O40: 0 | P40: =IF(V40=0,VLOOKUP($B40,OFFSET(INDIRECT(A40),0,0,,MDB!$H$38),4,FALSE),0) -> 0.6590426005 | Q40: =IF(V40=0,VLOOKUP($B40,OFFSET(INDIRECT(A40),0,0,,MDB!$H$38),5,FALSE),0) -> 3.387500323 | R40: =IF(V40=0,VLOOKUP($B40,OFFSET(INDIRECT(A40),0,0,,MDB!$H$38),6,FALSE),0) -> 2.798057167 | S40: =(VLOOKUP(C40,OFFSET(Power_Size,0,0,ROWS(Power_Size)+1,MDB!$P$4),2,FALSE)/L40)+(0.15*O40) -> 0 | T40: =VLOOKUP(C40,OFFSET(Power_Size,0,0,ROWS(Power_Size)+1,MDB!$P$4),3,FALSE)/L40 -> 0 | U40: =VLOOKUP(C40,OFFSET(Power_Size,0,0,ROWS(Power_Size)+1,MDB!$P$4),4,FALSE)/L40 -> 0 | V40: =Input!H185 -> 0 | W40: Large rectangular baler; 0
A41: Forage_Harvester | B41: 2 row (5 ft) | C41: =Input!D186 -> 0 | D41: 36 | E41: =VLOOKUP($B41,OFFSET(INDIRECT(A41),0,0,,MDB!$H$38),2,FALSE) -> Silage chopper, 2 row (5 ft) | F41: =VLOOKUP(C41,OFFSET(Power_Size,0,0,,MDB!$P$4),1,FALSE) ->  | G41: 0 | H41: =Input!F186 -> 0 | I41: 28.51795402 | J41: 22.88860338 | K41: 5.629350641 | L41: =VLOOKUP($B41,OFFSET(INDIRECT(A41),0,0,,MDB!$H$38),3,FALSE) -> 1.378787879 | M41: =VLOOKUP(C41,OFFSET(Power_Size,0,0,ROWS(Power_Size)+1,MDB!$P$4),5,FALSE)/L41 -> 0 | N41: =C1*(1/L41) -> 16.68131868 | O41: 0 | P41: =IF(V41=0,VLOOKUP($B41,OFFSET(INDIRECT(A41),0,0,,MDB!$H$38),4,FALSE),0) -> 6.207284702 | Q41: =IF(V41=0,VLOOKUP($B41,OFFSET(INDIRECT(A41),0,0,,MDB!$H$38),5,FALSE),0) -> 6.257503491 | R41: =IF(V41=0,VLOOKUP($B41,OFFSET(INDIRECT(A41),0,0,,MDB!$H$38),6,FALSE),0) -> 5.629350641 | S41: =(VLOOKUP(C41,OFFSET(Power_Size,0,0,ROWS(Power_Size)+1,MDB!$P$4),2,FALSE)/L41)+(0.15*O41) -> 0 | T41: =VLOOKUP(C41,OFFSET(Power_Size,0,0,ROWS(Power_Size)+1,MDB!$P$4),3,FALSE)/L41 -> 0 | U41: =VLOOKUP(C41,OFFSET(Power_Size,0,0,ROWS(Power_Size)+1,MDB!$P$4),4,FALSE)/L41 -> 0 | V41: =Input!H186 -> 0 | W41: Silage chopper, 2 row (5 ft); 0
A42: Hay_Stacker | B42: =Input!B187 -> 3 ton | C42: =Input!D187 -> 0 | D42: 37 | E42: =VLOOKUP($B42,OFFSET(INDIRECT(A42),0,0,,MDB!$H$38),2,FALSE) -> Bale wagon/stacker (pull-type), 3 ton | F42: =VLOOKUP(C42,OFFSET(Power_Size,0,0,,MDB!$P$4),1,FALSE) ->  | G42: 0 | H42: =Input!F187 -> 0 | I42: 5.898099087 | J42: 3.000924521 | K42: 2.897174567 | L42: =VLOOKUP($B42,OFFSET(INDIRECT(A42),0,0,,MDB!$H$38),3,FALSE) -> 7.757575758 | M42: =VLOOKUP(C42,OFFSET(Power_Size,0,0,ROWS(Power_Size)+1,MDB!$P$4),5,FALSE)/L42 -> 0 | N42: =(1/L42)*C2 -> 2.255859375 | O42: 0 | P42: =IF(V42=0,VLOOKUP($B42,OFFSET(INDIRECT(A42),0,0,,MDB!$H$38),4,FALSE),0) -> 0.7450651456 | Q42: =IF(V42=0,VLOOKUP($B42,OFFSET(INDIRECT(A42),0,0,,MDB!$H$38),5,FALSE),0) -> 3.266304994 | R42: =IF(V42=0,VLOOKUP($B42,OFFSET(INDIRECT(A42),0,0,,MDB!$H$38),6,FALSE),0) -> 2.897174567 | S42: =(VLOOKUP(C42,OFFSET(Power_Size,0,0,ROWS(Power_Size)+1,MDB!$P$4),2,FALSE)/L42)+(0.15*O42) -> 0 | T42: =VLOOKUP(C42,OFFSET(Power_Size,0,0,ROWS(Power_Size)+1,MDB!$P$4),3,FALSE)/L42 -> 0 | U42: =VLOOKUP(C42,OFFSET(Power_Size,0,0,ROWS(Power_Size)+1,MDB!$P$4),4,FALSE)/L42 -> 0 | V42: =Input!H187 -> 0 | W42: Bale wagon/stacker (pull-type), 3 ton; 0
A43: Stalk_Shredder | B43: =Input!B192 -> 20 ft | C43: =Input!D192 -> 0 | D43: 38 | E43: =VLOOKUP($B43,OFFSET(INDIRECT(A43),0,0,,MDB!$H$38),2,FALSE) -> Stalk shredder (20 ft) | F43: =VLOOKUP(C43,OFFSET(Power_Size,0,0,,MDB!$P$4),1,FALSE) ->  | G43: 0 | H43: =Input!F192 -> 0 | I43: 5.069983251 | J43: 3.265293198 | K43: 1.804690053 | L43: =VLOOKUP($B43,OFFSET(INDIRECT(A43),0,0,,MDB!$H$38),3,FALSE) -> 7.757575758 | M43: =VLOOKUP(C43,OFFSET(Power_Size,0,0,ROWS(Power_Size)+1,MDB!$P$4),5,FALSE)/L43 -> 0 | N43: =C$2*(1/L43) -> 2.255859375 | O43: 0 | P43: =IF(V43=0,VLOOKUP($B43,OFFSET(INDIRECT(A43),0,0,,MDB!$H$38),4,FALSE),0) -> 1.009433823 | Q43: =IF(V43=0,VLOOKUP($B43,OFFSET(INDIRECT(A43),0,0,,MDB!$H$38),5,FALSE),0) -> 1.853536595 | R43: =IF(V43=0,VLOOKUP($B43,OFFSET(INDIRECT(A43),0,0,,MDB!$H$38),6,FALSE),0) -> 1.804690053 | S43: =(VLOOKUP(C43,OFFSET(Power_Size,0,0,ROWS(Power_Size)+1,MDB!$P$4),2,FALSE)/L43)+(0.15*O43) -> 0 | T43: =VLOOKUP(C43,OFFSET(Power_Size,0,0,ROWS(Power_Size)+1,MDB!$P$4),3,FALSE)/L43 -> 0 | U43: =VLOOKUP(C43,OFFSET(Power_Size,0,0,ROWS(Power_Size)+1,MDB!$P$4),4,FALSE)/L43 -> 0 | V43: =Input!H192 -> 0 | W43: Stalk shredder (20 ft); 0
A44: Grainhead_Size | B44: =Input!B193 -> 15 ft | C44: =Input!D193 -> 275 HP Comb. | D44: 39 | E44: =VLOOKUP($B44,OFFSET(INDIRECT(A44),0,0,,MDB!$H$38),2,FALSE) -> Combine, fixed grain head (15 ft) | F44: =VLOOKUP(C44,OFFSET(Combine_Size,0,0,,6),1,FALSE) -> 275 HP Comb. | G44: 0 | H44: =Input!F193 -> 0 | I44: 30.12485585 | J44: 25.00168402 | K44: 5.123171829 | L44: =VLOOKUP($B44,OFFSET(INDIRECT(A44),0,0,,MDB!$H$38),3,FALSE) -> 5.94 | M44: =VLOOKUP(C44,OFFSET(Combine_Size,0,0,ROWS(Combine_Size)+1,6),6,FALSE)/L44 -> 2.037037037 | N44: =(1/L44)*C1 -> 3.872053872 | O44: 5.927777778 | P44: =IF(V44=0,VLOOKUP($B44,OFFSET(INDIRECT(A44),0,0,,MDB!$H$38),4,FALSE),0) -> 0.378342268 | Q44: =IF(V44=0,VLOOKUP($B44,OFFSET(INDIRECT(A44),0,0,,MDB!$H$38),5,FALSE),0) -> 1.440904146 | R44: =IF(V44=0,VLOOKUP($B44,OFFSET(INDIRECT(A44),0,0,,MDB!$H$38),6,FALSE),0) -> 0.7460674523 | S44: =(VLOOKUP(C44,OFFSET(Combine_Size,0,0,ROWS(Combine_Size)+1,6),3,FALSE)/L44)+(0.15*O44) -> 14.8235101 | T44: =VLOOKUP(C44,OFFSET(Combine_Size,0,0,ROWS(Combine_Size)+1,6),4,FALSE)/L44 -> 10.86195286 | U44: =VLOOKUP(C44,OFFSET(Combine_Size,0,0,ROWS(Combine_Size)+1,6),5,FALSE)/L44 -> 4.377104377 | V44: =Input!H193 -> 0 | W44: Combine, fixed grain head (15 ft); 275 HP Comb.
A45: Soybeanhead_Size | B45: =Input!B194 -> 25 ft | C45: =Input!D194 -> 275 HP Comb. | D45: 40 | E45: =VLOOKUP($B45,OFFSET(INDIRECT(A45),0,0,,MDB!$H$38),2,FALSE) -> Combine, flexible grain head (25 ft) | F45: =VLOOKUP(C45,OFFSET(Combine_Size,0,0,,6),1,FALSE) -> 275 HP Comb. | G45: 1 | H45: =Input!F194 -> 1 | I45: 34.77140836 | J45: 20.29194744 | K45: 14.47946092 | L45: =VLOOKUP($B45,OFFSET(INDIRECT(A45),0,0,,MDB!$H$38),3,FALSE) -> 7.42 | M45: =VLOOKUP(C45,OFFSET(Combine_Size,0,0,ROWS(Combine_Size)+1,6),6,FALSE)/L45 -> 1.630727763 | N45: =(1/L45)*C1 -> 3.099730458 | O45: 4.74541779 | P45: =IF(V45=0,VLOOKUP($B45,OFFSET(INDIRECT(A45),0,0,,MDB!$H$38),4,FALSE),0) -> 0.58 | Q45: =IF(V45=0,VLOOKUP($B45,OFFSET(INDIRECT(A45),0,0,,MDB!$H$38),5,FALSE),0) -> 1.57 | R45: =IF(V45=0,VLOOKUP($B45,OFFSET(INDIRECT(A45),0,0,,MDB!$H$38),6,FALSE),0) -> 0.71 | S45: =(VLOOKUP(C45,OFFSET(Combine_Size,0,0,ROWS(Combine_Size)+1,6),3,FALSE)/L45)+(0.15*O45) -> 11.86679919 | T45: =VLOOKUP(C45,OFFSET(Combine_Size,0,0,ROWS(Combine_Size)+1,6),4,FALSE)/L45 -> 8.69541779 | U45: =VLOOKUP(C45,OFFSET(Combine_Size,0,0,ROWS(Combine_Size)+1,6),5,FALSE)/L45 -> 3.504043127 | V45: =Input!H194 -> 0 | W45: Combine, flexible grain head (25 ft); 275 HP Comb.
A46: Cornhead_Size | B46: =Input!B195 -> 8 row | C46: =Input!D195 -> 275 HP Comb. | D46: 41 | E46: =VLOOKUP($B46,OFFSET(INDIRECT(A46),0,0,,MDB!$H$38),2,FALSE) -> Combine, corn head (8 row) | F46: =VLOOKUP(C46,OFFSET(Combine_Size,0,0,,6),1,FALSE) -> 275 HP Comb. | G46: 0 | H46: =Input!F195 -> 0 | I46: 27.83005155 | J46: 22.66089102 | K46: 5.16916053 | L46: =VLOOKUP($B46,OFFSET(INDIRECT(A46),0,0,,MDB!$H$38),3,FALSE) -> 6.79 | M46: =VLOOKUP(C46,OFFSET(Combine_Size,0,0,ROWS(Combine_Size)+1,6),6,FALSE)/L46 -> 1.782032401 | N46: =(1/L46)*C1 -> 3.387334315 | O46: 5.185714286 | P46: =IF(V46=0,VLOOKUP($B46,OFFSET(INDIRECT(A46),0,0,,MDB!$H$38),4,FALSE),0) -> 1.12 | Q46: =IF(V46=0,VLOOKUP($B46,OFFSET(INDIRECT(A46),0,0,,MDB!$H$38),5,FALSE),0) -> 3.07 | R46: =IF(V46=0,VLOOKUP($B46,OFFSET(INDIRECT(A46),0,0,,MDB!$H$38),6,FALSE),0) -> 1.34 | S46: =(VLOOKUP(C46,OFFSET(Combine_Size,0,0,ROWS(Combine_Size)+1,6),3,FALSE)/L46)+(0.15*O46) -> 12.96784242 | T46: =VLOOKUP(C46,OFFSET(Combine_Size,0,0,ROWS(Combine_Size)+1,6),4,FALSE)/L46 -> 9.502209131 | U46: =VLOOKUP(C46,OFFSET(Combine_Size,0,0,ROWS(Combine_Size)+1,6),5,FALSE)/L46 -> 3.82916053 | V46: =Input!H195 -> 0 | W46: Combine, corn head (8 row); 275 HP Comb.
A47: Silage_Wrapper | B47: 1 | C47: =Input!D184 -> 0 | D47: 42 | E47: =VLOOKUP($B47,OFFSET(Silage_Wrapper,0,0,,MDB!$H$38),2,FALSE) -> Rd bale wrapper silage | F47: =VLOOKUP(C47,OFFSET(Power_Size,0,0,,MDB!$P$4),1,FALSE) ->  | G47: 0 | H47: =IF(Input!F184<>0,1,0) -> 0 | I47: 24.09 | J47: =N47+O47+P47+S47 -> 17.5 | K47: 6.59 | L47: =IF(VLOOKUP($B47,OFFSET(INDIRECT(A47),0,0,,MDB!$H$38),3,FALSE)<>0,VLOOKUP($B47,OFFSET(INDIRECT(A47),0,0,,MDB!$H$38),3,FALSE),1) -> 1 | M47: =VLOOKUP(C47,OFFSET(Power_Size,0,0,ROWS(Power_Size)+1,MDB!$P$4),5,FALSE)/L47 -> 0 | N47: =IF(L47<>0,(1/L47)*$C$2,0) -> 17.5 | O47: 0 | P47: =IF(C47<>0,IF(L47<>0,VLOOKUP($B47,OFFSET(INDIRECT(A47),0,0,,MDB!$H$38),4,FALSE)/L47,0),0) -> 0 | Q47: =IF(B47<>0,IF(L47<>0,VLOOKUP($B47,OFFSET(INDIRECT(A47),0,0,,MDB!$H$38),5,FALSE)/L47,0),0) -> 1.97 | R47: =IF(B47<>0,IF(L47<>0,VLOOKUP($B47,OFFSET(INDIRECT(A47),0,0,,MDB!$H$38),6,FALSE)/L47,0),0) -> 6.59 | S47: =(VLOOKUP(C47,OFFSET(Power_Size,0,0,ROWS(Power_Size)+1,MDB!$P$4),2,FALSE)/L47)+(0.15*O47) -> 0 | T47: =VLOOKUP(C47,OFFSET(Power_Size,0,0,ROWS(Power_Size)+1,MDB!$P$4),3,FALSE)/L47 -> 0 | U47: =VLOOKUP(C47,OFFSET(Power_Size,0,0,ROWS(Power_Size)+1,MDB!$P$4),4,FALSE)/L47 -> 0 | V47: =Input!H184 -> 0 | W47: Rd bale wrapper silage; 0
A48: Graincart | B48: =Input!B196 -> 500 bushel | C48: =Input!D196 -> 225 MFWD | D48: 43 | E48: =VLOOKUP($B48,OFFSET(Graincart,0,0,,MDB!$H$38),2,FALSE) -> Grain cart (500 bushel) | F48: =VLOOKUP(C48,OFFSET(Power_Size,0,0,,MDB!$P$4),1,FALSE) -> 225 MFWD | G48: 1 | H48: =IF(AND(Input!D196<>"",SUM(H44:H46)<>0),1,0) -> 1 | I48: 12.22441712 | J48: =N48+O48+P48+S48 -> 4.731829515 | K48: 7.492587601 | L48: =IF(VLOOKUP($B48,OFFSET(Graincart,0,0,,MDB!$H$38),3,FALSE)<>0,VLOOKUP($B48,OFFSET(Graincart,0,0,,MDB!$H$38),3,FALSE),1) -> 14.84 | M48: =VLOOKUP(C48,OFFSET(Power_Size,0,0,ROWS(Power_Size)+1,MDB!$P$4),5,FALSE)/L48 -> 0.667115903 | N48: =IF(L48<>0,(1/L48)*$C$2,0) -> 1.179245283 | O48: 1.941307278 | P48: =IF(C48<>0,IF(L48<>0,VLOOKUP($B48,OFFSET(Graincart,0,0,,MDB!$H$38),4,FALSE)/L48,0),0) -> 0.8652291105 | Q48: =IF(B48<>0,IF(L48<>0,VLOOKUP($B48,OFFSET(Graincart,0,0,,MDB!$H$38),5,FALSE)/L48,0),0) -> 2.312668464 | R48: =IF(B48<>0,IF(L48<>0,VLOOKUP($B48,OFFSET(Graincart,0,0,,MDB!$H$38),6,FALSE)/L48,0),0) -> 1.037061995 | S48: =(VLOOKUP(C48,OFFSET(Power_Size,0,0,ROWS(Power_Size)+1,MDB!$P$4),2,FALSE)/L48)+(0.15*O48) -> 0.7460478437 | T48: =VLOOKUP(C48,OFFSET(Power_Size,0,0,ROWS(Power_Size)+1,MDB!$P$4),3,FALSE)/L48 -> 2.78638814 | U48: =VLOOKUP(C48,OFFSET(Power_Size,0,0,ROWS(Power_Size)+1,MDB!$P$4),4,FALSE)/L48 -> 1.356469003 | W48: =CONCATENATE(E48,"; ",C48) -> Grain cart (500 bushel); 225 MFWD
A49: Grain_Auger | B49: 70 ft | C49: =Input!D197 -> 130 MFWD | D49: 44 | E49: =VLOOKUP($B49,OFFSET(Grain_Auger,0,0,,MDB!$H$38),2,FALSE) -> Grain auger 10 in- 5000 bu/hr (70 ft) | F49: =VLOOKUP(C49,OFFSET(Power_Size,0,0,,MDB!$P$4),1,FALSE) -> 130 MFWD | G49: 1 | H49: =IF(Input!D197<>"",1,0) -> 1 | I49: 0.92039178 | J49: 0.48138178 | K49: 0.43901 | L49: =IF(VLOOKUP($B49,OFFSET(Grain_Auger,0,0,,MDB!$H$38),3,FALSE)<>0,VLOOKUP($B49,OFFSET(Grain_Auger,0,0,,MDB!$H$38),3,FALSE),1) -> 90.90909091 | M49: =VLOOKUP(C49,OFFSET(Power_Size,0,0,ROWS(Power_Size)+1,MDB!$P$4),5,FALSE)/L49 -> 0.06292 | N49: =IF(L49<>0,(1/L49)*$C$2,0) -> 0.1925 | O49: 0.1830972 | P49: =IF(C49<>0,IF(L49<>0,VLOOKUP($B49,OFFSET(Grain_Auger,0,0,,MDB!$H$38),4,FALSE)/L49,0),0) -> 0.02024 | Q49: =IF(B49<>0,IF(L49<>0,VLOOKUP($B49,OFFSET(Grain_Auger,0,0,,MDB!$H$38),5,FALSE)/L49,0),0) -> 0.03784 | R49: =IF(B49<>0,IF(L49<>0,VLOOKUP($B49,OFFSET(Grain_Auger,0,0,,MDB!$H$38),6,FALSE)/L49,0),0) -> 0.03025 | S49: =(VLOOKUP(C49,OFFSET(Power_Size,0,0,ROWS(Power_Size)+1,MDB!$P$4),2,FALSE)/L49)+(0.15*O49) -> 0.08554458 | T49: =VLOOKUP(C49,OFFSET(Power_Size,0,0,ROWS(Power_Size)+1,MDB!$P$4),3,FALSE)/L49 -> 0.21714 | U49: =VLOOKUP(C49,OFFSET(Power_Size,0,0,ROWS(Power_Size)+1,MDB!$P$4),4,FALSE)/L49 -> 0.15378 | W49: =CONCATENATE(E49,"; ",C49) -> Grain auger 10 in- 5000 bu/hr (70 ft); 130 MFWD
D50: 45 | E50: Irrigation | G50: =IF(MDB!C161=1,1,0) -> 0 | H50: =G50 -> 0 | I50: 22 | J50: 0 | K50: 22 | L50: =IF(Input!B69<>0,1/Input!B69,0) -> 0 | N50: =IF(L50<>0,(1/L50)*C2,0) -> 0 | O50: =Input!B70*Input!B71 -> 0 | P50: =MDB!C153*Input!B70 -> 0 | Q50: =MDB!C155 -> 22 | R50: =MDB!C154 -> 22 | W50: =CONCATENATE(E50,"; ",C50) -> Irrigation;
D51: 46 | E51: 10 Wheeler | G51: =IF(H51>0,1,0) -> 1 | H51: =IF(TenWheelAlloc<>0,1,0) -> 1 | I51: =J51+K51 -> 1.749355 | J51: 1.36275 | K51: 0.386605 | L51: 0 | M51: =E87 -> 0.375 | O51: =E77 -> 1.155 | S51: =E79+E78 -> 0.20775 | T51: =E82 -> 0.19 | U51: =E81+E83 -> 0.196605 | W51: =E51 -> 10 Wheeler
D52: 47 | E52: Semi, tractor and trailer | G52: =IF(H52>0,1,0) -> 1 | H52: =IF(SemiAlloc<>0,1,0) -> 1 | I52: =J52+K52 -> 3.722666667 | J52: 2.227 | K52: 1.495666667 | L52: 0 | M52: =E105 -> 0.3571428571 | O52: =E95 -> 1.1 | S52: =E97+E96 -> 1.127 | T52: =E100 -> 0.6666666667 | U52: =E99+E101 -> 0.829 | W52: =E52 -> Semi, tractor and trailer
D53: 48 | E53: Pickup truck | G53: 1 | H53: 1 | I53: =J53+K53 -> 3.760474613 | J53: 1.707673333 | K53: 2.05280128 | L53: 0 | M53: =E70 -> 0.3333333333 | O53: =E60 -> 1.026666667 | S53: =E62+E61 -> 0.6810066667 | T53: =E65 -> 0.79444 | U53: =E64+E66 -> 1.25836128 | W53: =E53 -> Pickup truck
D55: 43 | E55: Grain cart (500 bushel) | F55: 225 MFWD | G55: 1 | H55: 1 | I55: 15.28052139 | J55: 5.914786894 | K55: 9.365734501 | L55: 11.872 | M55: 0.8338948787 | N55: 1.474056604 | O55: 2.426634097 | P55: 1.081536388 | Q55: 2.89083558 | R55: 1.296327493 | S55: 0.9325598046 | T55: 3.482985175 | U55: 1.695586253
A57: Farm pickup annual costs | D57: Annual costs | E57: Costs per acre
A58: Assumptions and variables | D58: this crop | E58: this crop
A59: New price | B59: 41310 | C59: Labor costs | D59: xx | E59: xx
A60: Economic life | B60: 10 | C60: Fuel costs | D60: =D70*$C$4 -> 1026.666667 | E60: =D60/$B$69 -> 1.026666667
A61: Salvage value | B61: 21449 | C61: Lube costs | D61: =B63*D60 -> 102.6666667 | E61: 0.1026666667
A62: Miles per gal | B62: 18 | C62: Repair costs | D62: =B59*B64*B67 -> 578.34 | E62: 0.57834
A63: Lube factor | B63: 0.1 | C63: Oper costs | D63: =SUM(D60:D62) -> 1707.673333 | E63: 1.707673333
A64: Repair factor | B64: 0.035 | C64: Tax, insur, housing | D64: =B65*B59*B67 -> 495.72 | E64: 0.49572
A65: TIH factor | B65: 0.03 | C65: Deprec, S/L | D65: =((B59-B61)/B60)*B67 -> 794.44 | E65: 0.79444
A66: Interest rate | B66: 0.06 | C66: Interest | D66: =(B59+B61+D65)/2*B66*B67 -> 762.64128 | E66: 0.76264128
A67: Allocate pickup costs to this crop | B67: =PUAlloc/100 -> 0.4 | C67: Ownership costs | D67: =SUM(D64:D66) -> 2052.80128 | E67: 2.05280128
A68: Fuel price | B68: =Input!B85 -> 3.08 | C68: Total costs | D68: =D63+D67 -> 3760.474613 | E68: 3.760474613
A69: Enterprise planted acres | B69: =IF(acres<>0,acres,1) -> 1000
A70: Miles per year | B70: =PUMiles -> 15000 | C70: Fuel quantity, gal | D70: =(B70*B67)/B62 -> 333.3333333 | E70: =D70/B69 -> 0.3333333333
C71: Labor, hours | D71: xx | E71: xx
A74: 10 Wheeler Costs | D74: Annual costs | E74: Costs per acre
D75: this crop | E75: this crop
A76: Assumptions and variables | C76: Labor costs | D76: xx | E76: =D76/$B$89 -> 
A77: New price (buy used) | B77: 25000 | C77: Fuel costs | D77: =$C$4*D87 -> 1155 | E77: 1.155
A78: Economic life | B78: 15 | C78: Lube costs | D78: =D77*B81 -> 57.75 | E78: 0.05775
A79: Salvage value | B79: 6000 | C79: Repair costs | D79: =B77*B82*B87 -> 150 | E79: 0.15
A80: Fuel consumption, mpg | B80: 5 | C80: Oper costs | D80: =SUM(D76:D79) -> 1362.75 | E80: 1.36275
A81: Lube factor | B81: 0.05 | C81: Tax, insur, housing | D81: =B77*B84*B87 -> 56.25 | E81: 0.05625
A82: Repair factor | B82: 0.04 | C82: Deprec, S/L | D82: =((B77-B79)/B78)*B87 -> 190 | E82: 0.19
A83: Interest rate | B83: 0.06 | C83: Interest | D83: =(B77+B79+D82)/2*B83*B87 -> 140.355 | E83: 0.140355
A84: TIH factor | B84: 0.015 | C84: Ownership costs | D84: =SUM(D81:D83) -> 386.605 | E84: 0.386605
A85: Fuel price | B85: =C4 -> 3.08 | C85: Total costs | D85: =D80+D84 -> 1749.355 | E85: 1.749355
A86: Combine hours per acre (labor) | B86: =1/(VLOOKUP(1,'Machinery Cost'!$G$44:$L$46,6,FALSE)*VLOOKUP(crop,MDB!$K$31:$L$37,2,FALSE)) -> 0.1347708895
A87: Allocate fixed costs to this crop | B87: =TenWheelAlloc/100 -> 0.15 | C87: Fuel quantity, gal | D87: =(B90/B80)*B87 -> 375 | E87: 0.375
A88: Labor rate | B88: =Input!B64 -> 17.5 | C88: Labor, hours | D88: xx
A89: Enterprise planted acres | B89: =IF(acres<>0,acres,1) -> 1000
A90: Miles per year | B90: =TenWheelMiles -> 12500
A92: Semi, tractor and trailer | D92: Annual costs | E92: Costs per acre
D93: this crop | E93: this crop
A94: Assumptions and variables | C94: Labor costs | D94: xx | E94: =D94/$B$106 -> 
A95: New price (buy used) | B95: 75000 | C95: Fuel costs | D95: =$C$4*D105 -> 1100 | E95: =D95/$B$106 -> 1.1
A96: Economic life | B96: 15 | C96: Lube costs | D96: =D95*B99 -> 77 | E96: 0.077
A97: Salvage value | B97: 25000 | C97: Repair costs | D97: =B95*B100*B104 -> 1050 | E97: 1.05
A98: Miles per gal | B98: 7 | C98: Oper costs | D98: =SUM(D94:D97) -> 2227 | E98: 2.227
A99: Lube factor | B99: 0.07 | C99: Tax, insur, housing | D99: =B95*B102*B104 -> 225 | E99: 0.225
A100: Repair factor | B100: 0.07 | C100: Deprec, S/L | D100: =((B95-B97)/B96)*B104 -> 666.6666667 | E100: 0.6666666667
A101: Interest rate | B101: 0.06 | C101: Interest | D101: =(B95+B97+D100)/2*B101*B104 -> 604 | E101: 0.604
A102: TIH factor | B102: 0.015 | C102: Ownership costs | D102: =SUM(D99:D101) -> 1495.666667 | E102: 1.495666667
A103: Fuel price | B103: =Input!B85 -> 3.08 | C103: Total costs | D103: =D98+D102 -> 3722.666667 | E103: 3.722666667
A104: Allocated costs to this crop | B104: =SemiAlloc/100 -> 0.2
A105: Labor rate | B105: =Input!B64 -> 17.5 | C105: Fuel quantity, gal | D105: =(B107/B98)*B104 -> 357.1428571 | E105: 0.3571428571
A106: Enterprise planted acres | B106: =IF(acres<>0,acres,1) -> 1000 | C106: Labor, hours | D106: xx
A107: Miles per year | B107: =SemiMiles -> 12500
A110: Silage wagons
A121: Hay wagons

Sheet MDB (hidden)
A1: Tractors Data | H1: Tractors Used
E2: Overhead | K2: Overhead
A3: Use | B3: HP | C3: Maint. & Repair Cost/Hr | D3: Depreciation Cost/Hr | E3: Cost/Hr | F3: Diesel Hr/Gal | G3: Year for costs | H3: HP | I3: Maint. & Repair Cost/Hr | J3: Depreciation Cost/Hr | K3: Cost/Hr | L3: Diesel Hr/Gal | P3: Number of Columns
B4: 40 HP | C4: 0.6048 | D4: 2.389686528 | E4: 2.614510152 | F4: 1.76 | H4: 130 MFWD | I4: 5.28 | J4: 19.74 | K4: 13.98 | L4: 5.72 | P4: 5 | T4: =D4*1.1 -> 2.628655181 | U4: =E4*1.1 -> 2.875961167
B5: 60 HP | C5: 0.8736 | D5: 3.45176943 | E5: 3.736792441 | F5: 2.64 | H5: 225 MFWD | I5: 6.75 | J5: 41.35 | K5: 20.13 | L5: 9.9 | T5: =D5*1.1 -> 3.796946373 | U5: 4.110471685
B6: 75 HP | C6: 1.3104 | D6: 5.177654145 | E6: 5.548813662 | F6: 3.3 | H6: 360 4WD | I6: 5.92 | J6: 51.51 | K6: 31.6 | L6: 15.84 | T6: 5.69541956 | U6: 6.103695028
B7: 110 TWD | C7: 3.5559216 | D7: 10.85980045 | E7: 11.81711316 | F7: 4.84 | H7: 0 | T7: 11.9457805 | U7: 12.99882448
B8: 140 TWD | C8: 3.97988976 | D8: 15.08192103 | E8: 16.8274976 | F8: 6.16 | T8: 16.59011313 | U8: 18.51024736
B9: 105 MFWD | C9: 2.16 | D9: 9.235309508 | E9: 10.07263947 | F9: 4.62 | T9: 10.15884046 | U9: 11.07990341
A10: TRUE | B10: 130 MFWD | C10: 5.28 | D10: 19.74 | E10: 13.98 | F10: 5.72 | G10: 2021 | T10: 21.714 | U10: 15.378
A11: FALSE | B11: 160 MFWD | C11: 4.2 | D11: 17.72092766 | E11: 14.47597552 | F11: 7.04 | G11: 2009 | T11: 19.49302043 | U11: 15.92357308
A12: FALSE | B12: 200 MFWD | C12: 5.34 | D12: 22.53089374 | E12: 18.35645459 | F12: 8.8 | T12: 24.78398311 | U12: 20.19210005
A13: TRUE | B13: 225 MFWD | C13: 6.75 | D13: 41.35 | E13: 20.13 | F13: 9.9 | G13: 2018 | T13: 45.485 | U13: 22.143
A14: FALSE | B14: 260 4WD | C14: 3.6576 | D14: 39.78757324 | E14: 32.84649792 | F14: 11.44 | T14: 43.76633056 | U14: 36.13114771
A15: FALSE | B15: 310 4WD | C15: 3.5136 | D15: 38.22113335 | E15: 31.56686217 | F15: 13.64 | T15: 42.04324668 | U15: 34.72354839
A16: TRUE | B16: 360 4WD | C16: 5.92 | D16: 51.51 | E16: 31.6 | F16: 15.84 | G16: 2020 | T16: 56.661 | U16: 34.76
B17: 425 4WD | C17: 4.4208 | D17: 48.08970466 | E17: 39.62856736 | F17: 18.7 | T17: 52.89867513 | U17: 43.5914241
B18: 225 Tracked Tractor | C18: 2.770332365 | D18: 30.13582728 | E18: 24.96191888 | F18: 9.9 | T18: 33.14941001 | U18: 27.45811077
B19: 425 Tracked Tractor | C19: 4.461602284 | D19: 48.53355414 | E19: 39.99115112 | F19: 18.7 | T19: 53.38690956 | U19: 43.99026624
A21: Combines
F22: Overhead
A23: Number | B23: HP | C23: Fuel & Oil Cost/Hr | D23: Maint. & Repair Cost/Hr | E23: Depreciation Cost/Hr | F23: Cost/Hr | G23: Diesel Hr/Gal
A24: 100 HP Comb. | B24: 100 HP Comb. | D24: 0.17489472 | E24: 2.283094179 | F24: 1.977991267 | G24: 4.4
A25: 220 HP Comb. | B25: 220 HP Comb. | D25: 39.00455782 | E25: 54.5589514 | F25: 37.60550207 | G25: 9.68
A26: 275 HP Comb. | B26: 275 HP Comb. | D26: 82.77 | E26: 64.52 | F26: 26 | G26: 12.1 | H26: 2020
A27: 340 HP Comb. | B27: 340 HP Comb. | D27: 31.12066055 | E27: 84.55073574 | F27: 50.1124755 | G27: 14.52
A29: Hourly Equipment
C30: Acres/Hr | D30: Repairs/Hour | E30: Depreciation/Hour | F30: Overhead/Hour | G30: Hrs per ent. | H30: Year for Costs | J30: Hourly adjustmants
A31: 1 | B31: Rd bale wrapper silage | D31: 15.12 | E31: 1.97 | F31: 6.59 | J31: 1 | K31: Corn | L31: 1
A32: 500 bushel | B32: Grain cart (500 bushel) | C32: =IF(SUM('Machinery Cost'!$G$44:$G$46)>0,VLOOKUP(1,'Machinery Cost'!$G$44:$L$46,6,FALSE)*VLOOKUP(crop,$K$31:$L$37,2,FALSE)*2,1) -> 14.84 | D32: 12.84 | E32: 34.32 | F32: 15.39 | G32: =acres/MDB!C32 -> 67.38544474 | H32: 2021 must use Calculate page to get $/hour | J32: 2 | K32: Silage | L32: 1
A33: 1000 bushel | B33: Grain cart (1000 bushel) | C33: =IF(SUM('Machinery Cost'!$G$44:$G$46)>0,VLOOKUP(1,'Machinery Cost'!$G$44:$L$46,6,FALSE)*VLOOKUP(crop,$K$31:$L$37,2,FALSE)*2,1) -> 14.84 | D33: 6.81 | E33: 12.49 | F33: 11.23 | G33: =acres/MDB!C33 -> 67.38544474 | J33: 3 | K33: Milo | L33: 1
A34: 70 ft | B34: Grain auger 10 in- 5000 bu/hr (70 ft) | C34: =IF(yield>0,5000/yield,1) -> 90.90909091 | D34: 1.84 | E34: 3.44 | F34: 2.75 | G34: =acres/MDB!C34 -> 11 | H34: old, not in Lazarus database | J34: 4 | K34: Beans | L34: 1 | O34: Implement output
B35: 8 ATV | D35: 0.3933294231 | E35: 3.253285366 | F35: 2.261161847 | J35: 5 | K35: Beans, DC | L35: 1 | P35: 1 | Q35: 16 | R35: 17 | S35: 18 | T35: 19
A36: Equipment | J36: 6 | K36: Wheat | L36: 1
D37: Implement Cost/Acre | H37: Number of Columns | J37: 7 | K37: Straw | L37: 0.8 | R37: Maintenance
A38: Number | B38: Implement | C38: Acres/Hr | D38: Repairs | E38: Depreciation | F38: Overhead | G38: Year for Costs | H38: 6 | P38: Implement | Q38: Acres/Hr | R38: & Repair | S38: Depreciation | T38: Overhead
A39: 15 ft | B39: Chisel plow (15 ft) | C39: 8.5 | D39: 0.6157454336 | E39: 1.658686384 | F39: 1.501547673 | O39: 18 | P39: Offset Disk 12 Ft | Q39: 5.563636364 | R39: 0.5971746261 | S39: 1.550355006 | T39: 1.395352429
A40: 23 ft | B40: Chisel plow (23 ft) | C40: 13.03333333 | D40: 0.7397399374 | E40: 1.992701033 | F40: 1.725047178 | O40: 23 | P40: Subsoiler 10 Ft 30 " O.C. | Q40: 4.121212121 | R40: 1.760816393 | S40: 1.753788194 | T40: 1.673004316
A41: 37 ft | B41: Chisel plow (37 ft) | C41: 20.96666667 | D41: 0.5912207222 | E41: 1.592622061 | F41: 1.393184424 | O41: 24 | P41: Subsoiler 15 Ft 30 " O.C. | Q41: 6.181818182 | R41: 1.767721555 | S41: 1.760665795 | T41: 1.651969962
A42: 57 ft | B42: Chisel plow (57 ft) | C42: 32.3 | D42: 0.6396247579 | E42: 1.723012171 | F42: 1.459516688 | O42: 34 | P42: Rod weeder 33 Ft | Q42: 0
A43: 16.3 ft | B43: Chisel plow, front dsk (16.3 ft) | C43: 9.208333333 | D43: 0.4179304524 | E43: 1.772846985 | F43: 1.580780175 | O43: 35 | P43: Corrigator 15 Ft 6 Row | Q43: 0
A44: 21.3 ft | B44: Chisel plow, front dsk (21.3 ft) Fold | C44: 12.04166667 | D44: 0.4939178074 | E44: 2.0951828 | F44: 1.804495476 | O44: 36 | P44: Ditcher 1 Ft | Q44: 0
A45: 6 ft | B45: Moldboard plow 4 bottom-18 (6 ft) | C45: 2.781818182 | D45: 2.417351665 | E45: 3.080279942 | F45: 2.593566376 | O45: 37 | P45: Row Crop Planter 15 Ft 6 Row
A46: 7.5 ft | B46: Moldboard plow 5 bottom-18 (7.5 ft) | C46: 3.477272727 | D46: 2.210150094 | E46: 2.816255947 | F46: 2.393171673 | O46: 38 | P46: Row Crop Planter 20 Ft 8 Row
A47: 9 ft | B47: Moldboard plow 6 bottom-18 (9 ft) | C47: 4.172727273 | D47: 2.479805877 | E47: 2.735874977 | F47: 2.325473568 | O47: 39 | P47: Row Crop Planter 30 Ft 12 Row
A48: 12 ft | B48: Moldboard plow 8 bottom-18 (12 ft) | C48: 5.563636364 | D48: 2.752584523 | E48: 3.036821224 | F48: 2.549918195 | O48: 40 | P48: Row Crop Planter 15 Ft 6 Row
A49: 18 ft | B49: Field cultivator (18 ft) | C49: 12.98181818 | D49: 0.5053503065 | E49: 0.8002434307 | F49: 0.708805127 | O49: 41 | P49: Row Crop Planter 20 Ft 8 Row
A50: 23 ft | B50: Field cultivator (23 ft) | C50: 16.58787879 | D50: 0.6277580783 | E50: 0.9940812774 | F50: 0.8509907003 | O50: 42 | P50: Row Crop Planter 30 Ft 12 Row
A51: 30 ft | B51: Field cultivator (30 ft) | C51: 21.63636364 | D51: 0.611969692 | E51: 0.8330421989 | F51: 0.7756057258 | O51: 43 | P51: Row Crop Planter 40 Ft 16 Row
A52: 35 ft | B52: Field cultivator (35 ft) | C52: 25.24242424 | D52: 0.6022468277 | E52: 0.8198069744 | F52: 0.7559476291 | O52: 44 | P52: Row Crop Planter 40 Ft 16 Row
A53: 47 ft | B53: Field cultivator (47 ft) | C53: 33.8969697 | D53: 0.5806152458 | E53: 0.9194286226 | F53: 0.7897875463 | O53: 45 | P53: Min-Til Planter 15 Ft 6 Row
A54: 60 ft | B54: Field cultivator (60 ft) | C54: 43.27272727 | D54: 0.5125695966 | E54: 0.8116754798 | F54: 0.6923369436 | O54: 46 | P54: Min-Til Planter 20 Ft 8 Row
A55: 11 ft | B55: Tandem disk (11 ft) | C55: 6.4 | D55: 0.2328965715 | E55: 0.4749853064 | F55: 0.4885417128 | O55: 47 | P55: Min-Til Planter 30 Ft 12 Row
A56: 21 ft | B56: Tandem disk (21 ft) | C56: 12.21818182 | D56: 0.8627639509 | E56: 1.759580216 | F56: 1.453136902 | O56: 48 | P56: Min-Til Planter 40 Ft 16 Row
A57: 25 ft | B57: Tandem disk (25 ft) | C57: 14.54545455 | D57: 0.8242997609 | E57: 1.453060948 | F57: 1.284566542 | O57: 49 | P57: Potato Planter 12.64 Ft 4 Row | Q57: 3.83030303 | R57: 2.697120746 | S57: 10.15816134 | T57: 11.05125156
A58: 30 ft | B58: Tandem disk (30 ft) | C58: 17.45454545 | D58: 0.8455086719 | E58: 1.724388611 | F58: 1.400011664 | G58: old, possibly 2009 | O58: 50 | P58: Potato Planter 18.96 Ft 6 Row | Q58: 5.745454545 | R58: 2.697120746 | S58: 10.15816134 | T58: 11.05746765
A59: 25" O.C., 10 ft | B59: V-Ripper 25" O.C., (10 ft) | C59: 6.181818182 | D59: 0.5637691161 | E59: 1.15235054 | F59: 1.049565938 | O59: 51 | P59: Potato Planter 25.3 Ft 8 Row | Q59: 7.666666667 | R59: 2.694988635 | S59: 10.15013117 | T59: 11.06231353
A60: 25" O.C., 18 ft | B60: V-Ripper 25" O.C., (18 ft) | C60: 11.12727273 | D60: 0.5481088629 | E60: 1.120340803 | F60: 1.014794498 | O60: 52 | P60: Beet Planter 22 Ft 12 Row | Q60: 4.666666667 | R60: 2.209164324 | S60: 7.198134688 | T60: 8.009644547
A61: 30" O.C., 17 ft | B61: V-Ripper 30" O.C., (17 ft) | C61: 10.51 | D61: 0.71 | E61: 1.26 | F61: 0.9 | G61: 2020 | O61: 53 | P61: Beet Planter, Vacuum 44 Ft 24 Row | Q61: 22.4 | R61: 0.8974032624 | S61: 5.349964971 | T61: 5.902840703
A62: 30" O.C., 22.5 ft | B62: V-Ripper 30" O.C., (22.5 ft) | C62: 13.90909091 | D62: 0.4802477656 | E62: 0.9816319417 | F62: 0.8769995241 | O62: 54 | P62: Presswheel Drill 16 Ft
A63: 16 ft | B63: Comb fld cult incorp (16 ft) | C63: 11.53939394 | D63: 0.6153082686 | E63: 1.257697159 | F63: 1.099760972 | O63: 55 | P63: Presswheel Drill 20 Ft
A64: 25 ft | B64: Comb fld cult incorp (25 ft) | C64: 18.03030303 | D64: 0.6736006309 | E64: 1.376847416 | F64: 1.20613815 | O64: 56 | P64: Presswheel Drill 25 Ft
A65: 33 ft | B65: Comb fld cult incorp (33 ft) | C65: 23.8 | D65: 0.6748688408 | E65: 1.379439652 | F65: 1.205705242 | O65: 57 | P65: Presswheel Drill 30 Ft
A66: 17.5 ft | B66: Comb disk & v-ripper (17.5 ft) | C66: 9.015151515 | D66: 0.9073740161 | E66: 2.725427104 | F66: 2.230174497 | O66: 58 | P66: Air Seeder Drill w/Cart 52 Ft | Q66: 22.06060606 | R66: 2.755785262 | S66: 5.437739835 | T66: 5.147677226
A67: 22.5 ft | B67: Comb disk & v-ripper (22.5 ft) | C67: 11.59090909 | D67: 1.146819937 | E67: 3.444637034 | F67: 2.748594728 | O67: 59 | P67: No-Till Drill 15 Ft
A68: 22 ft | B68: Disk, fld cult finish (22 ft) | C68: 11.33333333 | D68: 0.7144045988 | E68: 2.07378847 | F68: 1.82047989 | O68: 60 | P68: No-Till Drill 20 Ft
A69: 38 ft | B69: Disk, fld cult finish (38 ft) | C69: 19.57575758 | D69: 0.65400921 | E69: 1.898471484 | F69: 1.644196479 | O69: 61 | P69: No-Till Drill 30 Ft
A70: 12 ft | B70: Roller harrow (12 ft) | C70: 7.418181818 | D70: 0.4058835156 | E70: 1.219128953 | F70: 1.067894318 | O70: 62 | P70: Cultivator 15 Ft 6 Row
A71: 28 ft | B71: Roller harrow (28 ft) | C71: 17.30909091 | D71: 0.4502237316 | E71: 1.306918775 | F71: 1.110523456 | O71: 63 | P71: Cultivator 20 Ft 8 Row
A72: 6 row | B72: Row crop planter (6 row) | C72: 7 | D72: 0.7924620028 | E72: 2.225165504 | F72: 2.347399401 | O72: 64 | P72: Cultivator 30 Ft 12 Row
A73: 8 row | B73: Row crop planter (8 row) | C73: 9.333333333 | D73: 0.9905775035 | E73: 2.78145688 | F73: 2.870473741 | O73: 65 | P73: Cultivator 40 Ft 16 Row
A74: 12 row | B74: Row crop planter (12 row) | C74: 14 | D74: 1.113220432 | E74: 3.125827732 | F74: 3.206915291 | O74: 66 | P74: Cultivator High Residue 15 Ft 6 Row
A75: 16 row | B75: Row crop planter (16 row) | C75: 18.66666667 | D75: 2.32 | E75: 5.46 | F75: 3.73 | G75: 2018 | O75: 67 | P75: Cultivator High Residue 20 Ft 8 Row
A76: (6/11 row 30/15") | B76: Split row no-till planter (6/11 row 30/15") | C76: 7 | D76: 1.395944711 | E76: 3.290575858 | F76: 3.712572201 | O76: 68 | P76: Cultivator High Residue 30 Ft 12 Row
A77: (8/15 row 30/15") | B77: Split row no-till planter (8/15 row 30/15") | C77: 9.333333333 | D77: 1.344068388 | E77: 3.168290944 | F77: 3.560643325 | O77: 69 | P77: Rotary Hoe 21 Ft
A78: (12/23 row 30/15") | B78: Split row no-till planter (12/23 row 30/15") | C78: 14 | D78: 1.898201846 | E78: 4.474516158 | F78: 4.965523665 | O78: 70 | P78: Potato Cultivator 18.96 Ft 6 Row | Q78: 8.043636364 | R78: 0.5906989928 | S78: 0.6795872618 | T78: 0.6233410399
A79: (16/31 row 30/15") | B79: Split row no-till planter (16/31 row 30/15") | C79: 18.66666667 | D79: 1.759668481 | E79: 4.147959854 | F79: 4.576038274 | O79: 71 | P79: Sugar Beet Cult 22 Ft 12 Row | Q79: 5.6 | R79: 0.3836794181 | S79: 2.847058756 | T79: 2.676525341
A80: 6 row | B80: No-till planter (6 row) | C80: 6.363636364 | D80: 1.490406286 | E80: 3.16158932 | F80: 3.255756513 | O80: 72 | P80: Sugar Beet Cult 44 Ft 24 Row | Q80: 11.2 | R80: 0.4476259878 | S80: 3.321568549 | T80: 3.011005756
A81: 8 row | B81: No-till planter (8 row) | C81: 8.484848485 | D81: 1.314473705 | E81: 3.690929704 | F81: 3.774311645 | O81: 73 | P81: Boom Sprayer, Self-Prop 60 Ft
A82: 12 row | B82: No-till planter (12 row) | C82: 12.72727273 | D82: 2.765390763 | E82: 3.671523082 | F82: 3.681270237 | O82: 74 | P82: Boom Sprayer 50 Ft
A83: 16 row | B83: No-till planter (16 row) | C83: 16.96969697 | D83: 3.377263172 | E83: 2.588894481 | F83: 2.619943299 | O83: 75 | P83: Hooded Sprayer 20 Ft 8 Row | Q83: 10.24242424 | R83: 0.3706304383 | S83: 0.5837312775 | T83: 0.5945324147
A84: 16 ft | B84: Presswheel drill (16 ft) | C84: 6.787878788 | D84: 0.797693882 | E84: 2.113488494 | F84: 1.9718256 | O84: 76 | P84: Anhydrous Applicator 21 Ft
A85: 20 ft | B85: Presswheel drill (20 ft) | C85: 8.484848485 | D85: 0.7725035489 | E85: 2.046746752 | F85: 1.912245393 | O85: 77 | P85: Anhydrous App., No-Till 32 Ft | Q85: 17.06666667 | R85: 0.4004471139 | S85: 1.2356235 | T85: 1.119424498
A86: 25 ft | B86: Presswheel drill (25 ft) | C86: 10.60606061 | D86: 0.8866997257 | E86: 2.349309316 | F86: 2.172651855 | O86: 78 | P86: Potato Shredder 18 Ft | Q86: 6.981818182 | R86: 0.8410153972 | S86: 1.311586568 | T86: 1.401057989
A87: 30 ft | B87: Presswheel drill (30 ft) | C87: 12.72727273 | D87: 1.009630065 | E87: 2.335960967 | F87: 2.134414385 | O87: 79 | P87: Stalk Shredder 20 Ft
A88: 15 ft | B88: No-till drill (15 ft) | C88: 6.363636364 | D88: 3.34 | E88: 7.43 | F88: 4.28 | G88: 2021 | O88: 80 | P88: Mower-Conditioner 9 Ft | Q88: 4.363636364 | R88: 0.9054751823 | S88: 3.342896244 | T88: 2.955504246
A89: 20 ft | B89: No-till drill (20 ft) | C89: 8.484848485 | D89: 1.739888423 | E89: 4.025545183 | F89: 3.622440408 | G89: old, possibly 2009 | O89: 81 | P89: Rotary Hay Mower 6 Ft | Q89: 2.909090909 | R89: 0.6804798 | S89: 0.605347647 | T89: 0.6851157064
A90: 30 ft | B90: No-till drill (30 ft) | C90: 12.72727273 | D90: 2.081917771 | E90: 4.816891672 | F90: 4.27611917 | O90: 82 | P90: Ditch Mowing - Rotary Hay Mower Ft | Q90: 0
A91: 6 row | B91: Row cultivator (6 row) | C91: 7.727272727 | D91: 0.1778492458 | E91: 0.4990053506 | F91: 0.4666651058 | O91: 83 | P91: Rotary Mow/Cond 9 Ft | Q91: 6.545454545 | R91: 0.5748106809 | S91: 2.197187756 | T91: 2.226612101
A92: 8 row | B92: Row cultivator (8 row) | C92: 10.3030303 | D92: 0.2032562809 | E92: 0.5702918292 | F92: 0.5273231461 | O92: 84 | P92: Hay Rake (Hyd) 9 Ft | Q92: 3.490909091 | R92: 0.5182788457 | S92: 0.5571493739 | T92: 0.5510692841
A93: 12 row | B93: Row cultivator (12 row) | C93: 15.45454545 | D93: 0.3970161544 | E93: 1.113938856 | F93: 0.9425951122 | O93: 85 | P93: Hay Swather-Cond 12 Ft | Q93: 5.818181818 | R93: 0.8564286099 | S93: 3.34097819 | T93: 2.810198136
A94: 16 row | B94: Row cultivator (16 row) | C94: 20.60606061 | D94: 0.2413668335 | E94: 0.6772215472 | F94: 0.5904057948 | O94: 86 | P94: Hay Swather-Cond 14 Ft | Q94: 6.787878788 | R94: 0.8731367829 | S94: 3.406157752 | T94: 2.861493744
A95: 6 row | B95: Row cultivator- High residue (6 row) | C95: 7.727272727 | D95: 0.4471638179 | E95: 1.254642024 | F95: 1.075346216 | O95: 87 | P95: Swather-Cond, Self-Prop 16 Ft | Q95: 7.757575758 | R95: 0.81657576 | S95: 9.713857294 | T95: 7.739820555
A96: 8 row | B96: Row cultivator- High residue (8 row) | C96: 10.3030303 | D96: 0.4293788933 | E96: 1.204741489 | F96: 1.028679705 | O96: 88 | P96: Grain Swather, Self-Prop 21 Ft | Q96: 10.18181818 | R96: 0.50903424 | S96: 6.05539156 | T96: 4.906017399
A97: 12 row | B97: Row cultivator- High residue (12 row) | C97: 15.45454545 | D97: 0.4403886085 | E97: 1.235632297 | F97: 1.043857013 | O97: 89 | P97: Hay Merger 9 Ft | Q97: 6.109090909 | R97: 0.4796869577 | S97: 5.186330734 | T97: 4.255837127
A98: 21 ft | B98: Rotary hoe (21 ft) | C98: 25.96363636 | D98: 0.1238734316 | E98: 0.307556878 | F98: 0.2642827926 | O98: 90 | P98: Hay Baler PTO Twine 12 Ft | Q98: 4.363636364 | R98: 2.469630029 | S98: 1.419011038 | T98: 1.289867194
A99: 60 ft | B99: Boom sprayer, self propelled (60 ft) | C99: 33.09090909 | D99: 1.473409523 | E99: 2.019783562 | F99: 1.657197589 | O99: 91 | P99: Round Baler 9 Ft 1000 Lb | Q99: 3.013636364 | R99: 3.526988197 | S99: 1.18954962 | T99: 1.075875015
A100: 30 ft | B100: Boom sprayer (30 ft) | C100: 15.36363636 | D100: 0.4070864872 | E100: 0.6411484072 | F100: 0.6175664582 | O100: 92 | P100: Round Baler 12 Ft 1500 Lb | Q100: 4.018181818 | R100: 5.050005828 | S100: 1.703218774 | T100: 1.493228901
A101: 50 ft | B101: Boom sprayer (50 ft) | C101: 25.60606061 | D101: 0.3213283637 | E101: 0.4404842894 | F101: 0.3938725418 | O101: 93 | P101: Rd Baler/Wrap 9 Ft 1000 Lb | Q101: 3.013636364 | R101: 10.2603293 | S101: 3.460507986 | T101: 2.971447185
A102: 90 ft | B102: Boom sprayer (90 ft) | C102: 46.09 | D102: 0.47 | E102: 1.28 | F102: 0.95 | G102: 2018 | O102: 94 | P102: Rd Bale Wrapper Silage Ft | Q102: 0
A103: 21 ft | B103: Anhydrous applicator (21 ft) | C103: 11.2 | D103: 0.255769447 | E103: 0.9180834372 | F103: 0.8228687011 | G103: old, not in Lazarus database | O103: 95 | P103: Bale Wrapper Dry Hay Ft | Q103: 0
A104: 20 ft | B104: Stalk shredder (20 ft) | C104: 7.757575758 | D104: 1.009433823 | E104: 1.853536595 | F104: 1.804690053 | O104: 96 | P104: Large Rectangular Baler 24 Ft
A105: 7 ft swath | B105: Disc mower, 7 ft swath | C105: 4.412121212 | D105: 0.7232822123 | E105: 0.7828387108 | F105: 0.8293014834 | O105: 97 | P105: Forage Harvester (Corn Head) 5 Ft 2 Row
A106: 8 ft swath | B106: Disc mower, 8 ft swath | C106: 5.042424242 | D106: 0.7844975037 | E106: 1.109021507 | F106: 1.154427102 | O106: 98 | P106: Forage Harvester (Pickup Head) 12 Ft | Q106: 3.309090909 | R106: 2.730055772 | S106: 2.752142739 | T106: 2.469995741
A107: 9 ft swath | B107: Disc mower, 9 ft swath | C107: 5.672727273 | D107: 0.8203895464 | E107: 0.9394064529 | F107: 0.9811617801 | O107: 99 | P107: Corn Head for SP Harvstr Base 7.5 Ft 3 Row | Q107: 2.545454545 | R107: 0.3181464 | S107: 1.579231734 | T107: 1.089727515
A108: 10 ft swath | B108: Disc mower, 10 ft swath | C108: 6.303030303 | D108: 1.08537537 | E108: 0.7828387108 | F108: 0.8143014834 | O108: 100 | P108: Corn Head for SP Harvstr Base 15 Ft 6 Row | Q108: 5.090909091 | R108: 0.25451712 | S108: 3.509403854 | T108: 2.012390509
A109: 6 ft | B109: Disk mower-conditioner (6 ft) | C109: 3.781818182 | D109: 0.7159763314 | E109: 1.729220291 | F109: 1.515989476 | O109: 101 | P109: Pickup Head for SP Harvstr Base 12 Ft | Q109: 4.072727273 | R109: 0.0927927 | S109: 2.878807849 | T109: 1.909752538
A110: 9 ft | B110: Disk mower-conditioner (9 ft) | C110: 5.672727273 | D110: 0.5469263642 | E110: 1.572018446 | F110: 1.386126797 | O110: 102 | P110: Pickup Head for SP Harvstr Base (2X Windrows) 24 Ft | Q110: 8.145454545 | R110: 0.0618618 | S110: 1.919205233 | T110: 1.196438448
A111: 8.5 ft | B111: Roller bar rake (basket), 8.5 ft | C111: 5.692424242 | D111: 0.4140332652 | E111: 1.433258067 | F111: 1.147235802 | O111: 103 | P111: Combine Grain Head 20 Ft
A112: 9.5 ft | B112: Roller bar rake (basket), 9.5 ft | C112: 6.362121212 | D112: 0.1090248062 | E112: 0.441002482 | F112: 0.4097757103 | O112: 104 | P112: Combine Grain Head 30 Ft
A113: tandem, 24 ft | B113: Roller bar rake (basket), 24 ft tandem | C113: 16.07272727 | D113: 0.07444543471 | E113: 0.6247535162 | F113: 0.5619311878 | O113: 105 | P113: Combine Soybean Hd 15 Ft
A114: 7 ft swath | B114: Swather mower-conditioner, 7 ft swath | C114: 4.072727273 | D114: 0.5419487413 | E114: 1.441016909 | F114: 1.282282897 | O114: 106 | P114: Combine Soybean Hd 18 Ft
A115: 9 ft swath | B115: Swather mower-conditioner, 9 ft swath | C115: 5.236363636 | D115: 0.5704952491 | E115: 1.362415987 | F115: 1.209794739 | O115: 107 | P115: Combine Soybean Hd 25 Ft
A116: 12 ft swath | B116: Swather mower-conditioner, 12 ft swath | C116: 6.981818182 | D116: 0.5837997359 | E116: 1.344949115 | F116: 1.192130704 | O116: 108 | P116: Combine Corn Hd 15 Ft 6 Row
A117: 20 ft | B117: Hay merger (20 ft both swaths) | C117: 6.109090909 | D117: 0.4478033585 | E117: 4.841608228 | F117: 3.918010841 | O117: 109 | P117: Combine Corn Hd 20 Ft 8 Row
A118: 6 ft pickup | B118: Small square baler | C118: 4.909090909 | D118: 1.055452088 | E118: 1.685808157 | F118: 1.483510097 | O118: 110 | P118: Combine Corn Hd 30 Ft 12 Row
A119: 750 lb | B119: Round baler (tie), 750 lb | C119: 5.236363636 | D119: 0.8921960459 | E119: 2.77644904 | F119: 2.006302414 | O119: 111 | P119: Combine Belt Pickup Hd 14 Ft | Q119: 4.751515152 | R119: 0.4960781485 | S119: 1.692034001 | T119: 0.891337516
A120: 1000 lb | B120: Round baler (tie), 1000 lb | C120: 3.013636364 | D120: 3.491718315 | E120: 1.365820987 | F120: 1.152784835 | O120: 112 | P120: Disk Bean Top Cutter 11 Ft 6 Row | Q120: 6.4 | R120: 0.5792602176 | S120: 1.969791085 | T120: 1.694353206
A121: 1500 lb | B121: Round baler (tie), 1500 lb | C121: 4.018181818 | D121: 4.99950577 | E121: 1.955607322 | F121: 1.603349779 | O121: 113 | P121: Bean Cutter 15 Ft 6 Row | Q121: 8.727272727 | R121: 0.3353611786 | S121: 1.140405365 | T121: 0.9952642466
A122: 2000 lb | B122: Round baler (tie), 2000 lb | C122: 6.545454545 | D122: 1.733153336 | E122: 2.943309524 | F122: 2.097016155 | O122: 114 | P122: Bean Rod 15 Ft 6 Row | Q122: 8.727272727 | R122: 0.1676805893 | S122: 0.5702026825 | T122: 0.5316490504
A123: 1000 Lb | B123: Round baler/wrap 1000 lb | C123: 3.013636364 | D123: 10.15772601 | E123: 3.973297416 | F123: 3.195184842 | O123: 115 | P123: Bean Windrower 15 Ft 6 Row | Q123: 8.727272727 | R123: 0.8384029465 | S123: 2.851013413 | T123: 2.386109835
A124: 1 | B124: Large rectangular baler | C124: 16.29090909 | D124: 0.6590426005 | E124: 3.387500323 | F124: 2.798057167 | O124: 116 | P124: Sugar Beet Lifter 7.33 Ft 4 Row | Q124: 2.02130303 | R124: 19.891081 | S124: 22.64979128 | T124: 18.70963186 | Y124: Replace implement vales use Arial font.
A125: 2 row (5 ft) | B125: Silage chopper, 2 row (5 ft) | C125: 1.378787879 | D125: 6.207284702 | E125: 6.257503491 | F125: 5.629350641 | O125: 117 | P125: Sugar Beet Lifter 11 Ft 6 Row | Q125: 3.033333333 | R125: 17.52885133 | S125: 19.95994205 | T125: 16.51730917
A126: 15 ft | B126: Combine, fixed grain head (15 ft) | C126: 5.94 | D126: 0.378342268 | E126: 1.440904146 | F126: 0.7460674523 | O126: 118 | P126: Sugar Beet Lifter 14.7 Ft 8 Row | Q126: 4.053636364 | R126: 15.27301836 | S126: 17.39124575 | T126: 14.35617104
A127: 20 ft | B127: Combine, fixed grain head (20 ft) | C127: 7.42 | D127: 0.3233694598 | E127: 1.102955497 | F127: 0.5771849764 | O127: 119 | P127: Sugar Beet Lifter 14.7 Ft (Higher Usage) 8 Row | Q127: 4.053636364 | R127: 14.18279687 | S127: 14.55533048 | T127: 5.73375634
A128: 30 ft | B128: Combine, fixed grain head (30 ft) | C128: 8.91 | D128: 0.63 | E128: 1.69 | F128: 0.78 | G128: 2021, used same numbers as flex grain head. Lazarus does not report a fixed grain head | O128: 120 | P128: Sugar Beet Topper 11 Ft 6 Row | Q128: 5.333333333 | R128: 1.387789541 | S128: 3.343461184 | T128: 2.882533423
A129: 15 ft | B129: Combine, flexible grain head (15 ft) | C129: 5.94 | D129: 0.4255598086 | E129: 1.451508533 | F129: 0.7599644323 | O129: 121 | P129: Sugar Beet Topper 14.7 Ft 8 Row | Q129: 7.127272727 | R129: 1.73885353 | S129: 4.189244198 | T129: 3.528920319
A130: 18 ft | B130: Combine, flexible grain head (18 ft) | C130: 6.5 | D130: 0.3756311907 | E130: 1.281210931 | F130: 0.6787156962 | O130: 122 | P130: Sugar Beet Topper 22 Ft 12 Row | Q130: 10.66666667 | R130: 1.387789541 | S130: 3.343461184 | T130: 2.859095923
A131: 20 ft | B131: Combine, flexible grain head (20 ft) | C131: 7.92 | D131: 0.3471602129 | E131: 1.322148309 | F131: 0.6901659523 | O131: 123 | P131: Sugar Beet Wagon 11 Ft 20 Ton | Q131: 5.2 | R131: 2.411526225 | S131: 6.379890154 | T131: 5.42768751
A132: 25 ft | B132: Combine, flexible grain head (25 ft) | C132: 7.42 | D132: 0.58 | E132: 1.57 | F132: 0.71 | G132: 2020 | O132: 124 | P132: Sugar Beet Wagon 11 Ft 24 Ton | Q132: 5.2 | R132: 2.700909372 | S132: 7.145476972 | T132: 6.050163858
A133: 30 ft | B133: Combine, flexible grain head (30 ft) | C133: 8.91 | D133: 0.63 | E133: 1.69 | F133: 0.78 | G133: 2021 | O133: 125 | P133: Manure Spreader Ft 300 Bu | Q133: 0
A134: 6 row | B134: Combine, corn head (6 row) | C134: 6.681818182 | D134: 0.690002048 | E134: 2.627850218 | F134: 1.356409524 | O134: 126 | P134: Liquid Manure Spreader Ft 9500 Gal | Q134: 0
A135: 8 row | B135: Combine, corn head (8 row) | C135: 6.79 | D135: 1.12 | E135: 3.07 | F135: 1.34 | G135: 2018 | O135: 127 | P135: Grain Cart Ft 500 Bu | Q135: 0
A136: 12 row | B136: Combine, corn head (12 row) | C136: 10.18 | D136: 0.6821611156 | E136: 2.597988284 | F136: 1.326539997 | O136: 128 | P136: Grain Cart Ft 1000 Bu | Q136: 0
A137: 8 wheel, 17.5 ft | B137: Wheel rake, 8 wheel | C137: 19.83333333 | D137: 0.0434875502 | E137: 0.5188345956 | F137: 0.507236256 | O137: 129 | P137: Gravity Grain Box Ft 240 Bu | Q137: 0
A138: 10 wheel, 20 ft | B138: Wheel rake, 10 wheel | C138: 22.66666667 | D138: 0.0463537751 | E138: 0.5530305121 | F138: 0.5324458113 | O138: 130 | P138: Grain Auger, 70 Ft, Ft 10 Inch | Q138: 0
A139: 12 wheel, 25 ft | B139: Wheel rake, 12 wheel | C139: 28.33333333 | D139: 0.0431712771 | E139: 0.5150612531 | F139: 0.4916756073 | O139: 131 | P139: Loader Ft | Q139: 0
A140: 16 wheel, 31 ft | B140: Wheel rake, 16 wheel | C140: 35.13333333 | D140: 0.04463531545 | E140: 0.5325281773 | F140: 0.4953951566 | O140: 132 | P140: Boom Sprayer 30 Ft | Q140: 15.36363636 | R140: 0.4192990818 | S140: 0.6603828594 | T140: 0.6341407893
A141: 20 wheel, 36 ft | B141: Wheel rake, 20 wheel | C141: 37.09090909 | D141: 0.0549634315 | E141: 0.6527346094 | F141: 0.5956988696 | O141: 133 | P141: Field Cultivator 30 Ft | Q141: 21.63636364 | R141: 0.6303287827 | S141: 0.8580334648 | T141: 0.7971407043
A142: 1 | B142: Hay tedder | C142: 9.633333333 | D142: 0.04069690526 | E142: 0.4855403969 | F142: 0.5100748227 | O142: 134 | P142: Field Cultivator 35 Ft | Q142: 25.24242424 | R142: 0.6203142326 | S142: 0.8444011837 | T142: 0.7771404638
A143: 3 ton | B143: Bale wagon/stacker (pull-type), 3 ton | C143: 7.757575758 | D143: 0.7450651456 | E143: 3.266304994 | F143: 2.897174567 | O143: 135 | P143: Tandem Disk 25 Ft | Q143: 14.54545455 | R143: 0.8490287537 | S143: 1.496652777 | T143: 1.320009789
A144: 15 ft | B144: Rotary mower (15 ft) | C144: 7.69 | D144: 0.4 | E144: 1 | F144: 1.9 | O144: 136 | P144: Combine, Fixed grain head 15 Ft
A145: 4 T (40 ft) | B145: Fertilizer spreader 4 T (40 ft) | C145: 23.76 | D145: 0.23 | E145: 0.77 | F145: 0.71 | O145: 137 | P145: Combine, Flexible grain head 20 Ft
O146: 138 | P146: Combine, Flexible grain head 30 Ft
O147: 139 | P147: Field roller 8 Ft | Q147: 4.654545455 | R147: 0.07232019054 | S147: 0.4707291434 | T147: 0.6477642475
B148: Unupdated costs | O148: 140 | P148: Field roller 10 Ft | Q148: 5.818181818 | R148: 0.06364176767 | S148: 0.4142416462 | T148: 0.5829231628
O149: 141 | P149: Field roller 12 Ft | Q149: 6.981818182 | R149: 0.05785615243 | S149: 0.3765833147 | T149: 0.539695773
O150: 142 | P150: Hay tedder 8.5 Ft 2 rotor | Q150: 9.633333333 | R150: 0.0369971866 | S150: 0.4414003609 | T150: 0.4755005466
O151: 143 | P151: Hay tedder 16.5 Ft 4 rotor | Q151: 18.7 | R151: 0.02668281943 | S151: 0.3183432906 | T151: 0.3295677739
B152: Grain hauling | C152: 2.6 | D152: $ per loaded mile | O152: 144 | P152: Hay tedder 23 Ft 6 rotor | Q152: 23.6969697 | R152: 0.03008032128 | S152: 0.3588776847 | T152: 0.354953002
B153: Irrigation repairs | C153: 5.6 | D153: $ per acre-inch applied | O153: 145 | P153: Wheel rake, V hitch 17.5 Ft 8 wheel
B154: Irrigation overhead | C154: 22 | D154: $ per acre land irrigated | O154: 146 | P154: Wheel rake, V hitch 20 Ft 10 wheel
B155: Irrigation depreciation | C155: 22 | D155: $ per acre land irrigated | O155: 147 | P155: Wheel rake, V hitch 25 Ft 12 wheel
O156: 148 | P156: Wheel rake, V hitch 31 Ft 16 wheel
F157: 1 | G157: Irrigated | H157: 1 | I157: Corn, grain | J157: Corn | K157: 1 | L157: Bushel | M157: bushel | O157: 149 | P157: Wheel rake, V hitch 36 Ft 20 wheel
B158: Crop Number | C158: 4 | D158: 4 | F158: 2 | G158: Dryland | H158: 2 | I158: Corn, silage | J158: Silage | K158: 2 | L158: Ton | M158: ton | O158: 150 | P158: Roller bar rake (basket) 8.5 Ft | Q158: 5.692424242 | R158: 0.08765487288 | S158: 1.040971563 | T158: 1.040611914
B159: Primary crop yields | C159: 1 | H159: 3 | I159: Grain sorghum | J159: Milo | K159: 3 | L159: Cwt | M159: cwt | O159: 151 | P159: Roller bar rake (basket) 9.5 Ft | Q159: 6.362121212 | R159: 0.1008360568 | S159: 1.197508641 | T159: 1.180254164
B160: By-product units | C160: 1 | F160: 1 | G160: Owned land | H160: 4 | I160: Soybeans | J160: Beans | K160: 4 | L160: Bale | M160: bale | O160: 152 | P160: Roller bar rake (basket) 24 Ft tandem | Q160: 16.07272727 | R160: 0.07539362578 | S160: 0.8953594697 | T160: 0.9006052351
B161: Irrigation | C161: 2 | F161: 2 | G161: Cash rent | H161: 5 | I161: Soybeans, double crop | J161: Beans, DC | O161: 153 | P161: Row Crop Planter 60 Ft 24 row | Q161: 28 | R161: 1.533888572 | S161: 3.61574256 | T161: 3.990869161
B162: Lease arrangement | C162: 1 | F162: 3 | G162: Share lease | H162: 6 | I162: Wheat | J162: Wheat
H163: 7 | I163: Wheat & straw | J163: Straw
B164: Crop | C164: =VLOOKUP(cropnum,H157:J163,3) -> Beans
B166: Drying costs (Assumes combo drying with heat and air)
B167: Propane required, gallons | C167: 0.018 | D167: per pt per bu
B168: Propane price, $ per gallon | C168: =Input!F106 -> 0 | D168: per gallon
B169: Electricity required, KWH | C169: 0.01 | D169: per pt per bu
B170: Electricity price, $ per KWH | C170: 0.08 | D170: per KWH
B171: Costs per pt removed | C171: =(C167*C168)+(C169*C170) -> 0.0008 | D171: per bushel
B172: Costs for current budget | C172: =Input!B106*MDB!C171 -> 0 | D172: per bushel

Sheet Store (hidden)
B2: Export | E2: Imported Data | H2: Lookup Data
B3: cropnum-22706 | C3: =cropnum -> 4 | E3: cropnum-22706 | F3: 4 | H3: =B3 -> cropnum-22706 | I3: =IF(COUNTIF(import,"="&H3)<>0,IF(VLOOKUP(H3,import,2,FALSE)<>0,VLOOKUP(H3,import,2,FALSE),""),"") -> 4
B4: primyieldtype-22706 | C4: =primyield -> 1 | E4: primyieldtype-22706 | F4: 1 | H4: =B4 -> primyieldtype-22706 | I4: 1
B5: byyieldtype-22706 | C5: =byyield -> 1 | E5: byyieldtype-22706 | F5: 1 | H5: byyieldtype-22706 | I5: 1
B6: irrigation2-22706 | C6: =irrigation2 -> 2 | E6: irrigation2-22706 | F6: 2 | H6: irrigation2-22706 | I6: 2
B7: leasenum-22706 | C7: =leasenum -> 1 | E7: leasenum-22706 | F7: 1 | H7: leasenum-22706 | I7: 1
A8: 1 | B8: 40hp-22706 | C8: =MDB!A4 -> 0 | E8: 40hp-22706 | F8: 0 | H8: 40hp-22706
B9: 60hp-22706 | C9: =MDB!A5 -> 0 | E9: 60hp-22706 | F9: 0 | H9: 60hp-22706
B10: 75hp-22706 | C10: =MDB!A6 -> 0 | E10: 75hp-22706 | F10: 0 | H10: 75hp-22706
B11: 105twd-22706 | C11: =MDB!A7 -> 0 | E11: 105twd-22706 | F11: 0 | H11: 105twd-22706
B12: 140twd-22706 | C12: =MDB!A8 -> 0 | E12: 140twd-22706 | F12: 0 | H12: 140twd-22706
B13: 105mfwd-22706 | C13: =MDB!A9 -> 0 | E13: 105mfwd-22706 | F13: 0 | H13: 105mfwd-22706
B14: 130mfwd-22706 | C14: =MDB!A10 -> TRUE | E14: 130mfwd-22706 | F14: TRUE | H14: 130mfwd-22706 | I14: TRUE
B15: 160mfwd-22706 | C15: =MDB!A11 -> FALSE | E15: 160mfwd-22706 | F15: FALSE | H15: 160mfwd-22706 | I15: FALSE
B16: 200mfwd-22706 | C16: =MDB!A12 -> FALSE | E16: 200mfwd-22706 | F16: FALSE | H16: 200mfwd-22706 | I16: FALSE
B17: 225mfwd-22706 | C17: =MDB!A13 -> TRUE | E17: 225mfwd-22706 | F17: TRUE | H17: 225mfwd-22706 | I17: TRUE
B18: 2604wd-22706 | C18: =MDB!A14 -> FALSE | E18: 2604wd-22706 | F18: FALSE | H18: 2604wd-22706 | I18: FALSE
B19: 3104wd-22706 | C19: =MDB!A15 -> FALSE | E19: 3104wd-22706 | F19: FALSE | H19: 3104wd-22706 | I19: FALSE
B20: 360 4wd-22706 | C20: =MDB!A16 -> TRUE | E20: 360 4wd-22706 | F20: TRUE | H20: 360 4wd-22706 | I20: TRUE
B21: 4254wd-22706 | C21: =MDB!A17 -> 0 | E21: 4254wd-22706 | F21: 0 | H21: 4254wd-22706
B22: 225tt-22706 | C22: =MDB!A18 -> 0 | E22: 225tt-22706 | F22: 0 | H22: 225tt-22706
B23: 425tt-22706 | C23: =MDB!A19 -> 0 | E23: 425tt-22706 | F23: 0 | H23: 425tt-22706
A24: 1 | B24: description-1-22706 | C24: =Input!$B$10 -> 2022 Soybeans | E24: description-1-22706 | F24: 2022 Soybeans | H24: description-1-22706 | I24: 2022 Soybeans
B25: acres-1-22706 | C25: =Input!$B$12 -> 1000 | E25: acres-1-22706 | F25: 1000 | H25: acres-1-22706 | I25: 1000
B26: receipts-1-22706 | C26: =Input!$B$13 -> 55 | E26: receipts-1-22706 | F26: 55 | H26: receipts-1-22706 | I26: 55
B27: receipts-2-22706 | C27: =Input!$B$14 -> 12.05 | E27: receipts-2-22706 | F27: 12.05 | H27: receipts-2-22706 | I27: 12.05
B28: receipts-3-22706 | C28: =Input!$B$15 -> 0 | E28: receipts-3-22706 | F28: 0 | H28: receipts-3-22706
B29: receipts-4-22706 | C29: =Input!$B$16 -> 0 | E29: receipts-4-22706 | F29: 0 | H29: receipts-4-22706
B30: receipts-5-22706 | C30: =Input!$B$17 -> 0 | E30: receipts-5-22706 | F30: 0 | H30: receipts-5-22706
B31: receipts-6-22706 | C31: =Input!$B$18 -> 0 | E31: receipts-6-22706 | F31: 0 | H31: receipts-6-22706
B32: seed1-1-22706 | C32: =Input!$F$22 -> 0 | E32: seed1-1-22706 | F32: 0 | H32: seed1-1-22706
B33: seed1-2-22706 | C33: =Input!$F$23 -> 58 | E33: seed1-2-22706 | F33: 58 | H33: seed1-2-22706 | I33: 58
B34: seed1-3-22706 | C34: =Input!$F$24 -> 0 | E34: seed1-3-22706 | F34: 0 | H34: seed1-3-22706
B35: seed1-4-22706 | C35: =Input!$F$25 -> 0 | E35: seed1-4-22706 | F35: 0 | H35: seed1-4-22706 | I35: =IF(COUNTIF(import,"="&H35)<>0,IF(VLOOKUP(H35,import,2,FALSE)<>0,VLOOKUP(H35,import,2,FALSE),""),"") -> 
B36: seed1-5-22706 | C36: =Input!$F$26 -> 0 | E36: seed1-5-22706 | F36: 0 | H36: seed1-5-22706
B37: seed1-6-22706 | C37: =Input!$F$27 -> 0 | E37: seed1-6-22706 | F37: 0 | H37: seed1-6-22706
B38: seed2-1-22706 | C38: =Input!$B$22 -> 0 | E38: seed2-1-22706 | F38: 0 | H38: seed2-1-22706
B39: seed2-2-22706 | C39: =Input!$B$23 -> 170000 | E39: seed2-2-22706 | F39: 170000 | H39: seed2-2-22706 | I39: 170000
B40: seed2-3-22706 | C40: =Input!$B$24 -> 0 | E40: seed2-3-22706 | F40: 0 | H40: seed2-3-22706
B41: seed2-4-22706 | C41: =Input!$B$25 -> 0 | E41: seed2-4-22706 | F41: 0 | H41: seed2-4-22706
B42: seed2-5-22706 | C42: =Input!$B$27 -> 0 | E42: seed2-5-22706 | F42: 0 | H42: seed2-5-22706
B43: seed2-6-22706 | C43: =Input!$B$28 -> 0 | E43: seed2-6-22706 | F43: 0 | G43: 20% non Bt | H43: seed2-6-22706
B44: fertilizer1-1-22706 | C44: =Input!$B$32 -> 0 | E44: fertilizer1-1-22706 | F44: 0 | H44: fertilizer1-1-22706
B45: fertilizer1-2-22706 | C45: =Input!$B$33 -> 0 | E45: fertilizer1-2-22706 | F45: 0 | H45: fertilizer1-2-22706
B46: fertilizer1-3-22706 | C46: =Input!$B$34 -> 0 | E46: fertilizer1-3-22706 | F46: 0 | H46: fertilizer1-3-22706
B47: fertilizer1-4-22706 | C47: =Input!$B$35 -> 46 | E47: fertilizer1-4-22706 | F47: 46 | H47: fertilizer1-4-22706 | I47: 46
B48: fertilizer1-5-22706 | C48: =Input!$B$36 -> 80 | E48: fertilizer1-5-22706 | F48: 80 | H48: fertilizer1-5-22706 | I48: 80
B49: fertilizer1-6-22706 | C49: =Input!$B$37 -> 0.5 | E49: fertilizer1-6-22706 | F49: 0.5 | H49: fertilizer1-6-22706 | I49: 0.5
B50: fertilizer1-7-22706 | C50: =Input!$B$38 -> 0 | E50: fertilizer1-7-22706 | F50: 0 | H50: fertilizer1-7-22706
B51: fertilizer1-8-22706 | C51: =Input!$B$39 -> 0 | E51: fertilizer1-8-22706 | F51: 0 | H51: fertilizer1-8-22706
B52: fertilizer2-1-22706 | C52: =Input!$F$32 -> 0 | E52: fertilizer2-1-22706 | F52: 0 | H52: fertilizer2-1-22706
B53: fertilizer2-2-22706 | C53: =Input!$F$33 -> 0 | E53: fertilizer2-2-22706 | F53: 0 | H53: fertilizer2-2-22706
B54: fertilizer2-3-22706 | C54: =Input!$F$34 -> 0 | E54: fertilizer2-3-22706 | F54: 0 | H54: fertilizer2-3-22706
B55: fertilizer2-4-22706 | C55: =Input!$F$35 -> 0.65 | E55: fertilizer2-4-22706 | F55: 0.65 | H55: fertilizer2-4-22706 | I55: 0.65
B56: fertilizer2-5-22706 | C56: =Input!$F$36 -> 0.58 | E56: fertilizer2-5-22706 | F56: 0.58 | H56: fertilizer2-5-22706 | I56: 0.58
B57: fertilizer2-6-22706 | C57: =Input!$F$37 -> 25 | E57: fertilizer2-6-22706 | F57: 25 | H57: fertilizer2-6-22706 | I57: 25
B58: fertilizer2-7-22706 | C58: =Input!$F$38 -> 0 | E58: fertilizer2-7-22706 | F58: 0 | H58: fertilizer2-7-22706
B59: fertilizer2-8-22706 | C59: =Input!$F$39 -> 0 | E59: fertilizer2-8-22706 | F59: 0 | H59: fertilizer2-8-22706
B60: herbicide1-1-22706 | C60: =Input!$B$43 -> 0 | E60: herbicide1-1-22706 | F60: 0 | H60: herbicide1-1-22706
B61: herbicide1-2-22706 | C61: =Input!$B$44 -> 0 | E61: herbicide1-2-22706 | F61: 0 | H61: herbicide1-2-22706
B62: herbicide1-3-22706 | C62: =Input!$B$45 -> 0 | E62: herbicide1-3-22706 | F62: 0 | H62: herbicide1-3-22706
B63: herbicide1-4-22706 | C63: =Input!$B$46 -> 0 | E63: herbicide1-4-22706 | F63: 0 | H63: herbicide1-4-22706
B64: herbicide1-5-22706 | C64: =Input!$B$47 -> 2 | E64: herbicide1-5-22706 | F64: 2 | H64: herbicide1-5-22706 | I64: 2
B65: herbicide1-6-22706 | C65: =Input!$B$48 -> 0 | E65: herbicide1-6-22706 | F65: 0 | H65: herbicide1-6-22706
B66: herbicide1-7-22706 | C66: =Input!$B$49 -> 0 | E66: herbicide1-7-22706 | F66: 0 | H66: herbicide1-7-22706
B67: herbicide1-8-22706 | C67: =Input!$B$50 -> 0 | E67: herbicide1-8-22706 | F67: 0 | H67: herbicide1-8-22706 | I67: =IF(COUNTIF(import,"="&H67)<>0,IF(VLOOKUP(H67,import,2,FALSE)<>0,VLOOKUP(H67,import,2,FALSE),""),"") -> 
B68: herbicide2-1-22706 | C68: =Input!$F$43 -> 0 | E68: herbicide2-1-22706 | F68: 0 | H68: =B68 -> herbicide2-1-22706
B69: herbicide2-2-22706 | C69: =Input!$F$44 -> 0 | E69: herbicide2-2-22706 | F69: 0 | H69: herbicide2-2-22706
B70: herbicide2-3-22706 | C70: =Input!$F$45 -> 0 | E70: herbicide2-3-22706 | F70: 0 | H70: herbicide2-3-22706
B71: herbicide2-4-22706 | C71: =Input!$F$46 -> 0 | E71: herbicide2-4-22706 | F71: 0 | H71: herbicide2-4-22706
B72: herbicide2-5-22706 | C72: =Input!$F$47 -> 27.5 | E72: herbicide2-5-22706 | F72: 27.5 | H72: herbicide2-5-22706 | I72: 27.5
B73: herbicide2-6-22706 | C73: =Input!$F$48 -> 0 | E73: herbicide2-6-22706 | F73: 0 | H73: herbicide2-6-22706
B74: herbicide2-7-22706 | C74: =Input!$F$49 -> 0 | E74: herbicide2-7-22706 | F74: 0 | H74: herbicide2-7-22706
B75: herbicide2-8-22706 | C75: =Input!$F$50 -> 0 | E75: herbicide2-8-22706 | F75: 0 | H75: herbicide2-8-22706
B76: herbicide2-9-22706 | C76: =Input!$B$51 -> 0 | E76: herbicide2-9-22706 | F76: 0 | H76: herbicide2-9-22706
B77: insecticide1-1-22706 | C77: =Input!$B$55 -> 0 | E77: insecticide1-1-22706 | F77: 0 | H77: insecticide1-1-22706
B78: insecticide1-2-22706 | C78: =Input!$B$56 -> 0 | E78: insecticide1-2-22706 | F78: 0 | H78: insecticide1-2-22706
B79: insecticide1-3-22706 | C79: =Input!$B$57 -> 0 | E79: insecticide1-3-22706 | F79: 0 | H79: insecticide1-3-22706
B80: insecticide1-4-22706 | C80: =Input!$B$58 -> 0 | E80: insecticide1-4-22706 | F80: 0 | H80: insecticide1-4-22706
B81: insecticide2-1-22706 | C81: =Input!$F$55 -> 0 | E81: insecticide2-1-22706 | F81: 0 | H81: insecticide2-1-22706
B82: insecticide2-2-22706 | C82: =Input!$F$56 -> 0 | E82: insecticide2-2-22706 | F82: 0 | H82: insecticide2-2-22706
B83: insecticide2-3-22706 | C83: =Input!$F$57 -> 0 | E83: insecticide2-3-22706 | F83: 0 | H83: insecticide2-3-22706
B84: insecticide2-4-22706 | C84: =Input!$F$58 -> 0 | E84: insecticide2-4-22706 | F84: 0 | H84: insecticide2-4-22706
B85: insecticide2-5-22706 | C85: =Input!$B$59 -> 0 | E85: insecticide2-5-22706 | F85: 0 | H85: insecticide2-5-22706
B86: labor-1-22706 | C86: =Input!$B$63 -> 0.5 | E86: labor-1-22706 | F86: 0.5 | H86: labor-1-22706 | I86: 0.5
B87: labor-2-22706 | C87: =Input!$B$64 -> 17.5 | E87: labor-2-22706 | F87: 17.5 | H87: labor-2-22706 | I87: 17.5
B88: labor-3-22706 | C88: =Input!$B$65 -> 23 | E88: labor-3-22706 | F88: 23 | H88: labor-3-22706 | I88: 23
B89: irrigation1-1-22706 | C89: =Input!$B$69 -> 0 | E89: irrigation1-1-22706 | F89: 0 | H89: irrigation1-1-22706
B90: irrigation1-2-22706 | C90: =Input!$B$70 -> 0 | E90: irrigation1-2-22706 | F90: 0 | H90: irrigation1-2-22706
B91: irrigation1-3-22706 | C91: =Input!$B$71 -> 0 | E91: irrigation1-3-22706 | F91: 0 | H91: irrigation1-3-22706
B92: land-1-22706 | C92: =Input!$B$75 -> 4800 | E92: land-1-22706 | F92: 4800 | H92: land-1-22706 | I92: 4800
B93: land-2-22706 | C93: =Input!$B$76 -> 3.5 | E93: land-2-22706 | F93: 3.5 | H93: land-2-22706 | I93: 3.5
B94: land-3-22706 | C94: =Input!$B$77 -> 0 | E94: land-3-22706 | F94: 0 | H94: land-3-22706
B95: land-3-9106 | C95: =Input!B78 -> 0 | E95: land-3-9106 | F95: 0 | H95: land-3-9106
B96: land-4-22706 | C96: =Input!B79 -> 0 | E96: land-4-22706 | F96: 0 | H96: land-4-22706
B97: otheritems1-1-22706 | C97: =Input!$B$83 -> 4.9 | E97: otheritems1-1-22706 | F97: 4.9 | H97: otheritems1-1-22706 | I97: 4.9
B98: otheritems1-2-22706 | C98: =Input!$B$84 -> 2.91 | E98: otheritems1-2-22706 | F98: 2.91 | H98: otheritems1-2-22706 | I98: 2.91
B99: otheritems1-3-22706 | C99: =Input!$B$85 -> 3.08 | E99: otheritems1-3-22706 | F99: 3.08 | H99: otheritems1-3-22706 | I99: 3.08
B100: otheritems1-4-22706 | C100: =Input!$B$86 -> 3.5 | E100: otheritems1-4-22706 | F100: 3.5 | H100: otheritems1-4-22706 | I100: =IF(COUNTIF(import,"="&H100)<>0,IF(VLOOKUP(H100,import,2,FALSE)<>0,VLOOKUP(H100,import,2,FALSE),""),"") -> 3.5
B101: otheritems1-5-22706 | C101: =Input!$B$87 -> 0 | E101: otheritems1-5-22706 | F101: 0 | H101: otheritems1-5-22706
B102: otheritems1-6-22706 | C102: =Input!$B$88 -> 17 | E102: otheritems1-6-22706 | F102: 17 | H102: otheritems1-6-22706 | I102: 17
B103: otheritems1-7-22706 | C103: =Input!$B$89 -> 0 | E103: otheritems1-7-22706 | F103: 0 | H103: otheritems1-7-22706
B104: postharvest-1-22706 | C104: =Input!$B$104 -> 0 | E104: postharvest-1-22706 | F104: 0 | H104: postharvest-1-22706
B105: postharvest-2-22706 | C105: =Input!$B$105 -> 0 | E105: postharvest-2-22706 | F105: 0 | H105: postharvest-2-22706
B106: postharvest-3-22706 | C106: =Input!$B$106 -> 0 | E106: postharvest-3-22706 | F106: 0 | H106: postharvest-3-22706
B107: postharvest-4-22706 | C107: =Input!$B$107 -> 0 | E107: postharvest-4-22706 | F107: 0 | H107: postharvest-4-22706
B108: postharvest-5-22706 | C108: =Input!$B$108 -> 15 | E108: postharvest-5-22706 | F108: 15 | H108: postharvest-5-22706 | I108: 15
B109: postharvest-6-22706 | C109: =Input!$B$109 -> 20 | E109: postharvest-6-22706 | F109: 20 | H109: postharvest-6-22706 | I109: 20
B110: postharvest-7-22706 | C110: =Input!$F$105 -> 0 | E110: postharvest-7-22706 | F110: 0 | H110: postharvest-7-22706
B111: postharvest-8-22706 | C111: =Input!$F$106 -> 0 | E111: postharvest-8-22706 | F111: 0 | H111: postharvest-8-22706
B112: postharvest-9-22706 | C112: =Input!$F$108 -> 12500 | E112: postharvest-9-22706 | F112: 12500 | H112: postharvest-9-22706 | I112: 12500
B113: postharvest-10-22706 | C113: =Input!$F$109 -> 12500 | E113: postharvest-10-22706 | F113: 12500 | H113: postharvest-10-22706 | I113: 12500
B114: overhead-1-22706 | C114: =Input!$B$92 -> 0 | E114: overhead-1-22706 | F114: 0 | H114: overhead-1-22706
B115: overhead-2-22706 | C115: =Input!$B$93 -> 0 | E115: overhead-2-22706 | F115: 0 | H115: overhead-2-22706
B116: overhead-3-22706 | C116: =Input!$B$94 -> 10000 | E116: overhead-3-22706 | F116: 10000 | H116: overhead-3-22706 | I116: 10000
B117: overhead-4-22706 | C117: =Input!$B$95 -> 40 | E117: overhead-4-22706 | F117: 40 | H117: overhead-4-22706 | I117: 40
B118: overhead-5-22706 | C118: =Input!$B$99 -> 15000 | E118: overhead-5-22706 | F118: 15000 | H118: overhead-5-22706 | I118: 15000
B119: overhead-6-22706 | C119: =Input!$B$100 -> 40 | E119: overhead-6-22706 | F119: 40 | H119: overhead-6-22706 | I119: 40
B120: landlord_share-1-22706 | C120: =Input!$B$130 -> 0 | E120: landlord_share-1-22706 | F120: 0 | H120: landlord_share-1-22706
B121: landlord_share-2-22706 | C121: =Input!$B$131 -> 0 | E121: landlord_share-2-22706 | F121: 0 | H121: landlord_share-2-22706
B122: landlord_share-3-22706 | C122: =Input!$B$132 -> 0 | E122: landlord_share-3-22706 | F122: 0 | H122: landlord_share-3-22706
B123: landlord_share-4-22706 | C123: =Input!$B$133 -> 0 | E123: landlord_share-4-22706 | F123: 0 | H123: landlord_share-4-22706
B124: landlord_share-5-22706 | C124: =Input!$B$134 -> 0 | E124: landlord_share-5-22706 | F124: 0 | H124: landlord_share-5-22706
B125: landlord_share-6-22706 | C125: =Input!$B$135 -> 0 | E125: landlord_share-6-22706 | F125: 0 | H125: landlord_share-6-22706
B126: landlord_share-7-22706 | C126: =Input!$B$136 -> 0 | E126: landlord_share-7-22706 | F126: 0 | H126: landlord_share-7-22706
B127: landlord_share-8-22706 | C127: =Input!$B$137 -> 0 | E127: landlord_share-8-22706 | F127: 0 | H127: landlord_share-8-22706
B128: landlord_share-9-22706 | C128: =Input!$B$138 -> 0 | E128: landlord_share-9-22706 | F128: 0 | H128: landlord_share-9-22706
B129: landlord_share-10-22706 | C129: =Input!$B$139 -> 0 | E129: landlord_share-10-22706 | F129: 0 | H129: landlord_share-10-22706
B130: landlord_share-11-22706 | C130: =Input!$B$140 -> 0 | E130: landlord_share-11-22706 | F130: 0 | H130: landlord_share-11-22706
B131: customhire1-1-22706 | C131: =Input!$B$114 -> 6 | E131: customhire1-1-22706 | F131: 6 | H131: customhire1-1-22706 | I131: 6
B132: customhire1-2-22706 | C132: =Input!$B$115 -> 0 | E132: customhire1-2-22706 | F132: 0 | H132: customhire1-2-22706 | I132: =IF(COUNTIF(import,"="&H132)<>0,IF(VLOOKUP(H132,import,2,FALSE)<>0,VLOOKUP(H132,import,2,FALSE),""),"") -> 
B133: customhire1-3-22706 | C133: =Input!$B$116 -> 0 | E133: customhire1-3-22706 | F133: 0 | H133: =B133 -> customhire1-3-22706
B134: customhire1-4-22706 | C134: =Input!$B$117 -> 0 | E134: customhire1-4-22706 | F134: 0 | H134: customhire1-4-22706
B135: customhire1-5-22706 | C135: =Input!$B$118 -> 0 | E135: customhire1-5-22706 | F135: 0 | H135: customhire1-5-22706
B136: customhire1-6-22706 | C136: =Input!$B$119 -> 0 | E136: customhire1-6-22706 | F136: 0 | H136: customhire1-6-22706
B137: customhire1-7-22706 | C137: =Input!$B$120 -> 0 | E137: customhire1-7-22706 | F137: 0 | H137: customhire1-7-22706
B138: customhire1-8-22706 | C138: =Input!$B$121 -> 0 | E138: customhire1-8-22706 | F138: 0 | H138: customhire1-8-22706
B139: customhire1-9-22706 | C139: =Input!$B$122 -> 0 | E139: customhire1-9-22706 | F139: 0 | H139: customhire1-9-22706
B140: customhire1-10-22706 | C140: =Input!$B$123 -> 0 | E140: customhire1-10-22706 | F140: 0 | H140: customhire1-10-22706
B141: customhire1-11-22706 | C141: =Input!$B$124 -> 0 | E141: customhire1-11-22706 | F141: 0 | H141: customhire1-11-22706
B142: customhire1-12-22706 | C142: =Input!$B$125 -> 0 | E142: customhire1-12-22706 | F142: 0 | H142: customhire1-12-22706
B143: customhire1-13-22706 | C143: =Input!$B$126 -> 0 | E143: customhire1-13-22706 | F143: 0 | H143: customhire1-13-22706
B144: customhire2-1-22706 | C144: =Input!$F$114 -> 1 | E144: customhire2-1-22706 | F144: 1 | H144: customhire2-1-22706 | I144: 1
B145: customhire2-2-22706 | C145: =Input!$F$115 -> 0 | E145: customhire2-2-22706 | F145: 0 | H145: customhire2-2-22706
B146: customhire2-3-22706 | C146: =Input!$F$116 -> 0 | E146: customhire2-3-22706 | F146: 0 | H146: customhire2-3-22706
B147: customhire2-4-22706 | C147: =Input!$F$117 -> 0 | E147: customhire2-4-22706 | F147: 0 | H147: customhire2-4-22706
B148: customhire2-5-22706 | C148: =Input!$F$123 -> 0 | E148: customhire2-5-22706 | F148: 0 | H148: customhire2-5-22706
B149: customhire2-6-22706 | C149: =Input!$F$124 -> 0 | E149: customhire2-6-22706 | F149: 0 | H149: customhire2-6-22706
B150: customhire2-7-22706 | C150: =Input!$F$125 -> 0 | E150: customhire2-7-22706 | F150: 0 | H150: customhire2-7-22706
B151: customhire2-8-22706 | C151: =Input!$F$126 -> 0 | E151: customhire2-8-22706 | F151: 0 | H151: customhire2-8-22706
B152: size-1-3806 | C152: =Input!B149 -> 15 ft | E152: size-1-3806 | F152: 15 ft | H152: size-1-3806 | I152: 15 ft
B153: size-2-3806 | C153: =Input!B150 -> 16.3 ft | E153: size-2-3806 | F153: 16.3 ft | H153: =B153 -> size-2-3806 | I153: 16.3 ft
B154: size-3-3806 | C154: =Input!B151 -> 6 ft | E154: size-3-3806 | F154: 6 ft | H154: size-3-3806 | I154: 6 ft
B155: size-4-3806 | C155: =Input!B152 -> 35 ft | E155: size-4-3806 | F155: 35 ft | H155: size-4-3806 | I155: 35 ft
B156: size-5-3806 | C156: =Input!B153 -> 30 ft | E156: size-5-3806 | F156: 30 ft | H156: size-5-3806 | I156: 30 ft
B157: size-6-3806 | C157: =Input!B154 -> 30" O.C., 17 ft | E157: size-6-3806 | F157: 30" O.C., 17 ft | G157: 17 ft | H157: size-6-3806 | I157: 30" O.C., 17 ft
B158: size-7-3806 | C158: =Input!B155 -> 16 ft | E158: size-7-3806 | F158: 16 ft | H158: size-7-3806 | I158: 16 ft
B159: size-8-3806 | C159: =Input!B156 -> 17.5 ft | E159: size-8-3806 | F159: 17.5 ft | H159: size-8-3806 | I159: 17.5 ft
B160: size-9-3806 | C160: =Input!B157 -> 22 ft | E160: size-9-3806 | F160: 22 ft | H160: size-9-3806 | I160: 22 ft
B161: size-10-3806 | C161: =Input!B158 -> 12 ft | E161: size-10-3806 | F161: 12 ft | H161: size-10-3806 | I161: 12 ft
B162: size-11-3806 | C162: =Input!B160 -> 16 row | E162: size-11-3806 | F162: 16 row | H162: size-11-3806 | I162: 16 row
B163: size-12-3806 | C163: =Input!B161 -> (16/31 row 30/15") | E163: size-12-3806 | F163: (16/31 row 30/15") | H163: size-12-3806 | I163: (16/31 row 30/15")
B164: size-13-3806 | C164: =Input!B162 -> 6 row | E164: size-13-3806 | F164: 6 row | H164: size-13-3806 | I164: 6 row
B165: size-14-3806 | C165: =Input!B163 -> 16 ft | E165: size-14-3806 | F165: 16 ft | H165: size-14-3806 | I165: 16 ft
B166: size-15-3806 | C166: =Input!B164 -> 15 ft | E166: size-15-3806 | F166: 15 ft | H166: size-15-3806 | I166: 15 ft
B167: size-16-3806 | C167: =Input!B166 -> 6 row | E167: size-16-3806 | F167: 6 row | H167: size-16-3806 | I167: 6 row
B168: size-17-3806 | C168: =Input!B167 -> 6 row | E168: size-17-3806 | F168: 6 row | H168: size-17-3806 | I168: 6 row
B169: size-18-3806 | C169: =Input!B170 -> 90 ft | E169: size-18-3806 | F169: 90 ft | H169: size-18-3806 | I169: 90 ft
B170: size-27-101707 | C170: =Input!B175 -> 7 ft swath | E170: size-27-101707 | F170: 7 ft swath | H170: =B170 -> size-27-101707 | I170: 7 ft swath
B171: size-19-3806 | C171: =Input!B176 -> 6 ft | E171: size-19-3806 | F171: 6 ft | H171: size-19-3806 | I171: 6 ft
B172: size-28-101707 | C172: =Input!B177 -> 7 ft swath | E172: size-28-101707 | F172: 7 ft swath | H172: =B172 -> size-28-101707 | I172: 7 ft swath
B173: size-25-101707 | C173: =Input!B179 -> 10 wheel, 20 ft | E173: size-25-101707 | F173: 10 wheel, 20 ft | H173: size-25-101707 | I173: 10 wheel, 20 ft
B174: size-26-101707 | C174: =Input!B180 -> 9.5 ft | E174: size-26-101707 | F174: 9.5 ft | H174: size-26-101707 | I174: 9.5 ft
B175: size-20-101707 | C175: =Input!B183 -> 1000 lb | E175: size-20-101707 | F175: 1000 lb | H175: size-20-101707 | I175: 1000 lb
B176: size-21-3806 | C176: =Input!B193 -> 15 ft | E176: size-21-3806 | F176: 15 ft | H176: size-21-3806 | I176: 15 ft
B177: size-22-3806 | C177: =Input!B194 -> 25 ft | E177: size-22-3806 | F177: 25 ft | H177: size-22-3806 | I177: 25 ft
B178: size-23-3806 | C178: =Input!B195 -> 8 row | E178: size-23-3806 | F178: 8 row | H178: size-23-3806 | I178: 8 row
B179: size-24-3806 | C179: =Input!B196 -> 500 bushel | E179: size-24-3806 | F179: 500 bushel | H179: size-24-3806 | I179: 500 bushel
B180: power-1-22706 | C180: =Input!$D$149 -> 0 | E180: power-1-22706 | F180: 0 | H180: power-1-22706
B181: power-2-22706 | C181: =Input!$D$150 -> 0 | E181: power-2-22706 | F181: 0 | H181: power-2-22706
B182: power-3-22706 | C182: =Input!$D$151 -> 0 | E182: power-3-22706 | F182: 0 | H182: power-3-22706
B183: power-4-22706 | C183: =Input!$D$152 -> 0 | E183: power-4-22706 | F183: 0 | H183: power-4-22706
B184: power-5-22706 | C184: =Input!$D$153 -> 360 4WD | E184: power-5-22706 | F184: 360 4WD | H184: power-5-22706 | I184: 360 4WD
B185: power-6-22706 | C185: =Input!$D$154 -> 0 | E185: power-6-22706 | F185: 0 | H185: power-6-22706
B186: power-7-22706 | C186: =Input!$D$155 -> 0 | E186: power-7-22706 | F186: 0 | H186: power-7-22706
B187: power-8-22706 | C187: =Input!$D$156 -> 0 | E187: power-8-22706 | F187: 0 | H187: power-8-22706
B188: power-9-22706 | C188: =Input!$D$157 -> 0 | E188: power-9-22706 | F188: 0 | H188: power-9-22706
B189: power-10-22706 | C189: =Input!$D$158 -> 0 | E189: power-10-22706 | F189: 0 | H189: power-10-22706
B190: power-11-22706 | C190: =Input!$D$160 -> 225 MFWD | E190: power-11-22706 | F190: 225 MFWD | H190: power-11-22706 | I190: 225 MFWD
B191: power-12-22706 | C191: =Input!$D$161 -> 225 MFWD | E191: power-12-22706 | F191: 225 MFWD | H191: power-12-22706 | I191: 225 MFWD
B192: power-13-22706 | C192: =Input!$D$162 -> 0 | E192: power-13-22706 | F192: 0 | H192: power-13-22706 | I192: =IF(COUNTIF(import,"="&H192)<>0,IF(VLOOKUP(H192,import,2,FALSE)<>0,VLOOKUP(H192,import,2,FALSE),""),"") -> 
B193: power-14-22706 | C193: =Input!$D$163 -> 0 | E193: power-14-22706 | F193: 0 | H193: power-14-22706
B194: power-15-22706 | C194: =Input!$D$164 -> 0 | E194: power-15-22706 | F194: 0 | H194: power-15-22706
B195: power-16-22706 | C195: =Input!$D$166 -> 0 | E195: power-16-22706 | F195: 0 | H195: power-16-22706
B196: power-17-22706 | C196: =Input!$D$167 -> 0 | E196: power-17-22706 | F196: 0 | H196: power-17-22706
B197: power-18-22706 | C197: =Input!$D$168 -> 0 | E197: power-18-22706 | F197: 0 | H197: power-18-22706
B198: power-19-22706 | C198: =Input!$D$169 -> 0 | E198: power-19-22706 | F198: 0 | H198: power-19-22706
B199: power-20-22706 | C199: =Input!$D$170 -> 130 MFWD | E199: power-20-22706 | F199: 130 MFWD | H199: power-20-22706 | I199: 130 MFWD
B200: power-21-22706 | C200: =Input!$D$172 -> 0 | E200: power-21-22706 | F200: 0 | H200: power-21-22706
B201: power-22-22706 | C201: =Input!$D$173 -> 0 | E201: power-22-22706 | F201: 0 | H201: power-22-22706
... 97 more rows
